{"text_format":"1","workbook":"xlsx","n_sheets":10,"sheets":["Mix_1","Mix_2","Mix_3","Mix_4","Jobsheet","Bulk_PLS_Documentation","Guide-Grasses_Grasslikes","Guide-Forbs","Guide-Shrubs","DATA_TABLE"],"not_rendered":{"charts":0,"images":1,"macros":1,"external_links":0,"defined_names":15,"comments":0,"pivot_tables":0},"unopened":[],"bounds":{"document_bytes":16777216,"sheet_cells":100000,"rows_first":2000,"rows_last":500,"rows_between":2000,"halvings":0,"cell_chars":16384,"cell_head_chars":4096},"cells_cut":0,"cells_raw":0,"read":"whole","date_system":"1900"}

{"sheet":"Mix_1","index":0,"n_rows":86,"n_cols":13,"rows_kept":86,"cut":false,"hidden":false,"merged":[[84,3,84,7],[85,3,85,7],[74,3,74,7],[73,3,73,7],[72,3,72,7],[9,12,11,12],[71,3,71,7],[83,3,83,7],[79,3,79,7],[78,3,78,7],[77,3,77,7],[76,3,76,7],[75,3,75,7],[82,3,82,7],[81,3,81,7],[80,3,80,7],[0,3,0,6],[0,1,0,2],[1,2,3,2],[13,12,15,12],[69,0,69,10],[1,3,3,3],[1,4,3,4],[1,5,3,5],[1,9,3,9],[1,10,3,10],[1,7,3,7],[1,8,3,8],[1,0,3,0],[1,6,3,6],[19,12,23,12],[7,12,8,12]]}
["CPA8 MIX 1 - NAME:  ","550 - Range Seeding - Sandy Site",null,"MLRA:",null,null,null,"67A"]
["Species List ",null,"Variety names listed in bold are the preferred varieties","PLS LBS per acre","PLS per ft² @ 1lb/ac","PLS per ft² ","% of Grasses","Est. Cost Per Pound (PLS)","Estimated Cost Per Acre","Bloom Period","COC"]
[]
[]
["GRASSES","SCIENTIFIC NAME","Acceptable Varieties",null,null,null,null,null,null,null,null,null,"Enable Content when opening the worksheet."]
["Blue Grama ",{"$f":"IF(A72=\"\",\"\",VLOOKUP(A72, DATA_TABLE!$C$3:$I$64, 7, FALSE))","v":""},"Hachita, Bad River, Lovington",0.12,{"$f":"IF(A6=\"\",\"\",VLOOKUP(A6, DATA_TABLE!$C$3:$I$64, 2, FALSE))","v":16.629935720844813},{"$f":"IF(A6=\"\",\"\",(D6*E6))","v":1.9955922865013775},{"$f":"IF(A6>0,F6/$F$21,0)","v":9.8767272456238273E-2},{"$f":"IF(E6=\"\",\"\",VLOOKUP(A6, DATA_TABLE!$C$3:$I$64, 4, FALSE))","v":0},{"$f":"IF(A6=\"\",\"\",(H6*D6))","v":0},null,{"$f":"IF(A6=\"\",\"\",VLOOKUP(A6, DATA_TABLE!$C$3:$I$64, 6, FALSE))","v":4}]
["Canada Wildrye",{"$f":"IF(A7=\"\",\"\",VLOOKUP(A7, DATA_TABLE!$C$3:$I$64, 7, FALSE))","v":"Elymus canadensis"},"Mandan",0.3,{"$f":"IF(A7=\"\",\"\",VLOOKUP(A7, DATA_TABLE!$C$3:$I$64, 2, FALSE))","v":2.6170798898071626},{"$f":"IF(A7=\"\",\"\",(D7*E7))","v":0.7851239669421487},{"$f":"IF(A7>0,F7/$F$21,0)","v":3.8857913652716597E-2},{"$f":"IF(E7=\"\",\"\",VLOOKUP(A7, DATA_TABLE!$C$3:$I$64, 4, FALSE))","v":0},0,null,{"$f":"IF(A7=\"\",\"\",VLOOKUP(A7, DATA_TABLE!$C$3:$I$64, 6, FALSE))","v":5}]
["Green Needlegrass",{"$f":"IF(A8=\"\",\"\",VLOOKUP(A8, DATA_TABLE!$C$3:$I$64, 7, FALSE))","v":"Nassella viridula"},"Lodorm",0.25,{"$f":"IF(A8=\"\",\"\",VLOOKUP(A8, DATA_TABLE!$C$3:$I$64, 2, FALSE))","v":3.8530762167125805},0.96326905417814512,4.7674796984444115E-2,{"$f":"IF(E8=\"\",\"\",VLOOKUP(A8, DATA_TABLE!$C$3:$I$64, 4, FALSE))","v":0},0,null,{"$f":"IF(A8=\"\",\"\",VLOOKUP(A8, DATA_TABLE!$C$3:$I$64, 6, FALSE))","v":4},null,"Clear this example mix and enter your grass, forb and legume species, grass varieties, and PLS LBS per acre"]
["Indiangrass",{"$f":"IF(A9=\"\",\"\",VLOOKUP(A9, DATA_TABLE!$C$3:$I$64, 7, FALSE))","v":"Sorghastrum nutans"},"Holt",0.2,{"$f":"IF(A9=\"\",\"\",VLOOKUP(A9, DATA_TABLE!$C$3:$I$64, 2, FALSE))","v":4.0110192837465561},0.80220385674931127,3.9703243704109034E-2,{"$f":"IF(E9=\"\",\"\",VLOOKUP(A9, DATA_TABLE!$C$3:$I$64, 4, FALSE))","v":0},0,null,{"$f":"IF(A9=\"\",\"\",VLOOKUP(A9, DATA_TABLE!$C$3:$I$64, 6, FALSE))","v":5}]
["Indian Ricegrass",{"$f":"IF(A10=\"\",\"\",VLOOKUP(A10, DATA_TABLE!$C$3:$I$64, 7, FALSE))","v":"Achnatherum hymenoides"},"Nezpar, Rimrock",0.25,{"$f":"IF(A10=\"\",\"\",VLOOKUP(A10, DATA_TABLE!$C$3:$I$64, 2, FALSE))","v":3.7171717171717171},0.92929292929292928,4.5993226452104331E-2,{"$f":"IF(E10=\"\",\"\",VLOOKUP(A10, DATA_TABLE!$C$3:$I$64, 4, FALSE))","v":0},0,null,{"$f":"IF(A10=\"\",\"\",VLOOKUP(A10, DATA_TABLE!$C$3:$I$64, 6, FALSE))","v":4},null,"Acceptable Varieties:  See the UN-L variety guide (Certified Perennial Grass Varieties Recommended for Nebraska) for acceptable varieties for the location of the seeding."]
["Sand Lovegrass",{"$f":"IF(A11=\"\",\"\",VLOOKUP(A11, DATA_TABLE!$C$3:$I$64, 7, FALSE))","v":"Eragrostis trichodes"},"NE 27",0.02,{"$f":"IF(A11=\"\",\"\",VLOOKUP(A11, DATA_TABLE!$C$3:$I$64, 2, FALSE))","v":37.320477502295681},0.74640955004591358,3.6941832202893751E-2,{"$f":"IF(E11=\"\",\"\",VLOOKUP(A11, DATA_TABLE!$C$3:$I$64, 4, FALSE))","v":0},0,null,{"$f":"IF(A11=\"\",\"\",VLOOKUP(A11, DATA_TABLE!$C$3:$I$64, 6, FALSE))","v":5}]
["Little Bluestem",{"$f":"IF(A12=\"\",\"\",VLOOKUP(A12, DATA_TABLE!$C$3:$I$64, 7, FALSE))","v":"Schizachyrium scoparium"},"Cimarron, Pastura, Camper, Blaze",0.8,{"$f":"IF(A12=\"\",\"\",VLOOKUP(A12, DATA_TABLE!$C$3:$I$64, 2, FALSE))","v":5.5250229568411386},4.4200183654729113,0.21875869190173813,{"$f":"IF(E12=\"\",\"\",VLOOKUP(A12, DATA_TABLE!$C$3:$I$64, 4, FALSE))","v":0},0,null,{"$f":"IF(A12=\"\",\"\",VLOOKUP(A12, DATA_TABLE!$C$3:$I$64, 6, FALSE))","v":4}]
["Sand Bluestem",{"$f":"IF(A13=\"\",\"\",VLOOKUP(A13, DATA_TABLE!$C$3:$I$64, 7, FALSE))","v":"Andropogon hallii"},"Champ, Garden County, Goldstrike",2,{"$f":"IF(A13=\"\",\"\",VLOOKUP(A13, DATA_TABLE!$C$3:$I$64, 2, FALSE))","v":2.2185491276400366},4.4370982552800733,0.21960402195313056,{"$f":"IF(E13=\"\",\"\",VLOOKUP(A13, DATA_TABLE!$C$3:$I$64, 4, FALSE))","v":0},0,null,{"$f":"IF(A13=\"\",\"\",VLOOKUP(A13, DATA_TABLE!$C$3:$I$64, 6, FALSE))","v":5},null,"http://extensionpublications.unl.edu/assets/pdf/ec120.pdf"]
["Thickspike Wheatgrass",{"$f":"IF(A14=\"\",\"\",VLOOKUP(A14, DATA_TABLE!$C$3:$I$64, 7, FALSE))","v":"Elymus lanceolatus"},"Critana",0.6,{"$f":"IF(A14=\"\",\"\",VLOOKUP(A14, DATA_TABLE!$C$3:$I$64, 2, FALSE))","v":3.5123966942148761},2.1074380165289255,0.10430282085729192,{"$f":"IF(E14=\"\",\"\",VLOOKUP(A14, DATA_TABLE!$C$3:$I$64, 4, FALSE))","v":0},0,null,{"$f":"IF(A14=\"\",\"\",VLOOKUP(A14, DATA_TABLE!$C$3:$I$64, 6, FALSE))","v":5},null,"If desired, hide the lines that are not used or are blank under by highlighting the rows, right clicking and selecting \"hide\".  Then if you print this page, the blank rows will not print."]
["Switchgrass",{"$f":"IF(A15=\"\",\"\",VLOOKUP(A15, DATA_TABLE!$C$3:$I$64, 7, FALSE))","v":"Panicum virgatum"},"NE 28",0.2,{"$f":"IF(A15=\"\",\"\",VLOOKUP(A15, DATA_TABLE!$C$3:$I$64, 2, FALSE))","v":5.9458218549127642},1.1891643709825528,5.88549686318924E-2,{"$f":"IF(E15=\"\",\"\",VLOOKUP(A15, DATA_TABLE!$C$3:$I$64, 4, FALSE))","v":0},0,null,{"$f":"IF(A15=\"\",\"\",VLOOKUP(A15, DATA_TABLE!$C$3:$I$64, 6, FALSE))","v":4}]
["Western Wheatgrass ",{"$f":"IF(A16=\"\",\"\",VLOOKUP(A16, DATA_TABLE!$C$3:$I$64, 7, FALSE))","v":"Pascopyrum smithii"},"Flintlock, Barton, Arriba, Rodan, Rosana",0.7,{"$f":"IF(A16=\"\",\"\",VLOOKUP(A16, DATA_TABLE!$C$3:$I$64, 2, FALSE))","v":2.6134067952249769},1.8293847566574837,9.0541211203440941E-2,{"$f":"IF(E16=\"\",\"\",VLOOKUP(A16, DATA_TABLE!$C$3:$I$64, 4, FALSE))","v":0},0,null,{"$f":"IF(A16=\"\",\"\",VLOOKUP(A16, DATA_TABLE!$C$3:$I$64, 6, FALSE))","v":3}]
[null,{"$f":"IF(A17=\"\",\"\",VLOOKUP(A17, DATA_TABLE!$C$3:$I$64, 7, FALSE))","v":""},null,null,{"$f":"IF(A17=\"\",\"\",VLOOKUP(A17, DATA_TABLE!$C$3:$I$64, 2, FALSE))","v":""},"",0,{"$f":"IF(E17=\"\",\"\",VLOOKUP(A17, DATA_TABLE!$C$3:$I$64, 4, FALSE))","v":""},"",null,{"$f":"IF(A17=\"\",\"\",VLOOKUP(A17, DATA_TABLE!$C$3:$I$64, 6, FALSE))","v":""},null,"If cost data is available, enter costs into DATA_TABLE "]
[null,{"$f":"IF(A18=\"\",\"\",VLOOKUP(A18, DATA_TABLE!$C$3:$I$64, 7, FALSE))","v":""},null,null,{"$f":"IF(A18=\"\",\"\",VLOOKUP(A18, DATA_TABLE!$C$3:$I$64, 2, FALSE))","v":""},"",0,{"$f":"IF(E18=\"\",\"\",VLOOKUP(A18, DATA_TABLE!$C$3:$I$64, 4, FALSE))","v":""},"",null,{"$f":"IF(A18=\"\",\"\",VLOOKUP(A18, DATA_TABLE!$C$3:$I$64, 6, FALSE))","v":""},null,"for use in all Mix Tabs."]
[null,{"$f":"IF(A19=\"\",\"\",VLOOKUP(A19, DATA_TABLE!$C$3:$I$64, 7, FALSE))","v":""},null,null,{"$f":"IF(A19=\"\",\"\",VLOOKUP(A19, DATA_TABLE!$C$3:$I$64, 2, FALSE))","v":""},"",0,{"$f":"IF(E19=\"\",\"\",VLOOKUP(A19, DATA_TABLE!$C$3:$I$64, 4, FALSE))","v":""},"",null,{"$f":"IF(A19=\"\",\"\",VLOOKUP(A19, DATA_TABLE!$C$3:$I$64, 6, FALSE))","v":""}]
[null,{"$f":"IF(A20=\"\",\"\",VLOOKUP(A20, DATA_TABLE!$C$3:$I$64, 7, FALSE))","v":""},null,null,{"$f":"IF(A20=\"\",\"\",VLOOKUP(A20, DATA_TABLE!$C$3:$I$64, 2, FALSE))","v":""},"",0,{"$f":"IF(E20=\"\",\"\",VLOOKUP(A20, DATA_TABLE!$C$3:$I$64, 4, FALSE))","v":""},"",null,{"$f":"IF(A20=\"\",\"\",VLOOKUP(A20, DATA_TABLE!$C$3:$I$64, 6, FALSE))","v":""},null,"Note:  If you have mixes from older seeding sheets, you can copy and paste rather than use the dropdowns.  Since this workbook uses standardized names from Flora of Nebraska, any names in the old workbook that do not conform with the standard names will not copy and you will need to manually select those species using the dropdown menu."]
["Totals",null,null,{"$f":"SUM(D6:D20)","v":5.44},null,{"$f":"SUM(F6:F20)","v":20.20499540863177},{"$f":"SUM(G6:G20)","v":1},{"$f":"SUM(H6:H20)","v":0},{"$f":"SUM(I6:I20)","v":0},null,{"$f":"IF(ISERROR(AVERAGE(K6:K20)),0,AVERAGE(K6:K20))","v":4.3636363636363633}]
["FORBS & LEGUMES","SCIENTIFIC NAME",null,"PLS LBS per acre","PLS per ft² @ 1lb/ac","PLS per ft² ","% of Forbs","Est. Cost Per Pound (PLS)","Estimated Cost Per Acre","Bloom Period","COC"]
["Aromatic Aster",{"$f":"IF(A23=\"\",\"\",VLOOKUP(A23, DATA_TABLE!$C$68:$I$321, 7, FALSE))","v":"Symphyotrichum oblongifolium "},null,0.04,{"$f":"IF(A23=\"\",\"\",VLOOKUP(A23, DATA_TABLE!$C$68:$I$320, 2, FALSE))","v":18.732782369146005},{"$f":"IF(D23=\"\",\"\",(D23*E23))","v":0.74931129476584024},{"$f":"IF(D23>0,F23/$F$69,0)","v":8.4636701367541339E-2},{"$f":"IF(E23=\"\",\"\",VLOOKUP(A23, DATA_TABLE!$C$68:$I$320, 4, FALSE))","v":0},{"$f":"IF(A23=\"\",\"\",(H23*D23))","v":0},{"$f":"IF(A23=\"\",\"\",VLOOKUP(A23, DATA_TABLE!$C$68:$I$320, 5, FALSE))","v":3},{"$f":"IF(A23=\"\",\"\",VLOOKUP(A23, DATA_TABLE!$C$68:$I$320, 6, FALSE))","v":5}]
["Purple Prairie Clover",{"$f":"IF(A24=\"\",\"\",VLOOKUP(A24, DATA_TABLE!$C$68:$I$321, 7, FALSE))","v":"Dalea purpurea"},null,0.15,{"$f":"IF(A24=\"\",\"\",VLOOKUP(A24, DATA_TABLE!$C$68:$I$320, 2, FALSE))","v":6.887052341597796},{"$f":"IF(D24=\"\",\"\",(D24*E24))","v":1.0330578512396693},0.11668662872363235,{"$f":"IF(E24=\"\",\"\",VLOOKUP(A24, DATA_TABLE!$C$68:$I$320, 4, FALSE))","v":0},0,{"$f":"IF(A24=\"\",\"\",VLOOKUP(A24, DATA_TABLE!$C$68:$I$320, 5, FALSE))","v":2},{"$f":"IF(A24=\"\",\"\",VLOOKUP(A24, DATA_TABLE!$C$68:$I$320, 6, FALSE))","v":6}]
["Canada Goldenrod ",{"$f":"IF(A25=\"\",\"\",VLOOKUP(A25, DATA_TABLE!$C$68:$I$321, 7, FALSE))","v":"Solidago canadensis"},null,8.9999999999999993E-3,{"$f":"IF(A25=\"\",\"\",VLOOKUP(A25, DATA_TABLE!$C$68:$I$320, 2, FALSE))","v":105.60146923783287},0.95041322314049581,0.10735169842574176,{"$f":"IF(E25=\"\",\"\",VLOOKUP(A25, DATA_TABLE!$C$68:$I$320, 4, FALSE))","v":0},0,{"$f":"IF(A25=\"\",\"\",VLOOKUP(A25, DATA_TABLE!$C$68:$I$320, 5, FALSE))","v":3},{"$f":"IF(A25=\"\",\"\",VLOOKUP(A25, DATA_TABLE!$C$68:$I$320, 6, FALSE))","v":2}]
["Sweet Sand Verbena",{"$f":"IF(A26=\"\",\"\",VLOOKUP(A26, DATA_TABLE!$C$68:$I$321, 7, FALSE))","v":"Abronia fragrans"},null,0.4,{"$f":"IF(A26=\"\",\"\",VLOOKUP(A26, DATA_TABLE!$C$68:$I$320, 2, FALSE))","v":1.6528925619834711},0.66115702479338845,7.4679442383124711E-2,{"$f":"IF(E26=\"\",\"\",VLOOKUP(A26, DATA_TABLE!$C$68:$I$320, 4, FALSE))","v":0},0,{"$f":"IF(A26=\"\",\"\",VLOOKUP(A26, DATA_TABLE!$C$68:$I$320, 5, FALSE))","v":2},{"$f":"IF(A26=\"\",\"\",VLOOKUP(A26, DATA_TABLE!$C$68:$I$320, 6, FALSE))","v":3}]
["Stiff Sunflower",{"$f":"IF(A27=\"\",\"\",VLOOKUP(A27, DATA_TABLE!$C$68:$I$321, 7, FALSE))","v":"Helianthus pauciflorus"},null,0.4,{"$f":"IF(A27=\"\",\"\",VLOOKUP(A27, DATA_TABLE!$C$68:$I$320, 2, FALSE))","v":1.9513314967860422},0.78053259871441694,8.8163230591188899E-2,{"$f":"IF(E27=\"\",\"\",VLOOKUP(A27, DATA_TABLE!$C$68:$I$320, 4, FALSE))","v":0},0,{"$f":"IF(A27=\"\",\"\",VLOOKUP(A27, DATA_TABLE!$C$68:$I$320, 5, FALSE))","v":3},{"$f":"IF(A27=\"\",\"\",VLOOKUP(A27, DATA_TABLE!$C$68:$I$320, 6, FALSE))","v":5}]
["Field Snakecotton",{"$f":"IF(A28=\"\",\"\",VLOOKUP(A28, DATA_TABLE!$C$68:$I$321, 7, FALSE))","v":"Froelichia floridana"},null,0.2,{"$f":"IF(A28=\"\",\"\",VLOOKUP(A28, DATA_TABLE!$C$68:$I$320, 2, FALSE))","v":2.6446280991735538},0.52892561983471076,5.9743553906499769E-2,{"$f":"IF(E28=\"\",\"\",VLOOKUP(A28, DATA_TABLE!$C$68:$I$320, 4, FALSE))","v":0},0,{"$f":"IF(A28=\"\",\"\",VLOOKUP(A28, DATA_TABLE!$C$68:$I$320, 5, FALSE))","v":2},{"$f":"IF(A28=\"\",\"\",VLOOKUP(A28, DATA_TABLE!$C$68:$I$320, 6, FALSE))","v":4}]
["Fringed Pucoon",{"$f":"IF(A29=\"\",\"\",VLOOKUP(A29, DATA_TABLE!$C$68:$I$321, 7, FALSE))","v":"Lithospermum incisum"},null,0.9,{"$f":"IF(A29=\"\",\"\",VLOOKUP(A29, DATA_TABLE!$C$68:$I$320, 2, FALSE))","v":0.55096418732782371},0.49586776859504134,5.6009581787343533E-2,{"$f":"IF(E29=\"\",\"\",VLOOKUP(A29, DATA_TABLE!$C$68:$I$320, 4, FALSE))","v":0},0,{"$f":"IF(A29=\"\",\"\",VLOOKUP(A29, DATA_TABLE!$C$68:$I$320, 5, FALSE))","v":1},{"$f":"IF(A29=\"\",\"\",VLOOKUP(A29, DATA_TABLE!$C$68:$I$320, 6, FALSE))","v":5}]
["Leadplant",{"$f":"IF(A30=\"\",\"\",VLOOKUP(A30, DATA_TABLE!$C$68:$I$321, 7, FALSE))","v":"Amorpha canescens"},null,0.1,{"$f":"IF(A30=\"\",\"\",VLOOKUP(A30, DATA_TABLE!$C$68:$I$320, 2, FALSE))","v":4.4842286501377409},0.4484228650137741,5.0650553885496177E-2,{"$f":"IF(E30=\"\",\"\",VLOOKUP(A30, DATA_TABLE!$C$68:$I$320, 4, FALSE))","v":0},0,{"$f":"IF(A30=\"\",\"\",VLOOKUP(A30, DATA_TABLE!$C$68:$I$320, 5, FALSE))","v":2},{"$f":"IF(A30=\"\",\"\",VLOOKUP(A30, DATA_TABLE!$C$68:$I$320, 6, FALSE))","v":6}]
["Narrowleaf Beardtongue",{"$f":"IF(A31=\"\",\"\",VLOOKUP(A31, DATA_TABLE!$C$68:$I$321, 7, FALSE))","v":"Penstemon angustifolius"},null,0.05,{"$f":"IF(A31=\"\",\"\",VLOOKUP(A31, DATA_TABLE!$C$68:$I$320, 2, FALSE))","v":7.1854912764003673},0.35927456382001838,4.0581016433885474E-2,{"$f":"IF(E31=\"\",\"\",VLOOKUP(A31, DATA_TABLE!$C$68:$I$320, 4, FALSE))","v":0},0,{"$f":"IF(A31=\"\",\"\",VLOOKUP(A31, DATA_TABLE!$C$68:$I$320, 5, FALSE))","v":1},{"$f":"IF(A31=\"\",\"\",VLOOKUP(A31, DATA_TABLE!$C$68:$I$320, 6, FALSE))","v":6}]
["Winterfat",{"$f":"IF(A32=\"\",\"\",VLOOKUP(A32, DATA_TABLE!$C$68:$I$321, 7, FALSE))","v":"Krascheninnikovia lanata"},null,0.2,{"$f":"IF(A32=\"\",\"\",VLOOKUP(A32, DATA_TABLE!$C$68:$I$320, 2, FALSE))","v":2.5419880624426079},0.50839761248852156,5.7424860941951497E-2,{"$f":"IF(E32=\"\",\"\",VLOOKUP(A32, DATA_TABLE!$C$68:$I$320, 4, FALSE))","v":0},0,{"$f":"IF(A32=\"\",\"\",VLOOKUP(A32, DATA_TABLE!$C$68:$I$320, 5, FALSE))","v":2},{"$f":"IF(A32=\"\",\"\",VLOOKUP(A32, DATA_TABLE!$C$68:$I$320, 6, FALSE))","v":5}]
["White Sage",{"$f":"IF(A33=\"\",\"\",VLOOKUP(A33, DATA_TABLE!$C$68:$I$321, 7, FALSE))","v":"Artemisia ludoviciana"},null,7.0000000000000001E-3,{"$f":"IF(A33=\"\",\"\",VLOOKUP(A33, DATA_TABLE!$C$68:$I$320, 2, FALSE))","v":92.929292929292927},0.65050505050505047,7.3476273589174357E-2,{"$f":"IF(E33=\"\",\"\",VLOOKUP(A33, DATA_TABLE!$C$68:$I$320, 4, FALSE))","v":0},0,{"$f":"IF(A33=\"\",\"\",VLOOKUP(A33, DATA_TABLE!$C$68:$I$320, 5, FALSE))","v":3},{"$f":"IF(A33=\"\",\"\",VLOOKUP(A33, DATA_TABLE!$C$68:$I$320, 6, FALSE))","v":4}]
["White Prairie Clover",{"$f":"IF(A34=\"\",\"\",VLOOKUP(A34, DATA_TABLE!$C$68:$I$321, 7, FALSE))","v":"Dalea candida"},null,0.1,{"$f":"IF(A34=\"\",\"\",VLOOKUP(A34, DATA_TABLE!$C$68:$I$320, 2, FALSE))","v":6.3820018365472908},0.63820018365472908,7.2086406189266206E-2,{"$f":"IF(E34=\"\",\"\",VLOOKUP(A34, DATA_TABLE!$C$68:$I$320, 4, FALSE))","v":0},0,{"$f":"IF(A34=\"\",\"\",VLOOKUP(A34, DATA_TABLE!$C$68:$I$320, 5, FALSE))","v":2},{"$f":"IF(A34=\"\",\"\",VLOOKUP(A34, DATA_TABLE!$C$68:$I$320, 6, FALSE))","v":6}]
["Cutleaf Ironplant ",{"$f":"IF(A35=\"\",\"\",VLOOKUP(A35, DATA_TABLE!$C$68:$I$321, 7, FALSE))","v":"Machaeranthera pinnatifida"},null,4.0000000000000001E-3,{"$f":"IF(A35=\"\",\"\",VLOOKUP(A35, DATA_TABLE!$C$68:$I$320, 2, FALSE))","v":28.140495867768596},0.11256198347107439,1.2714175065726982E-2,{"$f":"IF(E35=\"\",\"\",VLOOKUP(A35, DATA_TABLE!$C$68:$I$320, 4, FALSE))","v":0},0,{"$f":"IF(A35=\"\",\"\",VLOOKUP(A35, DATA_TABLE!$C$68:$I$320, 5, FALSE))","v":2},{"$f":"IF(A35=\"\",\"\",VLOOKUP(A35, DATA_TABLE!$C$68:$I$320, 6, FALSE))","v":4}]
["Indian Breadroot",{"$f":"IF(A36=\"\",\"\",VLOOKUP(A36, DATA_TABLE!$C$68:$I$321, 7, FALSE))","v":"Pediomelum esculentum"},null,1,{"$f":"IF(A36=\"\",\"\",VLOOKUP(A36, DATA_TABLE!$C$68:$I$320, 2, FALSE))","v":0.40404040404040403},0.40404040404040403,4.5637437011909546E-2,{"$f":"IF(E36=\"\",\"\",VLOOKUP(A36, DATA_TABLE!$C$68:$I$320, 4, FALSE))","v":0},0,{"$f":"IF(A36=\"\",\"\",VLOOKUP(A36, DATA_TABLE!$C$68:$I$320, 5, FALSE))","v":1},{"$f":"IF(A36=\"\",\"\",VLOOKUP(A36, DATA_TABLE!$C$68:$I$320, 6, FALSE))","v":7}]
["Showy Milkweed",{"$f":"IF(A37=\"\",\"\",VLOOKUP(A37, DATA_TABLE!$C$68:$I$321, 7, FALSE))","v":"Asclepias speciosa"},null,0.1,{"$f":"IF(A37=\"\",\"\",VLOOKUP(A37, DATA_TABLE!$C$68:$I$320, 2, FALSE))","v":1.6528925619834711},0.16528925619834711,1.8669860595781178E-2,{"$f":"IF(E37=\"\",\"\",VLOOKUP(A37, DATA_TABLE!$C$68:$I$320, 4, FALSE))","v":0},0,{"$f":"IF(A37=\"\",\"\",VLOOKUP(A37, DATA_TABLE!$C$68:$I$320, 5, FALSE))","v":2},{"$f":"IF(A37=\"\",\"\",VLOOKUP(A37, DATA_TABLE!$C$68:$I$320, 6, FALSE))","v":1}]
["Prairie Ragwort",{"$f":"IF(A38=\"\",\"\",VLOOKUP(A38, DATA_TABLE!$C$68:$I$321, 7, FALSE))","v":"Packera plattensis"},null,0.01,{"$f":"IF(A38=\"\",\"\",VLOOKUP(A38, DATA_TABLE!$C$68:$I$320, 2, FALSE))","v":36.73094582185491},0.3673094582185491,4.1488579101735944E-2,{"$f":"IF(E38=\"\",\"\",VLOOKUP(A38, DATA_TABLE!$C$68:$I$320, 4, FALSE))","v":0},0,{"$f":"IF(A38=\"\",\"\",VLOOKUP(A38, DATA_TABLE!$C$68:$I$320, 5, FALSE))","v":1},{"$f":"IF(A38=\"\",\"\",VLOOKUP(A38, DATA_TABLE!$C$68:$I$320, 6, FALSE))","v":5}]
[null,{"$f":"IF(A39=\"\",\"\",VLOOKUP(A39, DATA_TABLE!$C$68:$I$321, 7, FALSE))","v":""},null,null,{"$f":"IF(A39=\"\",\"\",VLOOKUP(A39, DATA_TABLE!$C$68:$I$320, 2, FALSE))","v":""},"",0,{"$f":"IF(E39=\"\",\"\",VLOOKUP(A39, DATA_TABLE!$C$68:$I$320, 4, FALSE))","v":""},"",{"$f":"IF(A39=\"\",\"\",VLOOKUP(A39, DATA_TABLE!$C$68:$I$320, 5, FALSE))","v":""},{"$f":"IF(A39=\"\",\"\",VLOOKUP(A39, DATA_TABLE!$C$68:$I$320, 6, FALSE))","v":""}]
[null,{"$f":"IF(A40=\"\",\"\",VLOOKUP(A40, DATA_TABLE!$C$68:$I$321, 7, FALSE))","v":""},null,null,{"$f":"IF(A40=\"\",\"\",VLOOKUP(A40, DATA_TABLE!$C$68:$I$320, 2, FALSE))","v":""},"",0,{"$f":"IF(E40=\"\",\"\",VLOOKUP(A40, DATA_TABLE!$C$68:$I$320, 4, FALSE))","v":""},"",{"$f":"IF(A40=\"\",\"\",VLOOKUP(A40, DATA_TABLE!$C$68:$I$320, 5, FALSE))","v":""},{"$f":"IF(A40=\"\",\"\",VLOOKUP(A40, DATA_TABLE!$C$68:$I$320, 6, FALSE))","v":""}]
[null,{"$f":"IF(A41=\"\",\"\",VLOOKUP(A41, DATA_TABLE!$C$68:$I$321, 7, FALSE))","v":""},null,null,{"$f":"IF(A41=\"\",\"\",VLOOKUP(A41, DATA_TABLE!$C$68:$I$320, 2, FALSE))","v":""},"",0,{"$f":"IF(E41=\"\",\"\",VLOOKUP(A41, DATA_TABLE!$C$68:$I$320, 4, FALSE))","v":""},"",{"$f":"IF(A41=\"\",\"\",VLOOKUP(A41, DATA_TABLE!$C$68:$I$320, 5, FALSE))","v":""},{"$f":"IF(A41=\"\",\"\",VLOOKUP(A41, DATA_TABLE!$C$68:$I$320, 6, FALSE))","v":""}]
[null,{"$f":"IF(A42=\"\",\"\",VLOOKUP(A42, DATA_TABLE!$C$68:$I$321, 7, FALSE))","v":""},null,null,{"$f":"IF(A42=\"\",\"\",VLOOKUP(A42, DATA_TABLE!$C$68:$I$320, 2, FALSE))","v":""},"",0,{"$f":"IF(E42=\"\",\"\",VLOOKUP(A42, DATA_TABLE!$C$68:$I$320, 4, FALSE))","v":""},"",{"$f":"IF(A42=\"\",\"\",VLOOKUP(A42, DATA_TABLE!$C$68:$I$320, 5, FALSE))","v":""},{"$f":"IF(A42=\"\",\"\",VLOOKUP(A42, DATA_TABLE!$C$68:$I$320, 6, FALSE))","v":""}]
[null,{"$f":"IF(A43=\"\",\"\",VLOOKUP(A43, DATA_TABLE!$C$68:$I$321, 7, FALSE))","v":""},null,null,{"$f":"IF(A43=\"\",\"\",VLOOKUP(A43, DATA_TABLE!$C$68:$I$320, 2, FALSE))","v":""},"",0,{"$f":"IF(E43=\"\",\"\",VLOOKUP(A43, DATA_TABLE!$C$68:$I$320, 4, FALSE))","v":""},"",{"$f":"IF(A43=\"\",\"\",VLOOKUP(A43, DATA_TABLE!$C$68:$I$320, 5, FALSE))","v":""},{"$f":"IF(A43=\"\",\"\",VLOOKUP(A43, DATA_TABLE!$C$68:$I$320, 6, FALSE))","v":""}]
[null,{"$f":"IF(A44=\"\",\"\",VLOOKUP(A44, DATA_TABLE!$C$68:$I$321, 7, FALSE))","v":""},null,null,{"$f":"IF(A44=\"\",\"\",VLOOKUP(A44, DATA_TABLE!$C$68:$I$320, 2, FALSE))","v":""},"",0,{"$f":"IF(E44=\"\",\"\",VLOOKUP(A44, DATA_TABLE!$C$68:$I$320, 4, FALSE))","v":""},"",{"$f":"IF(A44=\"\",\"\",VLOOKUP(A44, DATA_TABLE!$C$68:$I$320, 5, FALSE))","v":""},{"$f":"IF(A44=\"\",\"\",VLOOKUP(A44, DATA_TABLE!$C$68:$I$320, 6, FALSE))","v":""}]
[null,{"$f":"IF(A45=\"\",\"\",VLOOKUP(A45, DATA_TABLE!$C$68:$I$321, 7, FALSE))","v":""},null,null,{"$f":"IF(A45=\"\",\"\",VLOOKUP(A45, DATA_TABLE!$C$68:$I$320, 2, FALSE))","v":""},"",0,{"$f":"IF(E45=\"\",\"\",VLOOKUP(A45, DATA_TABLE!$C$68:$I$320, 4, FALSE))","v":""},"",{"$f":"IF(A45=\"\",\"\",VLOOKUP(A45, DATA_TABLE!$C$68:$I$320, 5, FALSE))","v":""},{"$f":"IF(A45=\"\",\"\",VLOOKUP(A45, DATA_TABLE!$C$68:$I$320, 6, FALSE))","v":""}]
[null,{"$f":"IF(A46=\"\",\"\",VLOOKUP(A46, DATA_TABLE!$C$68:$I$321, 7, FALSE))","v":""},null,null,{"$f":"IF(A46=\"\",\"\",VLOOKUP(A46, DATA_TABLE!$C$68:$I$320, 2, FALSE))","v":""},"",0,{"$f":"IF(E46=\"\",\"\",VLOOKUP(A46, DATA_TABLE!$C$68:$I$320, 4, FALSE))","v":""},"",{"$f":"IF(A46=\"\",\"\",VLOOKUP(A46, DATA_TABLE!$C$68:$I$320, 5, FALSE))","v":""},{"$f":"IF(A46=\"\",\"\",VLOOKUP(A46, DATA_TABLE!$C$68:$I$320, 6, FALSE))","v":""}]
[null,{"$f":"IF(A47=\"\",\"\",VLOOKUP(A47, DATA_TABLE!$C$68:$I$321, 7, FALSE))","v":""},null,null,{"$f":"IF(A47=\"\",\"\",VLOOKUP(A47, DATA_TABLE!$C$68:$I$320, 2, FALSE))","v":""},"",0,{"$f":"IF(E47=\"\",\"\",VLOOKUP(A47, DATA_TABLE!$C$68:$I$320, 4, FALSE))","v":""},"",{"$f":"IF(A47=\"\",\"\",VLOOKUP(A47, DATA_TABLE!$C$68:$I$320, 5, FALSE))","v":""},{"$f":"IF(A47=\"\",\"\",VLOOKUP(A47, DATA_TABLE!$C$68:$I$320, 6, FALSE))","v":""}]
[null,{"$f":"IF(A48=\"\",\"\",VLOOKUP(A48, DATA_TABLE!$C$68:$I$321, 7, FALSE))","v":""},null,null,{"$f":"IF(A48=\"\",\"\",VLOOKUP(A48, DATA_TABLE!$C$68:$I$320, 2, FALSE))","v":""},"",0,{"$f":"IF(E48=\"\",\"\",VLOOKUP(A48, DATA_TABLE!$C$68:$I$320, 4, FALSE))","v":""},"",{"$f":"IF(A48=\"\",\"\",VLOOKUP(A48, DATA_TABLE!$C$68:$I$320, 5, FALSE))","v":""},{"$f":"IF(A48=\"\",\"\",VLOOKUP(A48, DATA_TABLE!$C$68:$I$320, 6, FALSE))","v":""}]
[null,{"$f":"IF(A49=\"\",\"\",VLOOKUP(A49, DATA_TABLE!$C$68:$I$321, 7, FALSE))","v":""},null,null,{"$f":"IF(A49=\"\",\"\",VLOOKUP(A49, DATA_TABLE!$C$68:$I$320, 2, FALSE))","v":""},"",0,{"$f":"IF(E49=\"\",\"\",VLOOKUP(A49, DATA_TABLE!$C$68:$I$320, 4, FALSE))","v":""},"",{"$f":"IF(A49=\"\",\"\",VLOOKUP(A49, DATA_TABLE!$C$68:$I$320, 5, FALSE))","v":""},{"$f":"IF(A49=\"\",\"\",VLOOKUP(A49, DATA_TABLE!$C$68:$I$320, 6, FALSE))","v":""}]
[null,{"$f":"IF(A50=\"\",\"\",VLOOKUP(A50, DATA_TABLE!$C$68:$I$321, 7, FALSE))","v":""},null,null,{"$f":"IF(A50=\"\",\"\",VLOOKUP(A50, DATA_TABLE!$C$68:$I$320, 2, FALSE))","v":""},"",0,{"$f":"IF(E50=\"\",\"\",VLOOKUP(A50, DATA_TABLE!$C$68:$I$320, 4, FALSE))","v":""},"",{"$f":"IF(A50=\"\",\"\",VLOOKUP(A50, DATA_TABLE!$C$68:$I$320, 5, FALSE))","v":""},{"$f":"IF(A50=\"\",\"\",VLOOKUP(A50, DATA_TABLE!$C$68:$I$320, 6, FALSE))","v":""}]
[null,{"$f":"IF(A51=\"\",\"\",VLOOKUP(A51, DATA_TABLE!$C$68:$I$321, 7, FALSE))","v":""},null,null,{"$f":"IF(A51=\"\",\"\",VLOOKUP(A51, DATA_TABLE!$C$68:$I$320, 2, FALSE))","v":""},"",0,{"$f":"IF(E51=\"\",\"\",VLOOKUP(A51, DATA_TABLE!$C$68:$I$320, 4, FALSE))","v":""},"",{"$f":"IF(A51=\"\",\"\",VLOOKUP(A51, DATA_TABLE!$C$68:$I$320, 5, FALSE))","v":""},{"$f":"IF(A51=\"\",\"\",VLOOKUP(A51, DATA_TABLE!$C$68:$I$320, 6, FALSE))","v":""}]
[null,{"$f":"IF(A52=\"\",\"\",VLOOKUP(A52, DATA_TABLE!$C$68:$I$321, 7, FALSE))","v":""},null,null,{"$f":"IF(A52=\"\",\"\",VLOOKUP(A52, DATA_TABLE!$C$68:$I$320, 2, FALSE))","v":""},"",0,{"$f":"IF(E52=\"\",\"\",VLOOKUP(A52, DATA_TABLE!$C$68:$I$320, 4, FALSE))","v":""},"",{"$f":"IF(A52=\"\",\"\",VLOOKUP(A52, DATA_TABLE!$C$68:$I$320, 5, FALSE))","v":""},{"$f":"IF(A52=\"\",\"\",VLOOKUP(A52, DATA_TABLE!$C$68:$I$320, 6, FALSE))","v":""}]
[null,{"$f":"IF(A53=\"\",\"\",VLOOKUP(A53, DATA_TABLE!$C$68:$I$321, 7, FALSE))","v":""},null,null,{"$f":"IF(A53=\"\",\"\",VLOOKUP(A53, DATA_TABLE!$C$68:$I$320, 2, FALSE))","v":""},"",0,{"$f":"IF(E53=\"\",\"\",VLOOKUP(A53, DATA_TABLE!$C$68:$I$320, 4, FALSE))","v":""},"",{"$f":"IF(A53=\"\",\"\",VLOOKUP(A53, DATA_TABLE!$C$68:$I$320, 5, FALSE))","v":""},{"$f":"IF(A53=\"\",\"\",VLOOKUP(A53, DATA_TABLE!$C$68:$I$320, 6, FALSE))","v":""}]
[null,{"$f":"IF(A54=\"\",\"\",VLOOKUP(A54, DATA_TABLE!$C$68:$I$321, 7, FALSE))","v":""},null,null,{"$f":"IF(A54=\"\",\"\",VLOOKUP(A54, DATA_TABLE!$C$68:$I$320, 2, FALSE))","v":""},"",0,{"$f":"IF(E54=\"\",\"\",VLOOKUP(A54, DATA_TABLE!$C$68:$I$320, 4, FALSE))","v":""},"",{"$f":"IF(A54=\"\",\"\",VLOOKUP(A54, DATA_TABLE!$C$68:$I$320, 5, FALSE))","v":""},{"$f":"IF(A54=\"\",\"\",VLOOKUP(A54, DATA_TABLE!$C$68:$I$320, 6, FALSE))","v":""}]
[null,{"$f":"IF(A55=\"\",\"\",VLOOKUP(A55, DATA_TABLE!$C$68:$I$321, 7, FALSE))","v":""},null,null,{"$f":"IF(A55=\"\",\"\",VLOOKUP(A55, DATA_TABLE!$C$68:$I$320, 2, FALSE))","v":""},"",0,{"$f":"IF(E55=\"\",\"\",VLOOKUP(A55, DATA_TABLE!$C$68:$I$320, 4, FALSE))","v":""},"",{"$f":"IF(A55=\"\",\"\",VLOOKUP(A55, DATA_TABLE!$C$68:$I$320, 5, FALSE))","v":""},{"$f":"IF(A55=\"\",\"\",VLOOKUP(A55, DATA_TABLE!$C$68:$I$320, 6, FALSE))","v":""}]
[null,{"$f":"IF(A56=\"\",\"\",VLOOKUP(A56, DATA_TABLE!$C$68:$I$321, 7, FALSE))","v":""},null,null,{"$f":"IF(A56=\"\",\"\",VLOOKUP(A56, DATA_TABLE!$C$68:$I$320, 2, FALSE))","v":""},"",0,{"$f":"IF(E56=\"\",\"\",VLOOKUP(A56, DATA_TABLE!$C$68:$I$320, 4, FALSE))","v":""},"",{"$f":"IF(A56=\"\",\"\",VLOOKUP(A56, DATA_TABLE!$C$68:$I$320, 5, FALSE))","v":""},{"$f":"IF(A56=\"\",\"\",VLOOKUP(A56, DATA_TABLE!$C$68:$I$320, 6, FALSE))","v":""}]
[null,{"$f":"IF(A57=\"\",\"\",VLOOKUP(A57, DATA_TABLE!$C$68:$I$321, 7, FALSE))","v":""},null,null,{"$f":"IF(A57=\"\",\"\",VLOOKUP(A57, DATA_TABLE!$C$68:$I$320, 2, FALSE))","v":""},"",0,{"$f":"IF(E57=\"\",\"\",VLOOKUP(A57, DATA_TABLE!$C$68:$I$320, 4, FALSE))","v":""},"",{"$f":"IF(A57=\"\",\"\",VLOOKUP(A57, DATA_TABLE!$C$68:$I$320, 5, FALSE))","v":""},{"$f":"IF(A57=\"\",\"\",VLOOKUP(A57, DATA_TABLE!$C$68:$I$320, 6, FALSE))","v":""}]
[null,{"$f":"IF(A58=\"\",\"\",VLOOKUP(A58, DATA_TABLE!$C$68:$I$321, 7, FALSE))","v":""},null,null,{"$f":"IF(A58=\"\",\"\",VLOOKUP(A58, DATA_TABLE!$C$68:$I$320, 2, FALSE))","v":""},"",0,{"$f":"IF(E58=\"\",\"\",VLOOKUP(A58, DATA_TABLE!$C$68:$I$320, 4, FALSE))","v":""},"",{"$f":"IF(A58=\"\",\"\",VLOOKUP(A58, DATA_TABLE!$C$68:$I$320, 5, FALSE))","v":""},{"$f":"IF(A58=\"\",\"\",VLOOKUP(A58, DATA_TABLE!$C$68:$I$320, 6, FALSE))","v":""}]
[null,{"$f":"IF(A59=\"\",\"\",VLOOKUP(A59, DATA_TABLE!$C$68:$I$321, 7, FALSE))","v":""},null,null,{"$f":"IF(A59=\"\",\"\",VLOOKUP(A59, DATA_TABLE!$C$68:$I$320, 2, FALSE))","v":""},"",0,{"$f":"IF(E59=\"\",\"\",VLOOKUP(A59, DATA_TABLE!$C$68:$I$320, 4, FALSE))","v":""},"",{"$f":"IF(A59=\"\",\"\",VLOOKUP(A59, DATA_TABLE!$C$68:$I$320, 5, FALSE))","v":""},{"$f":"IF(A59=\"\",\"\",VLOOKUP(A59, DATA_TABLE!$C$68:$I$320, 6, FALSE))","v":""}]
[null,{"$f":"IF(A60=\"\",\"\",VLOOKUP(A60, DATA_TABLE!$C$68:$I$321, 7, FALSE))","v":""},null,null,{"$f":"IF(A60=\"\",\"\",VLOOKUP(A60, DATA_TABLE!$C$68:$I$320, 2, FALSE))","v":""},"",0,{"$f":"IF(E60=\"\",\"\",VLOOKUP(A60, DATA_TABLE!$C$68:$I$320, 4, FALSE))","v":""},"",{"$f":"IF(A60=\"\",\"\",VLOOKUP(A60, DATA_TABLE!$C$68:$I$320, 5, FALSE))","v":""},{"$f":"IF(A60=\"\",\"\",VLOOKUP(A60, DATA_TABLE!$C$68:$I$320, 6, FALSE))","v":""}]
[null,{"$f":"IF(A61=\"\",\"\",VLOOKUP(A61, DATA_TABLE!$C$68:$I$321, 7, FALSE))","v":""},null,null,{"$f":"IF(A61=\"\",\"\",VLOOKUP(A61, DATA_TABLE!$C$68:$I$320, 2, FALSE))","v":""},"",0,{"$f":"IF(E61=\"\",\"\",VLOOKUP(A61, DATA_TABLE!$C$68:$I$320, 4, FALSE))","v":""},"",{"$f":"IF(A61=\"\",\"\",VLOOKUP(A61, DATA_TABLE!$C$68:$I$320, 5, FALSE))","v":""},{"$f":"IF(A61=\"\",\"\",VLOOKUP(A61, DATA_TABLE!$C$68:$I$320, 6, FALSE))","v":""}]
[null,{"$f":"IF(A62=\"\",\"\",VLOOKUP(A62, DATA_TABLE!$C$68:$I$321, 7, FALSE))","v":""},null,null,{"$f":"IF(A62=\"\",\"\",VLOOKUP(A62, DATA_TABLE!$C$68:$I$320, 2, FALSE))","v":""},"",0,{"$f":"IF(E62=\"\",\"\",VLOOKUP(A62, DATA_TABLE!$C$68:$I$320, 4, FALSE))","v":""},"",{"$f":"IF(A62=\"\",\"\",VLOOKUP(A62, DATA_TABLE!$C$68:$I$320, 5, FALSE))","v":""},{"$f":"IF(A62=\"\",\"\",VLOOKUP(A62, DATA_TABLE!$C$68:$I$320, 6, FALSE))","v":""}]
[null,{"$f":"IF(A63=\"\",\"\",VLOOKUP(A63, DATA_TABLE!$C$68:$I$321, 7, FALSE))","v":""},null,null,{"$f":"IF(A63=\"\",\"\",VLOOKUP(A63, DATA_TABLE!$C$68:$I$320, 2, FALSE))","v":""},"",0,{"$f":"IF(E63=\"\",\"\",VLOOKUP(A63, DATA_TABLE!$C$68:$I$320, 4, FALSE))","v":""},"",{"$f":"IF(A63=\"\",\"\",VLOOKUP(A63, DATA_TABLE!$C$68:$I$320, 5, FALSE))","v":""},{"$f":"IF(A63=\"\",\"\",VLOOKUP(A63, DATA_TABLE!$C$68:$I$320, 6, FALSE))","v":""}]
[null,{"$f":"IF(A64=\"\",\"\",VLOOKUP(A64, DATA_TABLE!$C$68:$I$321, 7, FALSE))","v":""},null,null,{"$f":"IF(A64=\"\",\"\",VLOOKUP(A64, DATA_TABLE!$C$68:$I$320, 2, FALSE))","v":""},"",0,{"$f":"IF(E64=\"\",\"\",VLOOKUP(A64, DATA_TABLE!$C$68:$I$320, 4, FALSE))","v":""},"",{"$f":"IF(A64=\"\",\"\",VLOOKUP(A64, DATA_TABLE!$C$68:$I$320, 5, FALSE))","v":""},{"$f":"IF(A64=\"\",\"\",VLOOKUP(A64, DATA_TABLE!$C$68:$I$320, 6, FALSE))","v":""}]
[null,{"$f":"IF(A65=\"\",\"\",VLOOKUP(A65, DATA_TABLE!$C$68:$I$321, 7, FALSE))","v":""},null,null,{"$f":"IF(A65=\"\",\"\",VLOOKUP(A65, DATA_TABLE!$C$68:$I$320, 2, FALSE))","v":""},"",0,{"$f":"IF(E65=\"\",\"\",VLOOKUP(A65, DATA_TABLE!$C$68:$I$320, 4, FALSE))","v":""},"",{"$f":"IF(A65=\"\",\"\",VLOOKUP(A65, DATA_TABLE!$C$68:$I$320, 5, FALSE))","v":""},{"$f":"IF(A65=\"\",\"\",VLOOKUP(A65, DATA_TABLE!$C$68:$I$320, 6, FALSE))","v":""}]
[null,{"$f":"IF(A66=\"\",\"\",VLOOKUP(A66, DATA_TABLE!$C$68:$I$321, 7, FALSE))","v":""},null,null,{"$f":"IF(A66=\"\",\"\",VLOOKUP(A66, DATA_TABLE!$C$68:$I$320, 2, FALSE))","v":""},"",0,{"$f":"IF(E66=\"\",\"\",VLOOKUP(A66, DATA_TABLE!$C$68:$I$320, 4, FALSE))","v":""},"",{"$f":"IF(A66=\"\",\"\",VLOOKUP(A66, DATA_TABLE!$C$68:$I$320, 5, FALSE))","v":""},{"$f":"IF(A66=\"\",\"\",VLOOKUP(A66, DATA_TABLE!$C$68:$I$320, 6, FALSE))","v":""}]
[null,{"$f":"IF(A67=\"\",\"\",VLOOKUP(A67, DATA_TABLE!$C$68:$I$321, 7, FALSE))","v":""},null,null,{"$f":"IF(A67=\"\",\"\",VLOOKUP(A67, DATA_TABLE!$C$68:$I$320, 2, FALSE))","v":""},"",0,{"$f":"IF(E67=\"\",\"\",VLOOKUP(A67, DATA_TABLE!$C$68:$I$320, 4, FALSE))","v":""},"",{"$f":"IF(A67=\"\",\"\",VLOOKUP(A67, DATA_TABLE!$C$68:$I$320, 5, FALSE))","v":""},{"$f":"IF(A67=\"\",\"\",VLOOKUP(A67, DATA_TABLE!$C$68:$I$320, 6, FALSE))","v":""}]
[null,{"$f":"IF(A68=\"\",\"\",VLOOKUP(A68, DATA_TABLE!$C$68:$I$321, 7, FALSE))","v":""},null,null,{"$f":"IF(A68=\"\",\"\",VLOOKUP(A68, DATA_TABLE!$C$68:$I$320, 2, FALSE))","v":""},{"$f":"IF(D68=\"\",\"\",(D68*E68))","v":""},0,{"$f":"IF(E68=\"\",\"\",VLOOKUP(A68, DATA_TABLE!$C$68:$I$320, 4, FALSE))","v":""},"",{"$f":"IF(A68=\"\",\"\",VLOOKUP(A68, DATA_TABLE!$C$68:$I$320, 5, FALSE))","v":""},{"$f":"IF(A68=\"\",\"\",VLOOKUP(A68, DATA_TABLE!$C$68:$I$320, 6, FALSE))","v":""}]
["Totals",null,null,{"$f":"SUM(D23:D68)","v":3.6700000000000004},null,{"$f":"SUM(F23:F68)","v":8.8532667584940334},{"$f":"SUM(G23:G68)","v":0.99999999999999978},{"$f":"SUM(H23:H68)","v":0},{"$f":"SUM(I23:I68)","v":0},null,{"$f":"IF(ISERROR(AVERAGE(K23:K68)),0,AVERAGE(K23:K68))","v":4.625}]
[]
[]
[null,null,"VALUE","Parameter"]
[null,null,{"$f":"COUNTIF(J23:J68,\"=1\")","v":4},"1 = April to May Bloom Period"]
[null,null,{"$f":"COUNTIF(J23:J68,\"=2\")","v":8},"2 = June to July Bloom Period"]
[null,null,{"$f":"COUNTIF(J23:J68,\"=3\")","v":4},"3 = August to October Bloom Period"]
[null,null,{"$f":"SUMIF($J$23:$J$68,\"1\",$G$23:$G$68)","v":0.18371661433487449},"% PLS Seeding Rate 1's"]
[null,null,{"$f":"SUMIF($J$23:$J$68,\"2\",$G$23:$G$68)","v":0.46265548169147885},"% PLS Seeding Rate 2's"]
[null,null,{"$f":"SUMIF($J$23:$J$68,\"3\",$G$23:$G$68)","v":0.35362790397364635}," % PLS Seeding Rate 3's"]
[null,null,{"$f":"COUNT(D6:D20)","v":11},"Grasses Species Richness"]
[null,null,{"$f":"COUNT(D23:D68)","v":16},"Forb/Legume Species Richness"]
[null,null,{"$f":"K21","v":4.3636363636363633},"Grasses - COC Average"]
[null,null,{"$f":"K69","v":4.625},"Forbs -COC Average"]
[null,null,{"$f":"IF(ISERROR(AVERAGE(K6:K20,K23:K68)),0,AVERAGE(K6:K20,K23:K69))","v":4.5223214285714288},"COC = Coefficient of Conservatism Combined"]
[null,null,{"$f":"$F$21+$F$69","v":29.058262167125804},"Total PLS "]
[null,null,{"$f":"(F21/(F21+F69))","v":0.69532703960149711},"PLS % Grasses"]
[null,null,{"$f":"(F69/(F21+F69))","v":0.30467296039850283},"PLS % Forbs/Legumes"]

{"sheet":"Mix_2","index":1,"n_rows":86,"n_cols":13,"rows_kept":86,"cut":false,"hidden":false,"merged":[[83,3,83,7],[84,3,84,7],[85,3,85,7],[77,3,77,7],[78,3,78,7],[79,3,79,7],[80,3,80,7],[81,3,81,7],[82,3,82,7],[76,3,76,7],[1,7,3,7],[1,8,3,8],[1,9,3,9],[1,10,3,10],[71,3,71,7],[72,3,72,7],[73,3,73,7],[74,3,74,7],[75,3,75,7],[13,12,15,12],[69,0,69,10],[0,1,0,2],[0,3,0,6],[1,0,3,0],[1,2,3,2],[1,3,3,3],[1,4,3,4],[1,5,3,5],[1,6,3,6],[8,12,11,12],[5,12,7,12],[16,12,21,12]]}
["CPA8 MIX 2 - NAME:  ",null,null,"MLRA:"]
["Species List ",null,"Variety names listed in bold are the preferred varieties","PLS LBS per acre","PLS per ft² @ 1lb/ac","PLS per ft² ","% of Grasses","Est. Cost Per Pound (PLS)","Estimated Cost Per Acre","Bloom Period","COC"]
[]
[]
["GRASSES","SCIENTIFIC NAME","Acceptable Varieties"]
[null,{"$f":"IF(A6=\"\",\"\",VLOOKUP(A6, DATA_TABLE!$C$3:$I$64, 7, FALSE))","v":""},null,null,{"$f":"IF(A6=\"\",\"\",VLOOKUP(A6, DATA_TABLE!$C$3:$I$64, 2, FALSE))","v":""},{"$f":"IF(A6=\"\",\"\",(D6*E6))","v":""},{"$f":"IF(A6>0,F6/$F$21,0)","v":0},null,{"$f":"IF(A6=\"\",\"\",(H6*D6))","v":""},null,{"$f":"IF(A6=\"\",\"\",VLOOKUP(A6, DATA_TABLE!$C$3:$I$64, 6, FALSE))","v":""},null,"Enter the grass, the appropriate varieties, and pls lbs per acre for grasses and forbs (varieties will rarely be entered for forbs)."]
[null,{"$f":"IF(A7=\"\",\"\",VLOOKUP(A7, DATA_TABLE!$C$3:$I$64, 7, FALSE))","v":""},null,null,{"$f":"IF(A7=\"\",\"\",VLOOKUP(A7, DATA_TABLE!$C$3:$I$64, 2, FALSE))","v":""},{"$f":"IF(A7=\"\",\"\",(D7*E7))","v":""},{"$f":"IF(A7>0,F7/$F$21,0)","v":0},{"$f":"IF(E7=\"\",\"\",VLOOKUP(A7, DATA_TABLE!$C$3:$I$64, 4, FALSE))","v":""},"",null,{"$f":"IF(A7=\"\",\"\",VLOOKUP(A7, DATA_TABLE!$C$3:$I$64, 6, FALSE))","v":""}]
[null,{"$f":"IF(A8=\"\",\"\",VLOOKUP(A8, DATA_TABLE!$C$3:$I$64, 7, FALSE))","v":""},null,null,{"$f":"IF(A8=\"\",\"\",VLOOKUP(A8, DATA_TABLE!$C$3:$I$64, 2, FALSE))","v":""},"",0,{"$f":"IF(E8=\"\",\"\",VLOOKUP(A8, DATA_TABLE!$C$3:$I$64, 4, FALSE))","v":""},"",null,{"$f":"IF(A8=\"\",\"\",VLOOKUP(A8, DATA_TABLE!$C$3:$I$64, 6, FALSE))","v":""}]
[null,{"$f":"IF(A9=\"\",\"\",VLOOKUP(A9, DATA_TABLE!$C$3:$I$64, 7, FALSE))","v":""},null,null,{"$f":"IF(A9=\"\",\"\",VLOOKUP(A9, DATA_TABLE!$C$3:$I$64, 2, FALSE))","v":""},"",0,{"$f":"IF(E9=\"\",\"\",VLOOKUP(A9, DATA_TABLE!$C$3:$I$64, 4, FALSE))","v":""},"",null,{"$f":"IF(A9=\"\",\"\",VLOOKUP(A9, DATA_TABLE!$C$3:$I$64, 6, FALSE))","v":""},null,"Acceptable Varieties:  See the UN-L variety guide (Certified Perennial Grass Varieties Recommended for Nebraska) for acceptable varieties for the MLRA where the seeding will occur.  "]
[null,{"$f":"IF(A10=\"\",\"\",VLOOKUP(A10, DATA_TABLE!$C$3:$I$64, 7, FALSE))","v":""},null,null,{"$f":"IF(A10=\"\",\"\",VLOOKUP(A10, DATA_TABLE!$C$3:$I$64, 2, FALSE))","v":""},"",0,{"$f":"IF(E10=\"\",\"\",VLOOKUP(A10, DATA_TABLE!$C$3:$I$64, 4, FALSE))","v":""},"",null,{"$f":"IF(A10=\"\",\"\",VLOOKUP(A10, DATA_TABLE!$C$3:$I$64, 6, FALSE))","v":""}]
[null,{"$f":"IF(A11=\"\",\"\",VLOOKUP(A11, DATA_TABLE!$C$3:$I$64, 7, FALSE))","v":""},null,null,{"$f":"IF(A11=\"\",\"\",VLOOKUP(A11, DATA_TABLE!$C$3:$I$64, 2, FALSE))","v":""},"",0,{"$f":"IF(E11=\"\",\"\",VLOOKUP(A11, DATA_TABLE!$C$3:$I$64, 4, FALSE))","v":""},"",null,{"$f":"IF(A11=\"\",\"\",VLOOKUP(A11, DATA_TABLE!$C$3:$I$64, 6, FALSE))","v":""}]
[null,{"$f":"IF(A12=\"\",\"\",VLOOKUP(A12, DATA_TABLE!$C$3:$I$64, 7, FALSE))","v":""},null,null,{"$f":"IF(A12=\"\",\"\",VLOOKUP(A12, DATA_TABLE!$C$3:$I$64, 2, FALSE))","v":""},"",0,{"$f":"IF(E12=\"\",\"\",VLOOKUP(A12, DATA_TABLE!$C$3:$I$64, 4, FALSE))","v":""},"",null,{"$f":"IF(A12=\"\",\"\",VLOOKUP(A12, DATA_TABLE!$C$3:$I$64, 6, FALSE))","v":""}]
[null,{"$f":"IF(A13=\"\",\"\",VLOOKUP(A13, DATA_TABLE!$C$3:$I$64, 7, FALSE))","v":""},null,null,{"$f":"IF(A13=\"\",\"\",VLOOKUP(A13, DATA_TABLE!$C$3:$I$64, 2, FALSE))","v":""},"",0,{"$f":"IF(E13=\"\",\"\",VLOOKUP(A13, DATA_TABLE!$C$3:$I$64, 4, FALSE))","v":""},"",null,{"$f":"IF(A13=\"\",\"\",VLOOKUP(A13, DATA_TABLE!$C$3:$I$64, 6, FALSE))","v":""},null,"http://extensionpublications.unl.edu/assets/pdf/ec120.pdf"]
[null,{"$f":"IF(A14=\"\",\"\",VLOOKUP(A14, DATA_TABLE!$C$3:$I$64, 7, FALSE))","v":""},null,null,{"$f":"IF(A14=\"\",\"\",VLOOKUP(A14, DATA_TABLE!$C$3:$I$64, 2, FALSE))","v":""},"",0,{"$f":"IF(E14=\"\",\"\",VLOOKUP(A14, DATA_TABLE!$C$3:$I$64, 4, FALSE))","v":""},"",null,{"$f":"IF(A14=\"\",\"\",VLOOKUP(A14, DATA_TABLE!$C$3:$I$64, 6, FALSE))","v":""},null,"If desired, hide the lines that are not used or are blank under by highlighting the rows, right clicking and selecting \"hide\".  Then if you print this page, the blank rows will not print."]
[null,{"$f":"IF(A15=\"\",\"\",VLOOKUP(A15, DATA_TABLE!$C$3:$I$64, 7, FALSE))","v":""},null,null,{"$f":"IF(A15=\"\",\"\",VLOOKUP(A15, DATA_TABLE!$C$3:$I$64, 2, FALSE))","v":""},"",0,{"$f":"IF(E15=\"\",\"\",VLOOKUP(A15, DATA_TABLE!$C$3:$I$64, 4, FALSE))","v":""},"",null,{"$f":"IF(A15=\"\",\"\",VLOOKUP(A15, DATA_TABLE!$C$3:$I$64, 6, FALSE))","v":""}]
[null,{"$f":"IF(A16=\"\",\"\",VLOOKUP(A16, DATA_TABLE!$C$3:$I$64, 7, FALSE))","v":""},null,null,{"$f":"IF(A16=\"\",\"\",VLOOKUP(A16, DATA_TABLE!$C$3:$I$64, 2, FALSE))","v":""},"",0,{"$f":"IF(E16=\"\",\"\",VLOOKUP(A16, DATA_TABLE!$C$3:$I$64, 4, FALSE))","v":""},"",null,{"$f":"IF(A16=\"\",\"\",VLOOKUP(A16, DATA_TABLE!$C$3:$I$64, 6, FALSE))","v":""}]
[null,{"$f":"IF(A17=\"\",\"\",VLOOKUP(A17, DATA_TABLE!$C$3:$I$64, 7, FALSE))","v":""},null,null,{"$f":"IF(A17=\"\",\"\",VLOOKUP(A17, DATA_TABLE!$C$3:$I$64, 2, FALSE))","v":""},"",0,{"$f":"IF(E17=\"\",\"\",VLOOKUP(A17, DATA_TABLE!$C$3:$I$64, 4, FALSE))","v":""},"",null,{"$f":"IF(A17=\"\",\"\",VLOOKUP(A17, DATA_TABLE!$C$3:$I$64, 6, FALSE))","v":""},null,"Note:  If you have mixes from older seeding sheets, you can copy and paste rather than use the dropdowns.  Since this workbook uses standardized names from Flora of Nebraska, any names in the old workbook that do not conform with the standard names may not copy and you will need to manually enter those species."]
[null,{"$f":"IF(A18=\"\",\"\",VLOOKUP(A18, DATA_TABLE!$C$3:$I$64, 7, FALSE))","v":""},null,null,{"$f":"IF(A18=\"\",\"\",VLOOKUP(A18, DATA_TABLE!$C$3:$I$64, 2, FALSE))","v":""},"",0,{"$f":"IF(E18=\"\",\"\",VLOOKUP(A18, DATA_TABLE!$C$3:$I$64, 4, FALSE))","v":""},"",null,{"$f":"IF(A18=\"\",\"\",VLOOKUP(A18, DATA_TABLE!$C$3:$I$64, 6, FALSE))","v":""}]
[null,{"$f":"IF(A19=\"\",\"\",VLOOKUP(A19, DATA_TABLE!$C$3:$I$64, 7, FALSE))","v":""},null,null,{"$f":"IF(A19=\"\",\"\",VLOOKUP(A19, DATA_TABLE!$C$3:$I$64, 2, FALSE))","v":""},"",0,{"$f":"IF(E19=\"\",\"\",VLOOKUP(A19, DATA_TABLE!$C$3:$I$64, 4, FALSE))","v":""},"",null,{"$f":"IF(A19=\"\",\"\",VLOOKUP(A19, DATA_TABLE!$C$3:$I$64, 6, FALSE))","v":""}]
[null,{"$f":"IF(A20=\"\",\"\",VLOOKUP(A20, DATA_TABLE!$C$3:$I$64, 7, FALSE))","v":""},null,null,{"$f":"IF(A20=\"\",\"\",VLOOKUP(A20, DATA_TABLE!$C$3:$I$64, 2, FALSE))","v":""},"",0,{"$f":"IF(E20=\"\",\"\",VLOOKUP(A20, DATA_TABLE!$C$3:$I$64, 4, FALSE))","v":""},"",null,{"$f":"IF(A20=\"\",\"\",VLOOKUP(A20, DATA_TABLE!$C$3:$I$64, 6, FALSE))","v":""}]
["Totals",null,null,{"$f":"SUM(D6:D20)","v":0},null,{"$f":"SUM(F6:F20)","v":0},{"$f":"SUM(G6:G20)","v":0},{"$f":"SUM(H6:H20)","v":0},{"$f":"SUM(I6:I20)","v":0},null,{"$f":"IF(ISERROR(AVERAGE(K6:K20)),0,AVERAGE(K6:K20))","v":0}]
["FORBS & LEGUMES","SCIENTIFIC NAME",null,"PLS LBS per acre","PLS per ft² @ 1lb/ac","PLS per ft² ","% of Forbs","Est. Cost Per Pound (PLS)","Estimated Cost Per Acre","Bloom Period","COC"]
[null,{"$f":"IF(A23=\"\",\"\",VLOOKUP(A23, DATA_TABLE!$C$68:$I$321, 7, FALSE))","v":""},null,null,{"$f":"IF(A23=\"\",\"\",VLOOKUP(A23, DATA_TABLE!$C$68:$I$320, 2, FALSE))","v":""},{"$f":"IF(D23=\"\",\"\",(D23*E23))","v":""},{"$f":"IF(D23>0,F23/$F$69,0)","v":0},null,{"$f":"IF(A23=\"\",\"\",(H23*D23))","v":""},{"$f":"IF(A23=\"\",\"\",VLOOKUP(A23, DATA_TABLE!$C$68:$I$320, 5, FALSE))","v":""},{"$f":"IF(A23=\"\",\"\",VLOOKUP(A23, DATA_TABLE!$C$68:$I$320, 6, FALSE))","v":""}]
[null,{"$f":"IF(A24=\"\",\"\",VLOOKUP(A24, DATA_TABLE!$C$68:$I$321, 7, FALSE))","v":""},null,null,{"$f":"IF(A24=\"\",\"\",VLOOKUP(A24, DATA_TABLE!$C$68:$I$320, 2, FALSE))","v":""},{"$f":"IF(D24=\"\",\"\",(D24*E24))","v":""},0,null,"",{"$f":"IF(A24=\"\",\"\",VLOOKUP(A24, DATA_TABLE!$C$68:$I$320, 5, FALSE))","v":""},{"$f":"IF(A24=\"\",\"\",VLOOKUP(A24, DATA_TABLE!$C$68:$I$320, 6, FALSE))","v":""}]
[null,{"$f":"IF(A25=\"\",\"\",VLOOKUP(A25, DATA_TABLE!$C$68:$I$321, 7, FALSE))","v":""},null,null,{"$f":"IF(A25=\"\",\"\",VLOOKUP(A25, DATA_TABLE!$C$68:$I$320, 2, FALSE))","v":""},"",0,null,"",{"$f":"IF(A25=\"\",\"\",VLOOKUP(A25, DATA_TABLE!$C$68:$I$320, 5, FALSE))","v":""},{"$f":"IF(A25=\"\",\"\",VLOOKUP(A25, DATA_TABLE!$C$68:$I$320, 6, FALSE))","v":""}]
[null,{"$f":"IF(A26=\"\",\"\",VLOOKUP(A26, DATA_TABLE!$C$68:$I$321, 7, FALSE))","v":""},null,null,{"$f":"IF(A26=\"\",\"\",VLOOKUP(A26, DATA_TABLE!$C$68:$I$320, 2, FALSE))","v":""},"",0,{"$f":"IF(E26=\"\",\"\",VLOOKUP(A26, DATA_TABLE!$C$68:$I$320, 4, FALSE))","v":""},"",{"$f":"IF(A26=\"\",\"\",VLOOKUP(A26, DATA_TABLE!$C$68:$I$320, 5, FALSE))","v":""},{"$f":"IF(A26=\"\",\"\",VLOOKUP(A26, DATA_TABLE!$C$68:$I$320, 6, FALSE))","v":""}]
[null,{"$f":"IF(A27=\"\",\"\",VLOOKUP(A27, DATA_TABLE!$C$68:$I$321, 7, FALSE))","v":""},null,null,{"$f":"IF(A27=\"\",\"\",VLOOKUP(A27, DATA_TABLE!$C$68:$I$320, 2, FALSE))","v":""},"",0,{"$f":"IF(E27=\"\",\"\",VLOOKUP(A27, DATA_TABLE!$C$68:$I$320, 4, FALSE))","v":""},"",{"$f":"IF(A27=\"\",\"\",VLOOKUP(A27, DATA_TABLE!$C$68:$I$320, 5, FALSE))","v":""},{"$f":"IF(A27=\"\",\"\",VLOOKUP(A27, DATA_TABLE!$C$68:$I$320, 6, FALSE))","v":""}]
[null,{"$f":"IF(A28=\"\",\"\",VLOOKUP(A28, DATA_TABLE!$C$68:$I$321, 7, FALSE))","v":""},null,null,{"$f":"IF(A28=\"\",\"\",VLOOKUP(A28, DATA_TABLE!$C$68:$I$320, 2, FALSE))","v":""},"",0,{"$f":"IF(E28=\"\",\"\",VLOOKUP(A28, DATA_TABLE!$C$68:$I$320, 4, FALSE))","v":""},"",{"$f":"IF(A28=\"\",\"\",VLOOKUP(A28, DATA_TABLE!$C$68:$I$320, 5, FALSE))","v":""},{"$f":"IF(A28=\"\",\"\",VLOOKUP(A28, DATA_TABLE!$C$68:$I$320, 6, FALSE))","v":""}]
[null,{"$f":"IF(A29=\"\",\"\",VLOOKUP(A29, DATA_TABLE!$C$68:$I$321, 7, FALSE))","v":""},null,null,{"$f":"IF(A29=\"\",\"\",VLOOKUP(A29, DATA_TABLE!$C$68:$I$320, 2, FALSE))","v":""},"",0,{"$f":"IF(E29=\"\",\"\",VLOOKUP(A29, DATA_TABLE!$C$68:$I$320, 4, FALSE))","v":""},"",{"$f":"IF(A29=\"\",\"\",VLOOKUP(A29, DATA_TABLE!$C$68:$I$320, 5, FALSE))","v":""},{"$f":"IF(A29=\"\",\"\",VLOOKUP(A29, DATA_TABLE!$C$68:$I$320, 6, FALSE))","v":""}]
[null,{"$f":"IF(A30=\"\",\"\",VLOOKUP(A30, DATA_TABLE!$C$68:$I$321, 7, FALSE))","v":""},null,null,{"$f":"IF(A30=\"\",\"\",VLOOKUP(A30, DATA_TABLE!$C$68:$I$320, 2, FALSE))","v":""},"",0,{"$f":"IF(E30=\"\",\"\",VLOOKUP(A30, DATA_TABLE!$C$68:$I$320, 4, FALSE))","v":""},"",{"$f":"IF(A30=\"\",\"\",VLOOKUP(A30, DATA_TABLE!$C$68:$I$320, 5, FALSE))","v":""},{"$f":"IF(A30=\"\",\"\",VLOOKUP(A30, DATA_TABLE!$C$68:$I$320, 6, FALSE))","v":""}]
[null,{"$f":"IF(A31=\"\",\"\",VLOOKUP(A31, DATA_TABLE!$C$68:$I$321, 7, FALSE))","v":""},null,null,{"$f":"IF(A31=\"\",\"\",VLOOKUP(A31, DATA_TABLE!$C$68:$I$320, 2, FALSE))","v":""},"",0,{"$f":"IF(E31=\"\",\"\",VLOOKUP(A31, DATA_TABLE!$C$68:$I$320, 4, FALSE))","v":""},"",{"$f":"IF(A31=\"\",\"\",VLOOKUP(A31, DATA_TABLE!$C$68:$I$320, 5, FALSE))","v":""},{"$f":"IF(A31=\"\",\"\",VLOOKUP(A31, DATA_TABLE!$C$68:$I$320, 6, FALSE))","v":""}]
[null,{"$f":"IF(A32=\"\",\"\",VLOOKUP(A32, DATA_TABLE!$C$68:$I$321, 7, FALSE))","v":""},null,null,{"$f":"IF(A32=\"\",\"\",VLOOKUP(A32, DATA_TABLE!$C$68:$I$320, 2, FALSE))","v":""},"",0,{"$f":"IF(E32=\"\",\"\",VLOOKUP(A32, DATA_TABLE!$C$68:$I$320, 4, FALSE))","v":""},"",{"$f":"IF(A32=\"\",\"\",VLOOKUP(A32, DATA_TABLE!$C$68:$I$320, 5, FALSE))","v":""},{"$f":"IF(A32=\"\",\"\",VLOOKUP(A32, DATA_TABLE!$C$68:$I$320, 6, FALSE))","v":""}]
[null,{"$f":"IF(A33=\"\",\"\",VLOOKUP(A33, DATA_TABLE!$C$68:$I$321, 7, FALSE))","v":""},null,null,{"$f":"IF(A33=\"\",\"\",VLOOKUP(A33, DATA_TABLE!$C$68:$I$320, 2, FALSE))","v":""},"",0,{"$f":"IF(E33=\"\",\"\",VLOOKUP(A33, DATA_TABLE!$C$68:$I$320, 4, FALSE))","v":""},"",{"$f":"IF(A33=\"\",\"\",VLOOKUP(A33, DATA_TABLE!$C$68:$I$320, 5, FALSE))","v":""},{"$f":"IF(A33=\"\",\"\",VLOOKUP(A33, DATA_TABLE!$C$68:$I$320, 6, FALSE))","v":""}]
[null,{"$f":"IF(A34=\"\",\"\",VLOOKUP(A34, DATA_TABLE!$C$68:$I$321, 7, FALSE))","v":""},null,null,{"$f":"IF(A34=\"\",\"\",VLOOKUP(A34, DATA_TABLE!$C$68:$I$320, 2, FALSE))","v":""},"",0,{"$f":"IF(E34=\"\",\"\",VLOOKUP(A34, DATA_TABLE!$C$68:$I$320, 4, FALSE))","v":""},"",{"$f":"IF(A34=\"\",\"\",VLOOKUP(A34, DATA_TABLE!$C$68:$I$320, 5, FALSE))","v":""},{"$f":"IF(A34=\"\",\"\",VLOOKUP(A34, DATA_TABLE!$C$68:$I$320, 6, FALSE))","v":""}]
[null,{"$f":"IF(A35=\"\",\"\",VLOOKUP(A35, DATA_TABLE!$C$68:$I$321, 7, FALSE))","v":""},null,null,{"$f":"IF(A35=\"\",\"\",VLOOKUP(A35, DATA_TABLE!$C$68:$I$320, 2, FALSE))","v":""},"",0,{"$f":"IF(E35=\"\",\"\",VLOOKUP(A35, DATA_TABLE!$C$68:$I$320, 4, FALSE))","v":""},"",{"$f":"IF(A35=\"\",\"\",VLOOKUP(A35, DATA_TABLE!$C$68:$I$320, 5, FALSE))","v":""},{"$f":"IF(A35=\"\",\"\",VLOOKUP(A35, DATA_TABLE!$C$68:$I$320, 6, FALSE))","v":""}]
[null,{"$f":"IF(A36=\"\",\"\",VLOOKUP(A36, DATA_TABLE!$C$68:$I$321, 7, FALSE))","v":""},null,null,{"$f":"IF(A36=\"\",\"\",VLOOKUP(A36, DATA_TABLE!$C$68:$I$320, 2, FALSE))","v":""},"",0,{"$f":"IF(E36=\"\",\"\",VLOOKUP(A36, DATA_TABLE!$C$68:$I$320, 4, FALSE))","v":""},"",{"$f":"IF(A36=\"\",\"\",VLOOKUP(A36, DATA_TABLE!$C$68:$I$320, 5, FALSE))","v":""},{"$f":"IF(A36=\"\",\"\",VLOOKUP(A36, DATA_TABLE!$C$68:$I$320, 6, FALSE))","v":""}]
[null,{"$f":"IF(A37=\"\",\"\",VLOOKUP(A37, DATA_TABLE!$C$68:$I$321, 7, FALSE))","v":""},null,null,{"$f":"IF(A37=\"\",\"\",VLOOKUP(A37, DATA_TABLE!$C$68:$I$320, 2, FALSE))","v":""},"",0,{"$f":"IF(E37=\"\",\"\",VLOOKUP(A37, DATA_TABLE!$C$68:$I$320, 4, FALSE))","v":""},"",{"$f":"IF(A37=\"\",\"\",VLOOKUP(A37, DATA_TABLE!$C$68:$I$320, 5, FALSE))","v":""},{"$f":"IF(A37=\"\",\"\",VLOOKUP(A37, DATA_TABLE!$C$68:$I$320, 6, FALSE))","v":""}]
[null,{"$f":"IF(A38=\"\",\"\",VLOOKUP(A38, DATA_TABLE!$C$68:$I$321, 7, FALSE))","v":""},null,null,{"$f":"IF(A38=\"\",\"\",VLOOKUP(A38, DATA_TABLE!$C$68:$I$320, 2, FALSE))","v":""},"",0,{"$f":"IF(E38=\"\",\"\",VLOOKUP(A38, DATA_TABLE!$C$68:$I$320, 4, FALSE))","v":""},"",{"$f":"IF(A38=\"\",\"\",VLOOKUP(A38, DATA_TABLE!$C$68:$I$320, 5, FALSE))","v":""},{"$f":"IF(A38=\"\",\"\",VLOOKUP(A38, DATA_TABLE!$C$68:$I$320, 6, FALSE))","v":""}]
[null,{"$f":"IF(A39=\"\",\"\",VLOOKUP(A39, DATA_TABLE!$C$68:$I$321, 7, FALSE))","v":""},null,null,{"$f":"IF(A39=\"\",\"\",VLOOKUP(A39, DATA_TABLE!$C$68:$I$320, 2, FALSE))","v":""},"",0,{"$f":"IF(E39=\"\",\"\",VLOOKUP(A39, DATA_TABLE!$C$68:$I$320, 4, FALSE))","v":""},"",{"$f":"IF(A39=\"\",\"\",VLOOKUP(A39, DATA_TABLE!$C$68:$I$320, 5, FALSE))","v":""},{"$f":"IF(A39=\"\",\"\",VLOOKUP(A39, DATA_TABLE!$C$68:$I$320, 6, FALSE))","v":""}]
[null,{"$f":"IF(A40=\"\",\"\",VLOOKUP(A40, DATA_TABLE!$C$68:$I$321, 7, FALSE))","v":""},null,null,{"$f":"IF(A40=\"\",\"\",VLOOKUP(A40, DATA_TABLE!$C$68:$I$320, 2, FALSE))","v":""},"",0,{"$f":"IF(E40=\"\",\"\",VLOOKUP(A40, DATA_TABLE!$C$68:$I$320, 4, FALSE))","v":""},"",{"$f":"IF(A40=\"\",\"\",VLOOKUP(A40, DATA_TABLE!$C$68:$I$320, 5, FALSE))","v":""},{"$f":"IF(A40=\"\",\"\",VLOOKUP(A40, DATA_TABLE!$C$68:$I$320, 6, FALSE))","v":""}]
[null,{"$f":"IF(A41=\"\",\"\",VLOOKUP(A41, DATA_TABLE!$C$68:$I$321, 7, FALSE))","v":""},null,null,{"$f":"IF(A41=\"\",\"\",VLOOKUP(A41, DATA_TABLE!$C$68:$I$320, 2, FALSE))","v":""},"",0,{"$f":"IF(E41=\"\",\"\",VLOOKUP(A41, DATA_TABLE!$C$68:$I$320, 4, FALSE))","v":""},"",{"$f":"IF(A41=\"\",\"\",VLOOKUP(A41, DATA_TABLE!$C$68:$I$320, 5, FALSE))","v":""},{"$f":"IF(A41=\"\",\"\",VLOOKUP(A41, DATA_TABLE!$C$68:$I$320, 6, FALSE))","v":""}]
[null,{"$f":"IF(A42=\"\",\"\",VLOOKUP(A42, DATA_TABLE!$C$68:$I$321, 7, FALSE))","v":""},null,null,{"$f":"IF(A42=\"\",\"\",VLOOKUP(A42, DATA_TABLE!$C$68:$I$320, 2, FALSE))","v":""},"",0,{"$f":"IF(E42=\"\",\"\",VLOOKUP(A42, DATA_TABLE!$C$68:$I$320, 4, FALSE))","v":""},"",{"$f":"IF(A42=\"\",\"\",VLOOKUP(A42, DATA_TABLE!$C$68:$I$320, 5, FALSE))","v":""},{"$f":"IF(A42=\"\",\"\",VLOOKUP(A42, DATA_TABLE!$C$68:$I$320, 6, FALSE))","v":""}]
[null,{"$f":"IF(A43=\"\",\"\",VLOOKUP(A43, DATA_TABLE!$C$68:$I$321, 7, FALSE))","v":""},null,null,{"$f":"IF(A43=\"\",\"\",VLOOKUP(A43, DATA_TABLE!$C$68:$I$320, 2, FALSE))","v":""},"",0,{"$f":"IF(E43=\"\",\"\",VLOOKUP(A43, DATA_TABLE!$C$68:$I$320, 4, FALSE))","v":""},"",{"$f":"IF(A43=\"\",\"\",VLOOKUP(A43, DATA_TABLE!$C$68:$I$320, 5, FALSE))","v":""},{"$f":"IF(A43=\"\",\"\",VLOOKUP(A43, DATA_TABLE!$C$68:$I$320, 6, FALSE))","v":""}]
[null,{"$f":"IF(A44=\"\",\"\",VLOOKUP(A44, DATA_TABLE!$C$68:$I$321, 7, FALSE))","v":""},null,null,{"$f":"IF(A44=\"\",\"\",VLOOKUP(A44, DATA_TABLE!$C$68:$I$320, 2, FALSE))","v":""},"",0,{"$f":"IF(E44=\"\",\"\",VLOOKUP(A44, DATA_TABLE!$C$68:$I$320, 4, FALSE))","v":""},"",{"$f":"IF(A44=\"\",\"\",VLOOKUP(A44, DATA_TABLE!$C$68:$I$320, 5, FALSE))","v":""},{"$f":"IF(A44=\"\",\"\",VLOOKUP(A44, DATA_TABLE!$C$68:$I$320, 6, FALSE))","v":""}]
[null,{"$f":"IF(A45=\"\",\"\",VLOOKUP(A45, DATA_TABLE!$C$68:$I$321, 7, FALSE))","v":""},null,null,{"$f":"IF(A45=\"\",\"\",VLOOKUP(A45, DATA_TABLE!$C$68:$I$320, 2, FALSE))","v":""},"",0,{"$f":"IF(E45=\"\",\"\",VLOOKUP(A45, DATA_TABLE!$C$68:$I$320, 4, FALSE))","v":""},"",{"$f":"IF(A45=\"\",\"\",VLOOKUP(A45, DATA_TABLE!$C$68:$I$320, 5, FALSE))","v":""},{"$f":"IF(A45=\"\",\"\",VLOOKUP(A45, DATA_TABLE!$C$68:$I$320, 6, FALSE))","v":""}]
[null,{"$f":"IF(A46=\"\",\"\",VLOOKUP(A46, DATA_TABLE!$C$68:$I$321, 7, FALSE))","v":""},null,null,{"$f":"IF(A46=\"\",\"\",VLOOKUP(A46, DATA_TABLE!$C$68:$I$320, 2, FALSE))","v":""},"",0,{"$f":"IF(E46=\"\",\"\",VLOOKUP(A46, DATA_TABLE!$C$68:$I$320, 4, FALSE))","v":""},"",{"$f":"IF(A46=\"\",\"\",VLOOKUP(A46, DATA_TABLE!$C$68:$I$320, 5, FALSE))","v":""},{"$f":"IF(A46=\"\",\"\",VLOOKUP(A46, DATA_TABLE!$C$68:$I$320, 6, FALSE))","v":""}]
[null,{"$f":"IF(A47=\"\",\"\",VLOOKUP(A47, DATA_TABLE!$C$68:$I$321, 7, FALSE))","v":""},null,null,{"$f":"IF(A47=\"\",\"\",VLOOKUP(A47, DATA_TABLE!$C$68:$I$320, 2, FALSE))","v":""},"",0,{"$f":"IF(E47=\"\",\"\",VLOOKUP(A47, DATA_TABLE!$C$68:$I$320, 4, FALSE))","v":""},"",{"$f":"IF(A47=\"\",\"\",VLOOKUP(A47, DATA_TABLE!$C$68:$I$320, 5, FALSE))","v":""},{"$f":"IF(A47=\"\",\"\",VLOOKUP(A47, DATA_TABLE!$C$68:$I$320, 6, FALSE))","v":""}]
[null,{"$f":"IF(A48=\"\",\"\",VLOOKUP(A48, DATA_TABLE!$C$68:$I$321, 7, FALSE))","v":""},null,null,{"$f":"IF(A48=\"\",\"\",VLOOKUP(A48, DATA_TABLE!$C$68:$I$320, 2, FALSE))","v":""},"",0,{"$f":"IF(E48=\"\",\"\",VLOOKUP(A48, DATA_TABLE!$C$68:$I$320, 4, FALSE))","v":""},"",{"$f":"IF(A48=\"\",\"\",VLOOKUP(A48, DATA_TABLE!$C$68:$I$320, 5, FALSE))","v":""},{"$f":"IF(A48=\"\",\"\",VLOOKUP(A48, DATA_TABLE!$C$68:$I$320, 6, FALSE))","v":""}]
[null,{"$f":"IF(A49=\"\",\"\",VLOOKUP(A49, DATA_TABLE!$C$68:$I$321, 7, FALSE))","v":""},null,null,{"$f":"IF(A49=\"\",\"\",VLOOKUP(A49, DATA_TABLE!$C$68:$I$320, 2, FALSE))","v":""},"",0,{"$f":"IF(E49=\"\",\"\",VLOOKUP(A49, DATA_TABLE!$C$68:$I$320, 4, FALSE))","v":""},"",{"$f":"IF(A49=\"\",\"\",VLOOKUP(A49, DATA_TABLE!$C$68:$I$320, 5, FALSE))","v":""},{"$f":"IF(A49=\"\",\"\",VLOOKUP(A49, DATA_TABLE!$C$68:$I$320, 6, FALSE))","v":""}]
[null,{"$f":"IF(A50=\"\",\"\",VLOOKUP(A50, DATA_TABLE!$C$68:$I$321, 7, FALSE))","v":""},null,null,{"$f":"IF(A50=\"\",\"\",VLOOKUP(A50, DATA_TABLE!$C$68:$I$320, 2, FALSE))","v":""},"",0,{"$f":"IF(E50=\"\",\"\",VLOOKUP(A50, DATA_TABLE!$C$68:$I$320, 4, FALSE))","v":""},"",{"$f":"IF(A50=\"\",\"\",VLOOKUP(A50, DATA_TABLE!$C$68:$I$320, 5, FALSE))","v":""},{"$f":"IF(A50=\"\",\"\",VLOOKUP(A50, DATA_TABLE!$C$68:$I$320, 6, FALSE))","v":""}]
[null,{"$f":"IF(A51=\"\",\"\",VLOOKUP(A51, DATA_TABLE!$C$68:$I$321, 7, FALSE))","v":""},null,null,{"$f":"IF(A51=\"\",\"\",VLOOKUP(A51, DATA_TABLE!$C$68:$I$320, 2, FALSE))","v":""},"",0,{"$f":"IF(E51=\"\",\"\",VLOOKUP(A51, DATA_TABLE!$C$68:$I$320, 4, FALSE))","v":""},"",{"$f":"IF(A51=\"\",\"\",VLOOKUP(A51, DATA_TABLE!$C$68:$I$320, 5, FALSE))","v":""},{"$f":"IF(A51=\"\",\"\",VLOOKUP(A51, DATA_TABLE!$C$68:$I$320, 6, FALSE))","v":""}]
[null,{"$f":"IF(A52=\"\",\"\",VLOOKUP(A52, DATA_TABLE!$C$68:$I$321, 7, FALSE))","v":""},null,null,{"$f":"IF(A52=\"\",\"\",VLOOKUP(A52, DATA_TABLE!$C$68:$I$320, 2, FALSE))","v":""},"",0,{"$f":"IF(E52=\"\",\"\",VLOOKUP(A52, DATA_TABLE!$C$68:$I$320, 4, FALSE))","v":""},"",{"$f":"IF(A52=\"\",\"\",VLOOKUP(A52, DATA_TABLE!$C$68:$I$320, 5, FALSE))","v":""},{"$f":"IF(A52=\"\",\"\",VLOOKUP(A52, DATA_TABLE!$C$68:$I$320, 6, FALSE))","v":""}]
[null,{"$f":"IF(A53=\"\",\"\",VLOOKUP(A53, DATA_TABLE!$C$68:$I$321, 7, FALSE))","v":""},null,null,{"$f":"IF(A53=\"\",\"\",VLOOKUP(A53, DATA_TABLE!$C$68:$I$320, 2, FALSE))","v":""},"",0,{"$f":"IF(E53=\"\",\"\",VLOOKUP(A53, DATA_TABLE!$C$68:$I$320, 4, FALSE))","v":""},"",{"$f":"IF(A53=\"\",\"\",VLOOKUP(A53, DATA_TABLE!$C$68:$I$320, 5, FALSE))","v":""},{"$f":"IF(A53=\"\",\"\",VLOOKUP(A53, DATA_TABLE!$C$68:$I$320, 6, FALSE))","v":""}]
[null,{"$f":"IF(A54=\"\",\"\",VLOOKUP(A54, DATA_TABLE!$C$68:$I$321, 7, FALSE))","v":""},null,null,{"$f":"IF(A54=\"\",\"\",VLOOKUP(A54, DATA_TABLE!$C$68:$I$320, 2, FALSE))","v":""},"",0,{"$f":"IF(E54=\"\",\"\",VLOOKUP(A54, DATA_TABLE!$C$68:$I$320, 4, FALSE))","v":""},"",{"$f":"IF(A54=\"\",\"\",VLOOKUP(A54, DATA_TABLE!$C$68:$I$320, 5, FALSE))","v":""},{"$f":"IF(A54=\"\",\"\",VLOOKUP(A54, DATA_TABLE!$C$68:$I$320, 6, FALSE))","v":""}]
[null,{"$f":"IF(A55=\"\",\"\",VLOOKUP(A55, DATA_TABLE!$C$68:$I$321, 7, FALSE))","v":""},null,null,{"$f":"IF(A55=\"\",\"\",VLOOKUP(A55, DATA_TABLE!$C$68:$I$320, 2, FALSE))","v":""},"",0,{"$f":"IF(E55=\"\",\"\",VLOOKUP(A55, DATA_TABLE!$C$68:$I$320, 4, FALSE))","v":""},"",{"$f":"IF(A55=\"\",\"\",VLOOKUP(A55, DATA_TABLE!$C$68:$I$320, 5, FALSE))","v":""},{"$f":"IF(A55=\"\",\"\",VLOOKUP(A55, DATA_TABLE!$C$68:$I$320, 6, FALSE))","v":""}]
[null,{"$f":"IF(A56=\"\",\"\",VLOOKUP(A56, DATA_TABLE!$C$68:$I$321, 7, FALSE))","v":""},null,null,{"$f":"IF(A56=\"\",\"\",VLOOKUP(A56, DATA_TABLE!$C$68:$I$320, 2, FALSE))","v":""},"",0,{"$f":"IF(E56=\"\",\"\",VLOOKUP(A56, DATA_TABLE!$C$68:$I$320, 4, FALSE))","v":""},"",{"$f":"IF(A56=\"\",\"\",VLOOKUP(A56, DATA_TABLE!$C$68:$I$320, 5, FALSE))","v":""},{"$f":"IF(A56=\"\",\"\",VLOOKUP(A56, DATA_TABLE!$C$68:$I$320, 6, FALSE))","v":""}]
[null,{"$f":"IF(A57=\"\",\"\",VLOOKUP(A57, DATA_TABLE!$C$68:$I$321, 7, FALSE))","v":""},null,null,{"$f":"IF(A57=\"\",\"\",VLOOKUP(A57, DATA_TABLE!$C$68:$I$320, 2, FALSE))","v":""},"",0,{"$f":"IF(E57=\"\",\"\",VLOOKUP(A57, DATA_TABLE!$C$68:$I$320, 4, FALSE))","v":""},"",{"$f":"IF(A57=\"\",\"\",VLOOKUP(A57, DATA_TABLE!$C$68:$I$320, 5, FALSE))","v":""},{"$f":"IF(A57=\"\",\"\",VLOOKUP(A57, DATA_TABLE!$C$68:$I$320, 6, FALSE))","v":""}]
[null,{"$f":"IF(A58=\"\",\"\",VLOOKUP(A58, DATA_TABLE!$C$68:$I$321, 7, FALSE))","v":""},null,null,{"$f":"IF(A58=\"\",\"\",VLOOKUP(A58, DATA_TABLE!$C$68:$I$320, 2, FALSE))","v":""},"",0,{"$f":"IF(E58=\"\",\"\",VLOOKUP(A58, DATA_TABLE!$C$68:$I$320, 4, FALSE))","v":""},"",{"$f":"IF(A58=\"\",\"\",VLOOKUP(A58, DATA_TABLE!$C$68:$I$320, 5, FALSE))","v":""},{"$f":"IF(A58=\"\",\"\",VLOOKUP(A58, DATA_TABLE!$C$68:$I$320, 6, FALSE))","v":""}]
[null,{"$f":"IF(A59=\"\",\"\",VLOOKUP(A59, DATA_TABLE!$C$68:$I$321, 7, FALSE))","v":""},null,null,{"$f":"IF(A59=\"\",\"\",VLOOKUP(A59, DATA_TABLE!$C$68:$I$320, 2, FALSE))","v":""},"",0,{"$f":"IF(E59=\"\",\"\",VLOOKUP(A59, DATA_TABLE!$C$68:$I$320, 4, FALSE))","v":""},"",{"$f":"IF(A59=\"\",\"\",VLOOKUP(A59, DATA_TABLE!$C$68:$I$320, 5, FALSE))","v":""},{"$f":"IF(A59=\"\",\"\",VLOOKUP(A59, DATA_TABLE!$C$68:$I$320, 6, FALSE))","v":""}]
[null,{"$f":"IF(A60=\"\",\"\",VLOOKUP(A60, DATA_TABLE!$C$68:$I$321, 7, FALSE))","v":""},null,null,{"$f":"IF(A60=\"\",\"\",VLOOKUP(A60, DATA_TABLE!$C$68:$I$320, 2, FALSE))","v":""},"",0,{"$f":"IF(E60=\"\",\"\",VLOOKUP(A60, DATA_TABLE!$C$68:$I$320, 4, FALSE))","v":""},"",{"$f":"IF(A60=\"\",\"\",VLOOKUP(A60, DATA_TABLE!$C$68:$I$320, 5, FALSE))","v":""},{"$f":"IF(A60=\"\",\"\",VLOOKUP(A60, DATA_TABLE!$C$68:$I$320, 6, FALSE))","v":""}]
[null,{"$f":"IF(A61=\"\",\"\",VLOOKUP(A61, DATA_TABLE!$C$68:$I$321, 7, FALSE))","v":""},null,null,{"$f":"IF(A61=\"\",\"\",VLOOKUP(A61, DATA_TABLE!$C$68:$I$320, 2, FALSE))","v":""},"",0,{"$f":"IF(E61=\"\",\"\",VLOOKUP(A61, DATA_TABLE!$C$68:$I$320, 4, FALSE))","v":""},"",{"$f":"IF(A61=\"\",\"\",VLOOKUP(A61, DATA_TABLE!$C$68:$I$320, 5, FALSE))","v":""},{"$f":"IF(A61=\"\",\"\",VLOOKUP(A61, DATA_TABLE!$C$68:$I$320, 6, FALSE))","v":""}]
[null,{"$f":"IF(A62=\"\",\"\",VLOOKUP(A62, DATA_TABLE!$C$68:$I$321, 7, FALSE))","v":""},null,null,{"$f":"IF(A62=\"\",\"\",VLOOKUP(A62, DATA_TABLE!$C$68:$I$320, 2, FALSE))","v":""},"",0,{"$f":"IF(E62=\"\",\"\",VLOOKUP(A62, DATA_TABLE!$C$68:$I$320, 4, FALSE))","v":""},"",{"$f":"IF(A62=\"\",\"\",VLOOKUP(A62, DATA_TABLE!$C$68:$I$320, 5, FALSE))","v":""},{"$f":"IF(A62=\"\",\"\",VLOOKUP(A62, DATA_TABLE!$C$68:$I$320, 6, FALSE))","v":""}]
[null,{"$f":"IF(A63=\"\",\"\",VLOOKUP(A63, DATA_TABLE!$C$68:$I$321, 7, FALSE))","v":""},null,null,{"$f":"IF(A63=\"\",\"\",VLOOKUP(A63, DATA_TABLE!$C$68:$I$320, 2, FALSE))","v":""},"",0,{"$f":"IF(E63=\"\",\"\",VLOOKUP(A63, DATA_TABLE!$C$68:$I$320, 4, FALSE))","v":""},"",{"$f":"IF(A63=\"\",\"\",VLOOKUP(A63, DATA_TABLE!$C$68:$I$320, 5, FALSE))","v":""},{"$f":"IF(A63=\"\",\"\",VLOOKUP(A63, DATA_TABLE!$C$68:$I$320, 6, FALSE))","v":""}]
[null,{"$f":"IF(A64=\"\",\"\",VLOOKUP(A64, DATA_TABLE!$C$68:$I$321, 7, FALSE))","v":""},null,null,{"$f":"IF(A64=\"\",\"\",VLOOKUP(A64, DATA_TABLE!$C$68:$I$320, 2, FALSE))","v":""},"",0,{"$f":"IF(E64=\"\",\"\",VLOOKUP(A64, DATA_TABLE!$C$68:$I$320, 4, FALSE))","v":""},"",{"$f":"IF(A64=\"\",\"\",VLOOKUP(A64, DATA_TABLE!$C$68:$I$320, 5, FALSE))","v":""},{"$f":"IF(A64=\"\",\"\",VLOOKUP(A64, DATA_TABLE!$C$68:$I$320, 6, FALSE))","v":""}]
[null,{"$f":"IF(A65=\"\",\"\",VLOOKUP(A65, DATA_TABLE!$C$68:$I$321, 7, FALSE))","v":""},null,null,{"$f":"IF(A65=\"\",\"\",VLOOKUP(A65, DATA_TABLE!$C$68:$I$320, 2, FALSE))","v":""},"",0,{"$f":"IF(E65=\"\",\"\",VLOOKUP(A65, DATA_TABLE!$C$68:$I$320, 4, FALSE))","v":""},"",{"$f":"IF(A65=\"\",\"\",VLOOKUP(A65, DATA_TABLE!$C$68:$I$320, 5, FALSE))","v":""},{"$f":"IF(A65=\"\",\"\",VLOOKUP(A65, DATA_TABLE!$C$68:$I$320, 6, FALSE))","v":""}]
[null,{"$f":"IF(A66=\"\",\"\",VLOOKUP(A66, DATA_TABLE!$C$68:$I$321, 7, FALSE))","v":""},null,null,{"$f":"IF(A66=\"\",\"\",VLOOKUP(A66, DATA_TABLE!$C$68:$I$320, 2, FALSE))","v":""},"",0,{"$f":"IF(E66=\"\",\"\",VLOOKUP(A66, DATA_TABLE!$C$68:$I$320, 4, FALSE))","v":""},"",{"$f":"IF(A66=\"\",\"\",VLOOKUP(A66, DATA_TABLE!$C$68:$I$320, 5, FALSE))","v":""},{"$f":"IF(A66=\"\",\"\",VLOOKUP(A66, DATA_TABLE!$C$68:$I$320, 6, FALSE))","v":""}]
[null,{"$f":"IF(A67=\"\",\"\",VLOOKUP(A67, DATA_TABLE!$C$68:$I$321, 7, FALSE))","v":""},null,null,{"$f":"IF(A67=\"\",\"\",VLOOKUP(A67, DATA_TABLE!$C$68:$I$320, 2, FALSE))","v":""},"",0,{"$f":"IF(E67=\"\",\"\",VLOOKUP(A67, DATA_TABLE!$C$68:$I$320, 4, FALSE))","v":""},"",{"$f":"IF(A67=\"\",\"\",VLOOKUP(A67, DATA_TABLE!$C$68:$I$320, 5, FALSE))","v":""},{"$f":"IF(A67=\"\",\"\",VLOOKUP(A67, DATA_TABLE!$C$68:$I$320, 6, FALSE))","v":""}]
[null,{"$f":"IF(A68=\"\",\"\",VLOOKUP(A68, DATA_TABLE!$C$68:$I$321, 7, FALSE))","v":""},null,null,{"$f":"IF(A68=\"\",\"\",VLOOKUP(A68, DATA_TABLE!$C$68:$I$320, 2, FALSE))","v":""},"",0,{"$f":"IF(E68=\"\",\"\",VLOOKUP(A68, DATA_TABLE!$C$68:$I$320, 4, FALSE))","v":""},"",{"$f":"IF(A68=\"\",\"\",VLOOKUP(A68, DATA_TABLE!$C$68:$I$320, 5, FALSE))","v":""},{"$f":"IF(A68=\"\",\"\",VLOOKUP(A68, DATA_TABLE!$C$68:$I$320, 6, FALSE))","v":""}]
["Totals",null,null,{"$f":"SUM(D23:D68)","v":0},null,{"$f":"SUM(F23:F68)","v":0},{"$f":"SUM(G23:G68)","v":0},{"$f":"SUM(H23:H68)","v":0},{"$f":"SUM(I23:I68)","v":0},null,{"$f":"IF(ISERROR(AVERAGE(K23:K68)),0,AVERAGE(K23:K68))","v":0}]
[]
[]
[null,null,"VALUE","Parameter"]
[null,null,{"$f":"COUNTIF(J23:J68,\"=1\")","v":0},"1 = April to May Bloom Period"]
[null,null,{"$f":"COUNTIF(J23:J68,\"=2\")","v":0},"2 = June to July Bloom Period"]
[null,null,{"$f":"COUNTIF(J23:J68,\"=3\")","v":0},"3 = August to October Bloom Period"]
[null,null,{"$f":"SUMIF($J$23:$J$68,\"1\",$G$23:$G$68)","v":0},"% PLS Seeding Rate 1's"]
[null,null,{"$f":"SUMIF($J$23:$J$68,\"2\",$G$23:$G$68)","v":0},"% PLS Seeding Rate 2's"]
[null,null,{"$f":"SUMIF($J$23:$J$68,\"3\",$G$23:$G$68)","v":0}," % PLS Seeding Rate 3's"]
[null,null,{"$f":"COUNT(D6:D20)","v":0},"Grasses Species Richness"]
[null,null,{"$f":"COUNT(D23:D68)","v":0},"Forb/Legume Species Richness"]
[null,null,{"$f":"K21","v":0},"Grasses - COC Average"]
[null,null,{"$f":"K69","v":0},"Forbs -COC Average"]
[null,null,{"$f":"IF(ISERROR(AVERAGE(K6:K20,K23:K68)),0,AVERAGE(K6:K20,K23:K69))","v":0},"COC = Coefficient of Conservatism Combined"]
[null,null,{"$f":"$F$21+$F$69","v":0},"Total PLS "]
[null,null,{"$f":"(F21/(F21+F69))","v":{"$error":"#DIV/0!"}},"PLS % Grasses"]
[null,null,{"$f":"(F69/(F21+F69))","v":{"$error":"#DIV/0!"}},"PLS % Forbs/Legumes"]

{"sheet":"Mix_3","index":2,"n_rows":86,"n_cols":13,"rows_kept":86,"cut":false,"hidden":false,"merged":[[83,3,83,7],[84,3,84,7],[85,3,85,7],[77,3,77,7],[78,3,78,7],[79,3,79,7],[80,3,80,7],[81,3,81,7],[82,3,82,7],[76,3,76,7],[1,7,3,7],[1,8,3,8],[1,9,3,9],[1,10,3,10],[71,3,71,7],[72,3,72,7],[73,3,73,7],[74,3,74,7],[75,3,75,7],[13,12,15,12],[69,0,69,10],[0,1,0,2],[0,3,0,6],[1,0,3,0],[1,2,3,2],[1,3,3,3],[1,4,3,4],[1,5,3,5],[1,6,3,6],[5,12,7,12],[8,12,11,12],[17,12,21,12]]}
["CPA8 MIX 3 - NAME:  ",null,null,"MLRA:"]
["Species List ",null,"Variety names listed in bold are the preferred varieties","PLS LBS per acre","PLS per ft² @ 1lb/ac","PLS per ft² ","% of Grasses","Est. Cost Per Pound (PLS)","Estimated Cost Per Acre","Bloom Period","COC"]
[]
[]
["GRASSES","SCIENTIFIC NAME","Acceptable Varieties"]
[null,{"$f":"IF(A6=\"\",\"\",VLOOKUP(A6, DATA_TABLE!$C$3:$I$64, 7, FALSE))","v":""},null,null,{"$f":"IF(A6=\"\",\"\",VLOOKUP(A6, DATA_TABLE!$C$3:$I$64, 2, FALSE))","v":""},{"$f":"IF(A6=\"\",\"\",(D6*E6))","v":""},{"$f":"IF(A6>0,F6/$F$21,0)","v":0},{"$f":"IF(E6=\"\",\"\",VLOOKUP(A6, DATA_TABLE!$C$3:$I$64, 4, FALSE))","v":""},{"$f":"IF(A6=\"\",\"\",(H6*D6))","v":""},null,{"$f":"IF(A6=\"\",\"\",VLOOKUP(A6, DATA_TABLE!$C$3:$I$64, 6, FALSE))","v":""},null,"Enter the grass, the appropriate varieties, and pls lbs per acre for grasses and forbs (varieties will rarely be entered for forbs)."]
[null,{"$f":"IF(A7=\"\",\"\",VLOOKUP(A7, DATA_TABLE!$C$3:$I$64, 7, FALSE))","v":""},null,null,{"$f":"IF(A7=\"\",\"\",VLOOKUP(A7, DATA_TABLE!$C$3:$I$64, 2, FALSE))","v":""},{"$f":"IF(A7=\"\",\"\",(D7*E7))","v":""},{"$f":"IF(A7>0,F7/$F$21,0)","v":0},{"$f":"IF(E7=\"\",\"\",VLOOKUP(A7, DATA_TABLE!$C$3:$I$64, 4, FALSE))","v":""},"",null,{"$f":"IF(A7=\"\",\"\",VLOOKUP(A7, DATA_TABLE!$C$3:$I$64, 6, FALSE))","v":""}]
[null,{"$f":"IF(A8=\"\",\"\",VLOOKUP(A8, DATA_TABLE!$C$3:$I$64, 7, FALSE))","v":""},null,null,{"$f":"IF(A8=\"\",\"\",VLOOKUP(A8, DATA_TABLE!$C$3:$I$64, 2, FALSE))","v":""},"",0,{"$f":"IF(E8=\"\",\"\",VLOOKUP(A8, DATA_TABLE!$C$3:$I$64, 4, FALSE))","v":""},"",null,{"$f":"IF(A8=\"\",\"\",VLOOKUP(A8, DATA_TABLE!$C$3:$I$64, 6, FALSE))","v":""}]
[null,{"$f":"IF(A9=\"\",\"\",VLOOKUP(A9, DATA_TABLE!$C$3:$I$64, 7, FALSE))","v":""},null,null,{"$f":"IF(A9=\"\",\"\",VLOOKUP(A9, DATA_TABLE!$C$3:$I$64, 2, FALSE))","v":""},"",0,{"$f":"IF(E9=\"\",\"\",VLOOKUP(A9, DATA_TABLE!$C$3:$I$64, 4, FALSE))","v":""},"",null,{"$f":"IF(A9=\"\",\"\",VLOOKUP(A9, DATA_TABLE!$C$3:$I$64, 6, FALSE))","v":""},null,"Acceptable Varieties:  See the UN-L variety guide (Certified Perennial Grass Varieties Recommended for Nebraska) for acceptable varieties for the MLRA where the seeding will occur.  "]
[null,{"$f":"IF(A10=\"\",\"\",VLOOKUP(A10, DATA_TABLE!$C$3:$I$64, 7, FALSE))","v":""},null,null,{"$f":"IF(A10=\"\",\"\",VLOOKUP(A10, DATA_TABLE!$C$3:$I$64, 2, FALSE))","v":""},"",0,{"$f":"IF(E10=\"\",\"\",VLOOKUP(A10, DATA_TABLE!$C$3:$I$64, 4, FALSE))","v":""},"",null,{"$f":"IF(A10=\"\",\"\",VLOOKUP(A10, DATA_TABLE!$C$3:$I$64, 6, FALSE))","v":""}]
[null,{"$f":"IF(A11=\"\",\"\",VLOOKUP(A11, DATA_TABLE!$C$3:$I$64, 7, FALSE))","v":""},null,null,{"$f":"IF(A11=\"\",\"\",VLOOKUP(A11, DATA_TABLE!$C$3:$I$64, 2, FALSE))","v":""},"",0,{"$f":"IF(E11=\"\",\"\",VLOOKUP(A11, DATA_TABLE!$C$3:$I$64, 4, FALSE))","v":""},"",null,{"$f":"IF(A11=\"\",\"\",VLOOKUP(A11, DATA_TABLE!$C$3:$I$64, 6, FALSE))","v":""}]
[null,{"$f":"IF(A12=\"\",\"\",VLOOKUP(A12, DATA_TABLE!$C$3:$I$64, 7, FALSE))","v":""},null,null,{"$f":"IF(A12=\"\",\"\",VLOOKUP(A12, DATA_TABLE!$C$3:$I$64, 2, FALSE))","v":""},"",0,{"$f":"IF(E12=\"\",\"\",VLOOKUP(A12, DATA_TABLE!$C$3:$I$64, 4, FALSE))","v":""},"",null,{"$f":"IF(A12=\"\",\"\",VLOOKUP(A12, DATA_TABLE!$C$3:$I$64, 6, FALSE))","v":""}]
[null,{"$f":"IF(A13=\"\",\"\",VLOOKUP(A13, DATA_TABLE!$C$3:$I$64, 7, FALSE))","v":""},null,null,{"$f":"IF(A13=\"\",\"\",VLOOKUP(A13, DATA_TABLE!$C$3:$I$64, 2, FALSE))","v":""},"",0,{"$f":"IF(E13=\"\",\"\",VLOOKUP(A13, DATA_TABLE!$C$3:$I$64, 4, FALSE))","v":""},"",null,{"$f":"IF(A13=\"\",\"\",VLOOKUP(A13, DATA_TABLE!$C$3:$I$64, 6, FALSE))","v":""},null,"http://extensionpublications.unl.edu/assets/pdf/ec120.pdf"]
[null,{"$f":"IF(A14=\"\",\"\",VLOOKUP(A14, DATA_TABLE!$C$3:$I$64, 7, FALSE))","v":""},null,null,{"$f":"IF(A14=\"\",\"\",VLOOKUP(A14, DATA_TABLE!$C$3:$I$64, 2, FALSE))","v":""},"",0,{"$f":"IF(E14=\"\",\"\",VLOOKUP(A14, DATA_TABLE!$C$3:$I$64, 4, FALSE))","v":""},"",null,{"$f":"IF(A14=\"\",\"\",VLOOKUP(A14, DATA_TABLE!$C$3:$I$64, 6, FALSE))","v":""},null,"If desired, hide the lines that are not used or are blank under by highlighting the rows, right clicking and selecting \"hide\".  Then if you print this page, the blank rows will not print."]
[null,{"$f":"IF(A15=\"\",\"\",VLOOKUP(A15, DATA_TABLE!$C$3:$I$64, 7, FALSE))","v":""},null,null,{"$f":"IF(A15=\"\",\"\",VLOOKUP(A15, DATA_TABLE!$C$3:$I$64, 2, FALSE))","v":""},"",0,{"$f":"IF(E15=\"\",\"\",VLOOKUP(A15, DATA_TABLE!$C$3:$I$64, 4, FALSE))","v":""},"",null,{"$f":"IF(A15=\"\",\"\",VLOOKUP(A15, DATA_TABLE!$C$3:$I$64, 6, FALSE))","v":""}]
[null,{"$f":"IF(A16=\"\",\"\",VLOOKUP(A16, DATA_TABLE!$C$3:$I$64, 7, FALSE))","v":""},null,null,{"$f":"IF(A16=\"\",\"\",VLOOKUP(A16, DATA_TABLE!$C$3:$I$64, 2, FALSE))","v":""},"",0,{"$f":"IF(E16=\"\",\"\",VLOOKUP(A16, DATA_TABLE!$C$3:$I$64, 4, FALSE))","v":""},"",null,{"$f":"IF(A16=\"\",\"\",VLOOKUP(A16, DATA_TABLE!$C$3:$I$64, 6, FALSE))","v":""}]
[null,{"$f":"IF(A17=\"\",\"\",VLOOKUP(A17, DATA_TABLE!$C$3:$I$64, 7, FALSE))","v":""},null,null,{"$f":"IF(A17=\"\",\"\",VLOOKUP(A17, DATA_TABLE!$C$3:$I$64, 2, FALSE))","v":""},"",0,{"$f":"IF(E17=\"\",\"\",VLOOKUP(A17, DATA_TABLE!$C$3:$I$64, 4, FALSE))","v":""},"",null,{"$f":"IF(A17=\"\",\"\",VLOOKUP(A17, DATA_TABLE!$C$3:$I$64, 6, FALSE))","v":""}]
[null,{"$f":"IF(A18=\"\",\"\",VLOOKUP(A18, DATA_TABLE!$C$3:$I$64, 7, FALSE))","v":""},null,null,{"$f":"IF(A18=\"\",\"\",VLOOKUP(A18, DATA_TABLE!$C$3:$I$64, 2, FALSE))","v":""},"",0,{"$f":"IF(E18=\"\",\"\",VLOOKUP(A18, DATA_TABLE!$C$3:$I$64, 4, FALSE))","v":""},"",null,{"$f":"IF(A18=\"\",\"\",VLOOKUP(A18, DATA_TABLE!$C$3:$I$64, 6, FALSE))","v":""},null,"Note:  If you have mixes from older seeding sheets, you can copy and paste rather than use the dropdowns.  Since this workbook uses standardized names from Flora of Nebraska, any names in the old workbook that do not conform with the standard names will not copy and you will need to manually enter those species."]
[null,{"$f":"IF(A19=\"\",\"\",VLOOKUP(A19, DATA_TABLE!$C$3:$I$64, 7, FALSE))","v":""},null,null,{"$f":"IF(A19=\"\",\"\",VLOOKUP(A19, DATA_TABLE!$C$3:$I$64, 2, FALSE))","v":""},"",0,{"$f":"IF(E19=\"\",\"\",VLOOKUP(A19, DATA_TABLE!$C$3:$I$64, 4, FALSE))","v":""},"",null,{"$f":"IF(A19=\"\",\"\",VLOOKUP(A19, DATA_TABLE!$C$3:$I$64, 6, FALSE))","v":""}]
[null,{"$f":"IF(A20=\"\",\"\",VLOOKUP(A20, DATA_TABLE!$C$3:$I$64, 7, FALSE))","v":""},null,null,{"$f":"IF(A20=\"\",\"\",VLOOKUP(A20, DATA_TABLE!$C$3:$I$64, 2, FALSE))","v":""},"",0,{"$f":"IF(E20=\"\",\"\",VLOOKUP(A20, DATA_TABLE!$C$3:$I$64, 4, FALSE))","v":""},"",null,{"$f":"IF(A20=\"\",\"\",VLOOKUP(A20, DATA_TABLE!$C$3:$I$64, 6, FALSE))","v":""}]
["Totals",null,null,{"$f":"SUM(D6:D20)","v":0},null,{"$f":"SUM(F6:F20)","v":0},{"$f":"SUM(G6:G20)","v":0},{"$f":"SUM(H6:H20)","v":0},{"$f":"SUM(I6:I20)","v":0},null,{"$f":"IF(ISERROR(AVERAGE(K6:K20)),0,AVERAGE(K6:K20))","v":0}]
["FORBS & LEGUMES","SCIENTIFIC NAME",null,"PLS LBS per acre","PLS per ft² @ 1lb/ac","PLS per ft² ","% of Forbs","Est. Cost Per Pound (PLS)","Estimated Cost Per Acre","Bloom Period","COC"]
[null,{"$f":"IF(A23=\"\",\"\",VLOOKUP(A23, DATA_TABLE!$C$68:$I$321, 7, FALSE))","v":""},null,null,{"$f":"IF(A23=\"\",\"\",VLOOKUP(A23, DATA_TABLE!$C$68:$I$320, 2, FALSE))","v":""},{"$f":"IF(D23=\"\",\"\",(D23*E23))","v":""},{"$f":"IF(D23>0,F23/$F$69,0)","v":0},{"$f":"IF(E23=\"\",\"\",VLOOKUP(A23, DATA_TABLE!$C$68:$I$320, 4, FALSE))","v":""},{"$f":"IF(A23=\"\",\"\",(H23*D23))","v":""},{"$f":"IF(A23=\"\",\"\",VLOOKUP(A23, DATA_TABLE!$C$68:$I$320, 5, FALSE))","v":""},{"$f":"IF(A23=\"\",\"\",VLOOKUP(A23, DATA_TABLE!$C$68:$I$320, 6, FALSE))","v":""}]
[null,{"$f":"IF(A24=\"\",\"\",VLOOKUP(A24, DATA_TABLE!$C$68:$I$321, 7, FALSE))","v":""},null,null,{"$f":"IF(A24=\"\",\"\",VLOOKUP(A24, DATA_TABLE!$C$68:$I$320, 2, FALSE))","v":""},{"$f":"IF(D24=\"\",\"\",(D24*E24))","v":""},0,{"$f":"IF(E24=\"\",\"\",VLOOKUP(A24, DATA_TABLE!$C$68:$I$320, 4, FALSE))","v":""},"",{"$f":"IF(A24=\"\",\"\",VLOOKUP(A24, DATA_TABLE!$C$68:$I$320, 5, FALSE))","v":""},{"$f":"IF(A24=\"\",\"\",VLOOKUP(A24, DATA_TABLE!$C$68:$I$320, 6, FALSE))","v":""}]
[null,{"$f":"IF(A25=\"\",\"\",VLOOKUP(A25, DATA_TABLE!$C$68:$I$321, 7, FALSE))","v":""},null,null,{"$f":"IF(A25=\"\",\"\",VLOOKUP(A25, DATA_TABLE!$C$68:$I$320, 2, FALSE))","v":""},"",0,{"$f":"IF(E25=\"\",\"\",VLOOKUP(A25, DATA_TABLE!$C$68:$I$320, 4, FALSE))","v":""},"",{"$f":"IF(A25=\"\",\"\",VLOOKUP(A25, DATA_TABLE!$C$68:$I$320, 5, FALSE))","v":""},{"$f":"IF(A25=\"\",\"\",VLOOKUP(A25, DATA_TABLE!$C$68:$I$320, 6, FALSE))","v":""}]
[null,{"$f":"IF(A26=\"\",\"\",VLOOKUP(A26, DATA_TABLE!$C$68:$I$321, 7, FALSE))","v":""},null,null,{"$f":"IF(A26=\"\",\"\",VLOOKUP(A26, DATA_TABLE!$C$68:$I$320, 2, FALSE))","v":""},"",0,{"$f":"IF(E26=\"\",\"\",VLOOKUP(A26, DATA_TABLE!$C$68:$I$320, 4, FALSE))","v":""},"",{"$f":"IF(A26=\"\",\"\",VLOOKUP(A26, DATA_TABLE!$C$68:$I$320, 5, FALSE))","v":""},{"$f":"IF(A26=\"\",\"\",VLOOKUP(A26, DATA_TABLE!$C$68:$I$320, 6, FALSE))","v":""}]
[null,{"$f":"IF(A27=\"\",\"\",VLOOKUP(A27, DATA_TABLE!$C$68:$I$321, 7, FALSE))","v":""},null,null,{"$f":"IF(A27=\"\",\"\",VLOOKUP(A27, DATA_TABLE!$C$68:$I$320, 2, FALSE))","v":""},"",0,{"$f":"IF(E27=\"\",\"\",VLOOKUP(A27, DATA_TABLE!$C$68:$I$320, 4, FALSE))","v":""},"",{"$f":"IF(A27=\"\",\"\",VLOOKUP(A27, DATA_TABLE!$C$68:$I$320, 5, FALSE))","v":""},{"$f":"IF(A27=\"\",\"\",VLOOKUP(A27, DATA_TABLE!$C$68:$I$320, 6, FALSE))","v":""}]
[null,{"$f":"IF(A28=\"\",\"\",VLOOKUP(A28, DATA_TABLE!$C$68:$I$321, 7, FALSE))","v":""},null,null,{"$f":"IF(A28=\"\",\"\",VLOOKUP(A28, DATA_TABLE!$C$68:$I$320, 2, FALSE))","v":""},"",0,{"$f":"IF(E28=\"\",\"\",VLOOKUP(A28, DATA_TABLE!$C$68:$I$320, 4, FALSE))","v":""},"",{"$f":"IF(A28=\"\",\"\",VLOOKUP(A28, DATA_TABLE!$C$68:$I$320, 5, FALSE))","v":""},{"$f":"IF(A28=\"\",\"\",VLOOKUP(A28, DATA_TABLE!$C$68:$I$320, 6, FALSE))","v":""}]
[null,{"$f":"IF(A29=\"\",\"\",VLOOKUP(A29, DATA_TABLE!$C$68:$I$321, 7, FALSE))","v":""},null,null,{"$f":"IF(A29=\"\",\"\",VLOOKUP(A29, DATA_TABLE!$C$68:$I$320, 2, FALSE))","v":""},"",0,{"$f":"IF(E29=\"\",\"\",VLOOKUP(A29, DATA_TABLE!$C$68:$I$320, 4, FALSE))","v":""},"",{"$f":"IF(A29=\"\",\"\",VLOOKUP(A29, DATA_TABLE!$C$68:$I$320, 5, FALSE))","v":""},{"$f":"IF(A29=\"\",\"\",VLOOKUP(A29, DATA_TABLE!$C$68:$I$320, 6, FALSE))","v":""}]
[null,{"$f":"IF(A30=\"\",\"\",VLOOKUP(A30, DATA_TABLE!$C$68:$I$321, 7, FALSE))","v":""},null,null,{"$f":"IF(A30=\"\",\"\",VLOOKUP(A30, DATA_TABLE!$C$68:$I$320, 2, FALSE))","v":""},"",0,{"$f":"IF(E30=\"\",\"\",VLOOKUP(A30, DATA_TABLE!$C$68:$I$320, 4, FALSE))","v":""},"",{"$f":"IF(A30=\"\",\"\",VLOOKUP(A30, DATA_TABLE!$C$68:$I$320, 5, FALSE))","v":""},{"$f":"IF(A30=\"\",\"\",VLOOKUP(A30, DATA_TABLE!$C$68:$I$320, 6, FALSE))","v":""}]
[null,{"$f":"IF(A31=\"\",\"\",VLOOKUP(A31, DATA_TABLE!$C$68:$I$321, 7, FALSE))","v":""},null,null,{"$f":"IF(A31=\"\",\"\",VLOOKUP(A31, DATA_TABLE!$C$68:$I$320, 2, FALSE))","v":""},"",0,{"$f":"IF(E31=\"\",\"\",VLOOKUP(A31, DATA_TABLE!$C$68:$I$320, 4, FALSE))","v":""},"",{"$f":"IF(A31=\"\",\"\",VLOOKUP(A31, DATA_TABLE!$C$68:$I$320, 5, FALSE))","v":""},{"$f":"IF(A31=\"\",\"\",VLOOKUP(A31, DATA_TABLE!$C$68:$I$320, 6, FALSE))","v":""}]
[null,{"$f":"IF(A32=\"\",\"\",VLOOKUP(A32, DATA_TABLE!$C$68:$I$321, 7, FALSE))","v":""},null,null,{"$f":"IF(A32=\"\",\"\",VLOOKUP(A32, DATA_TABLE!$C$68:$I$320, 2, FALSE))","v":""},"",0,{"$f":"IF(E32=\"\",\"\",VLOOKUP(A32, DATA_TABLE!$C$68:$I$320, 4, FALSE))","v":""},"",{"$f":"IF(A32=\"\",\"\",VLOOKUP(A32, DATA_TABLE!$C$68:$I$320, 5, FALSE))","v":""},{"$f":"IF(A32=\"\",\"\",VLOOKUP(A32, DATA_TABLE!$C$68:$I$320, 6, FALSE))","v":""}]
[null,{"$f":"IF(A33=\"\",\"\",VLOOKUP(A33, DATA_TABLE!$C$68:$I$321, 7, FALSE))","v":""},null,null,{"$f":"IF(A33=\"\",\"\",VLOOKUP(A33, DATA_TABLE!$C$68:$I$320, 2, FALSE))","v":""},"",0,{"$f":"IF(E33=\"\",\"\",VLOOKUP(A33, DATA_TABLE!$C$68:$I$320, 4, FALSE))","v":""},"",{"$f":"IF(A33=\"\",\"\",VLOOKUP(A33, DATA_TABLE!$C$68:$I$320, 5, FALSE))","v":""},{"$f":"IF(A33=\"\",\"\",VLOOKUP(A33, DATA_TABLE!$C$68:$I$320, 6, FALSE))","v":""}]
[null,{"$f":"IF(A34=\"\",\"\",VLOOKUP(A34, DATA_TABLE!$C$68:$I$321, 7, FALSE))","v":""},null,null,{"$f":"IF(A34=\"\",\"\",VLOOKUP(A34, DATA_TABLE!$C$68:$I$320, 2, FALSE))","v":""},"",0,{"$f":"IF(E34=\"\",\"\",VLOOKUP(A34, DATA_TABLE!$C$68:$I$320, 4, FALSE))","v":""},"",{"$f":"IF(A34=\"\",\"\",VLOOKUP(A34, DATA_TABLE!$C$68:$I$320, 5, FALSE))","v":""},{"$f":"IF(A34=\"\",\"\",VLOOKUP(A34, DATA_TABLE!$C$68:$I$320, 6, FALSE))","v":""}]
[null,{"$f":"IF(A35=\"\",\"\",VLOOKUP(A35, DATA_TABLE!$C$68:$I$321, 7, FALSE))","v":""},null,null,{"$f":"IF(A35=\"\",\"\",VLOOKUP(A35, DATA_TABLE!$C$68:$I$320, 2, FALSE))","v":""},"",0,{"$f":"IF(E35=\"\",\"\",VLOOKUP(A35, DATA_TABLE!$C$68:$I$320, 4, FALSE))","v":""},"",{"$f":"IF(A35=\"\",\"\",VLOOKUP(A35, DATA_TABLE!$C$68:$I$320, 5, FALSE))","v":""},{"$f":"IF(A35=\"\",\"\",VLOOKUP(A35, DATA_TABLE!$C$68:$I$320, 6, FALSE))","v":""}]
[null,{"$f":"IF(A36=\"\",\"\",VLOOKUP(A36, DATA_TABLE!$C$68:$I$321, 7, FALSE))","v":""},null,null,{"$f":"IF(A36=\"\",\"\",VLOOKUP(A36, DATA_TABLE!$C$68:$I$320, 2, FALSE))","v":""},"",0,{"$f":"IF(E36=\"\",\"\",VLOOKUP(A36, DATA_TABLE!$C$68:$I$320, 4, FALSE))","v":""},"",{"$f":"IF(A36=\"\",\"\",VLOOKUP(A36, DATA_TABLE!$C$68:$I$320, 5, FALSE))","v":""},{"$f":"IF(A36=\"\",\"\",VLOOKUP(A36, DATA_TABLE!$C$68:$I$320, 6, FALSE))","v":""}]
[null,{"$f":"IF(A37=\"\",\"\",VLOOKUP(A37, DATA_TABLE!$C$68:$I$321, 7, FALSE))","v":""},null,null,{"$f":"IF(A37=\"\",\"\",VLOOKUP(A37, DATA_TABLE!$C$68:$I$320, 2, FALSE))","v":""},"",0,{"$f":"IF(E37=\"\",\"\",VLOOKUP(A37, DATA_TABLE!$C$68:$I$320, 4, FALSE))","v":""},"",{"$f":"IF(A37=\"\",\"\",VLOOKUP(A37, DATA_TABLE!$C$68:$I$320, 5, FALSE))","v":""},{"$f":"IF(A37=\"\",\"\",VLOOKUP(A37, DATA_TABLE!$C$68:$I$320, 6, FALSE))","v":""}]
[null,{"$f":"IF(A38=\"\",\"\",VLOOKUP(A38, DATA_TABLE!$C$68:$I$321, 7, FALSE))","v":""},null,null,{"$f":"IF(A38=\"\",\"\",VLOOKUP(A38, DATA_TABLE!$C$68:$I$320, 2, FALSE))","v":""},"",0,{"$f":"IF(E38=\"\",\"\",VLOOKUP(A38, DATA_TABLE!$C$68:$I$320, 4, FALSE))","v":""},"",{"$f":"IF(A38=\"\",\"\",VLOOKUP(A38, DATA_TABLE!$C$68:$I$320, 5, FALSE))","v":""},{"$f":"IF(A38=\"\",\"\",VLOOKUP(A38, DATA_TABLE!$C$68:$I$320, 6, FALSE))","v":""}]
[null,{"$f":"IF(A39=\"\",\"\",VLOOKUP(A39, DATA_TABLE!$C$68:$I$321, 7, FALSE))","v":""},null,null,{"$f":"IF(A39=\"\",\"\",VLOOKUP(A39, DATA_TABLE!$C$68:$I$320, 2, FALSE))","v":""},"",0,{"$f":"IF(E39=\"\",\"\",VLOOKUP(A39, DATA_TABLE!$C$68:$I$320, 4, FALSE))","v":""},"",{"$f":"IF(A39=\"\",\"\",VLOOKUP(A39, DATA_TABLE!$C$68:$I$320, 5, FALSE))","v":""},{"$f":"IF(A39=\"\",\"\",VLOOKUP(A39, DATA_TABLE!$C$68:$I$320, 6, FALSE))","v":""}]
[null,{"$f":"IF(A40=\"\",\"\",VLOOKUP(A40, DATA_TABLE!$C$68:$I$321, 7, FALSE))","v":""},null,null,{"$f":"IF(A40=\"\",\"\",VLOOKUP(A40, DATA_TABLE!$C$68:$I$320, 2, FALSE))","v":""},"",0,{"$f":"IF(E40=\"\",\"\",VLOOKUP(A40, DATA_TABLE!$C$68:$I$320, 4, FALSE))","v":""},"",{"$f":"IF(A40=\"\",\"\",VLOOKUP(A40, DATA_TABLE!$C$68:$I$320, 5, FALSE))","v":""},{"$f":"IF(A40=\"\",\"\",VLOOKUP(A40, DATA_TABLE!$C$68:$I$320, 6, FALSE))","v":""}]
[null,{"$f":"IF(A41=\"\",\"\",VLOOKUP(A41, DATA_TABLE!$C$68:$I$321, 7, FALSE))","v":""},null,null,{"$f":"IF(A41=\"\",\"\",VLOOKUP(A41, DATA_TABLE!$C$68:$I$320, 2, FALSE))","v":""},"",0,{"$f":"IF(E41=\"\",\"\",VLOOKUP(A41, DATA_TABLE!$C$68:$I$320, 4, FALSE))","v":""},"",{"$f":"IF(A41=\"\",\"\",VLOOKUP(A41, DATA_TABLE!$C$68:$I$320, 5, FALSE))","v":""},{"$f":"IF(A41=\"\",\"\",VLOOKUP(A41, DATA_TABLE!$C$68:$I$320, 6, FALSE))","v":""}]
[null,{"$f":"IF(A42=\"\",\"\",VLOOKUP(A42, DATA_TABLE!$C$68:$I$321, 7, FALSE))","v":""},null,null,{"$f":"IF(A42=\"\",\"\",VLOOKUP(A42, DATA_TABLE!$C$68:$I$320, 2, FALSE))","v":""},"",0,{"$f":"IF(E42=\"\",\"\",VLOOKUP(A42, DATA_TABLE!$C$68:$I$320, 4, FALSE))","v":""},"",{"$f":"IF(A42=\"\",\"\",VLOOKUP(A42, DATA_TABLE!$C$68:$I$320, 5, FALSE))","v":""},{"$f":"IF(A42=\"\",\"\",VLOOKUP(A42, DATA_TABLE!$C$68:$I$320, 6, FALSE))","v":""}]
[null,{"$f":"IF(A43=\"\",\"\",VLOOKUP(A43, DATA_TABLE!$C$68:$I$321, 7, FALSE))","v":""},null,null,{"$f":"IF(A43=\"\",\"\",VLOOKUP(A43, DATA_TABLE!$C$68:$I$320, 2, FALSE))","v":""},"",0,{"$f":"IF(E43=\"\",\"\",VLOOKUP(A43, DATA_TABLE!$C$68:$I$320, 4, FALSE))","v":""},"",{"$f":"IF(A43=\"\",\"\",VLOOKUP(A43, DATA_TABLE!$C$68:$I$320, 5, FALSE))","v":""},{"$f":"IF(A43=\"\",\"\",VLOOKUP(A43, DATA_TABLE!$C$68:$I$320, 6, FALSE))","v":""}]
[null,{"$f":"IF(A44=\"\",\"\",VLOOKUP(A44, DATA_TABLE!$C$68:$I$321, 7, FALSE))","v":""},null,null,{"$f":"IF(A44=\"\",\"\",VLOOKUP(A44, DATA_TABLE!$C$68:$I$320, 2, FALSE))","v":""},"",0,{"$f":"IF(E44=\"\",\"\",VLOOKUP(A44, DATA_TABLE!$C$68:$I$320, 4, FALSE))","v":""},"",{"$f":"IF(A44=\"\",\"\",VLOOKUP(A44, DATA_TABLE!$C$68:$I$320, 5, FALSE))","v":""},{"$f":"IF(A44=\"\",\"\",VLOOKUP(A44, DATA_TABLE!$C$68:$I$320, 6, FALSE))","v":""}]
[null,{"$f":"IF(A45=\"\",\"\",VLOOKUP(A45, DATA_TABLE!$C$68:$I$321, 7, FALSE))","v":""},null,null,{"$f":"IF(A45=\"\",\"\",VLOOKUP(A45, DATA_TABLE!$C$68:$I$320, 2, FALSE))","v":""},"",0,{"$f":"IF(E45=\"\",\"\",VLOOKUP(A45, DATA_TABLE!$C$68:$I$320, 4, FALSE))","v":""},"",{"$f":"IF(A45=\"\",\"\",VLOOKUP(A45, DATA_TABLE!$C$68:$I$320, 5, FALSE))","v":""},{"$f":"IF(A45=\"\",\"\",VLOOKUP(A45, DATA_TABLE!$C$68:$I$320, 6, FALSE))","v":""}]
[null,{"$f":"IF(A46=\"\",\"\",VLOOKUP(A46, DATA_TABLE!$C$68:$I$321, 7, FALSE))","v":""},null,null,{"$f":"IF(A46=\"\",\"\",VLOOKUP(A46, DATA_TABLE!$C$68:$I$320, 2, FALSE))","v":""},"",0,{"$f":"IF(E46=\"\",\"\",VLOOKUP(A46, DATA_TABLE!$C$68:$I$320, 4, FALSE))","v":""},"",{"$f":"IF(A46=\"\",\"\",VLOOKUP(A46, DATA_TABLE!$C$68:$I$320, 5, FALSE))","v":""},{"$f":"IF(A46=\"\",\"\",VLOOKUP(A46, DATA_TABLE!$C$68:$I$320, 6, FALSE))","v":""}]
[null,{"$f":"IF(A47=\"\",\"\",VLOOKUP(A47, DATA_TABLE!$C$68:$I$321, 7, FALSE))","v":""},null,null,{"$f":"IF(A47=\"\",\"\",VLOOKUP(A47, DATA_TABLE!$C$68:$I$320, 2, FALSE))","v":""},"",0,{"$f":"IF(E47=\"\",\"\",VLOOKUP(A47, DATA_TABLE!$C$68:$I$320, 4, FALSE))","v":""},"",{"$f":"IF(A47=\"\",\"\",VLOOKUP(A47, DATA_TABLE!$C$68:$I$320, 5, FALSE))","v":""},{"$f":"IF(A47=\"\",\"\",VLOOKUP(A47, DATA_TABLE!$C$68:$I$320, 6, FALSE))","v":""}]
[null,{"$f":"IF(A48=\"\",\"\",VLOOKUP(A48, DATA_TABLE!$C$68:$I$321, 7, FALSE))","v":""},null,null,{"$f":"IF(A48=\"\",\"\",VLOOKUP(A48, DATA_TABLE!$C$68:$I$320, 2, FALSE))","v":""},"",0,{"$f":"IF(E48=\"\",\"\",VLOOKUP(A48, DATA_TABLE!$C$68:$I$320, 4, FALSE))","v":""},"",{"$f":"IF(A48=\"\",\"\",VLOOKUP(A48, DATA_TABLE!$C$68:$I$320, 5, FALSE))","v":""},{"$f":"IF(A48=\"\",\"\",VLOOKUP(A48, DATA_TABLE!$C$68:$I$320, 6, FALSE))","v":""}]
[null,{"$f":"IF(A49=\"\",\"\",VLOOKUP(A49, DATA_TABLE!$C$68:$I$321, 7, FALSE))","v":""},null,null,{"$f":"IF(A49=\"\",\"\",VLOOKUP(A49, DATA_TABLE!$C$68:$I$320, 2, FALSE))","v":""},"",0,{"$f":"IF(E49=\"\",\"\",VLOOKUP(A49, DATA_TABLE!$C$68:$I$320, 4, FALSE))","v":""},"",{"$f":"IF(A49=\"\",\"\",VLOOKUP(A49, DATA_TABLE!$C$68:$I$320, 5, FALSE))","v":""},{"$f":"IF(A49=\"\",\"\",VLOOKUP(A49, DATA_TABLE!$C$68:$I$320, 6, FALSE))","v":""}]
[null,{"$f":"IF(A50=\"\",\"\",VLOOKUP(A50, DATA_TABLE!$C$68:$I$321, 7, FALSE))","v":""},null,null,{"$f":"IF(A50=\"\",\"\",VLOOKUP(A50, DATA_TABLE!$C$68:$I$320, 2, FALSE))","v":""},"",0,{"$f":"IF(E50=\"\",\"\",VLOOKUP(A50, DATA_TABLE!$C$68:$I$320, 4, FALSE))","v":""},"",{"$f":"IF(A50=\"\",\"\",VLOOKUP(A50, DATA_TABLE!$C$68:$I$320, 5, FALSE))","v":""},{"$f":"IF(A50=\"\",\"\",VLOOKUP(A50, DATA_TABLE!$C$68:$I$320, 6, FALSE))","v":""}]
[null,{"$f":"IF(A51=\"\",\"\",VLOOKUP(A51, DATA_TABLE!$C$68:$I$321, 7, FALSE))","v":""},null,null,{"$f":"IF(A51=\"\",\"\",VLOOKUP(A51, DATA_TABLE!$C$68:$I$320, 2, FALSE))","v":""},"",0,{"$f":"IF(E51=\"\",\"\",VLOOKUP(A51, DATA_TABLE!$C$68:$I$320, 4, FALSE))","v":""},"",{"$f":"IF(A51=\"\",\"\",VLOOKUP(A51, DATA_TABLE!$C$68:$I$320, 5, FALSE))","v":""},{"$f":"IF(A51=\"\",\"\",VLOOKUP(A51, DATA_TABLE!$C$68:$I$320, 6, FALSE))","v":""}]
[null,{"$f":"IF(A52=\"\",\"\",VLOOKUP(A52, DATA_TABLE!$C$68:$I$321, 7, FALSE))","v":""},null,null,{"$f":"IF(A52=\"\",\"\",VLOOKUP(A52, DATA_TABLE!$C$68:$I$320, 2, FALSE))","v":""},"",0,{"$f":"IF(E52=\"\",\"\",VLOOKUP(A52, DATA_TABLE!$C$68:$I$320, 4, FALSE))","v":""},"",{"$f":"IF(A52=\"\",\"\",VLOOKUP(A52, DATA_TABLE!$C$68:$I$320, 5, FALSE))","v":""},{"$f":"IF(A52=\"\",\"\",VLOOKUP(A52, DATA_TABLE!$C$68:$I$320, 6, FALSE))","v":""}]
[null,{"$f":"IF(A53=\"\",\"\",VLOOKUP(A53, DATA_TABLE!$C$68:$I$321, 7, FALSE))","v":""},null,null,{"$f":"IF(A53=\"\",\"\",VLOOKUP(A53, DATA_TABLE!$C$68:$I$320, 2, FALSE))","v":""},"",0,{"$f":"IF(E53=\"\",\"\",VLOOKUP(A53, DATA_TABLE!$C$68:$I$320, 4, FALSE))","v":""},"",{"$f":"IF(A53=\"\",\"\",VLOOKUP(A53, DATA_TABLE!$C$68:$I$320, 5, FALSE))","v":""},{"$f":"IF(A53=\"\",\"\",VLOOKUP(A53, DATA_TABLE!$C$68:$I$320, 6, FALSE))","v":""}]
[null,{"$f":"IF(A54=\"\",\"\",VLOOKUP(A54, DATA_TABLE!$C$68:$I$321, 7, FALSE))","v":""},null,null,{"$f":"IF(A54=\"\",\"\",VLOOKUP(A54, DATA_TABLE!$C$68:$I$320, 2, FALSE))","v":""},"",0,{"$f":"IF(E54=\"\",\"\",VLOOKUP(A54, DATA_TABLE!$C$68:$I$320, 4, FALSE))","v":""},"",{"$f":"IF(A54=\"\",\"\",VLOOKUP(A54, DATA_TABLE!$C$68:$I$320, 5, FALSE))","v":""},{"$f":"IF(A54=\"\",\"\",VLOOKUP(A54, DATA_TABLE!$C$68:$I$320, 6, FALSE))","v":""}]
[null,{"$f":"IF(A55=\"\",\"\",VLOOKUP(A55, DATA_TABLE!$C$68:$I$321, 7, FALSE))","v":""},null,null,{"$f":"IF(A55=\"\",\"\",VLOOKUP(A55, DATA_TABLE!$C$68:$I$320, 2, FALSE))","v":""},"",0,{"$f":"IF(E55=\"\",\"\",VLOOKUP(A55, DATA_TABLE!$C$68:$I$320, 4, FALSE))","v":""},"",{"$f":"IF(A55=\"\",\"\",VLOOKUP(A55, DATA_TABLE!$C$68:$I$320, 5, FALSE))","v":""},{"$f":"IF(A55=\"\",\"\",VLOOKUP(A55, DATA_TABLE!$C$68:$I$320, 6, FALSE))","v":""}]
[null,{"$f":"IF(A56=\"\",\"\",VLOOKUP(A56, DATA_TABLE!$C$68:$I$321, 7, FALSE))","v":""},null,null,{"$f":"IF(A56=\"\",\"\",VLOOKUP(A56, DATA_TABLE!$C$68:$I$320, 2, FALSE))","v":""},"",0,{"$f":"IF(E56=\"\",\"\",VLOOKUP(A56, DATA_TABLE!$C$68:$I$320, 4, FALSE))","v":""},"",{"$f":"IF(A56=\"\",\"\",VLOOKUP(A56, DATA_TABLE!$C$68:$I$320, 5, FALSE))","v":""},{"$f":"IF(A56=\"\",\"\",VLOOKUP(A56, DATA_TABLE!$C$68:$I$320, 6, FALSE))","v":""}]
[null,{"$f":"IF(A57=\"\",\"\",VLOOKUP(A57, DATA_TABLE!$C$68:$I$321, 7, FALSE))","v":""},null,null,{"$f":"IF(A57=\"\",\"\",VLOOKUP(A57, DATA_TABLE!$C$68:$I$320, 2, FALSE))","v":""},"",0,{"$f":"IF(E57=\"\",\"\",VLOOKUP(A57, DATA_TABLE!$C$68:$I$320, 4, FALSE))","v":""},"",{"$f":"IF(A57=\"\",\"\",VLOOKUP(A57, DATA_TABLE!$C$68:$I$320, 5, FALSE))","v":""},{"$f":"IF(A57=\"\",\"\",VLOOKUP(A57, DATA_TABLE!$C$68:$I$320, 6, FALSE))","v":""}]
[null,{"$f":"IF(A58=\"\",\"\",VLOOKUP(A58, DATA_TABLE!$C$68:$I$321, 7, FALSE))","v":""},null,null,{"$f":"IF(A58=\"\",\"\",VLOOKUP(A58, DATA_TABLE!$C$68:$I$320, 2, FALSE))","v":""},"",0,{"$f":"IF(E58=\"\",\"\",VLOOKUP(A58, DATA_TABLE!$C$68:$I$320, 4, FALSE))","v":""},"",{"$f":"IF(A58=\"\",\"\",VLOOKUP(A58, DATA_TABLE!$C$68:$I$320, 5, FALSE))","v":""},{"$f":"IF(A58=\"\",\"\",VLOOKUP(A58, DATA_TABLE!$C$68:$I$320, 6, FALSE))","v":""}]
[null,{"$f":"IF(A59=\"\",\"\",VLOOKUP(A59, DATA_TABLE!$C$68:$I$321, 7, FALSE))","v":""},null,null,{"$f":"IF(A59=\"\",\"\",VLOOKUP(A59, DATA_TABLE!$C$68:$I$320, 2, FALSE))","v":""},"",0,{"$f":"IF(E59=\"\",\"\",VLOOKUP(A59, DATA_TABLE!$C$68:$I$320, 4, FALSE))","v":""},"",{"$f":"IF(A59=\"\",\"\",VLOOKUP(A59, DATA_TABLE!$C$68:$I$320, 5, FALSE))","v":""},{"$f":"IF(A59=\"\",\"\",VLOOKUP(A59, DATA_TABLE!$C$68:$I$320, 6, FALSE))","v":""}]
[null,{"$f":"IF(A60=\"\",\"\",VLOOKUP(A60, DATA_TABLE!$C$68:$I$321, 7, FALSE))","v":""},null,null,{"$f":"IF(A60=\"\",\"\",VLOOKUP(A60, DATA_TABLE!$C$68:$I$320, 2, FALSE))","v":""},"",0,{"$f":"IF(E60=\"\",\"\",VLOOKUP(A60, DATA_TABLE!$C$68:$I$320, 4, FALSE))","v":""},"",{"$f":"IF(A60=\"\",\"\",VLOOKUP(A60, DATA_TABLE!$C$68:$I$320, 5, FALSE))","v":""},{"$f":"IF(A60=\"\",\"\",VLOOKUP(A60, DATA_TABLE!$C$68:$I$320, 6, FALSE))","v":""}]
[null,{"$f":"IF(A61=\"\",\"\",VLOOKUP(A61, DATA_TABLE!$C$68:$I$321, 7, FALSE))","v":""},null,null,{"$f":"IF(A61=\"\",\"\",VLOOKUP(A61, DATA_TABLE!$C$68:$I$320, 2, FALSE))","v":""},"",0,{"$f":"IF(E61=\"\",\"\",VLOOKUP(A61, DATA_TABLE!$C$68:$I$320, 4, FALSE))","v":""},"",{"$f":"IF(A61=\"\",\"\",VLOOKUP(A61, DATA_TABLE!$C$68:$I$320, 5, FALSE))","v":""},{"$f":"IF(A61=\"\",\"\",VLOOKUP(A61, DATA_TABLE!$C$68:$I$320, 6, FALSE))","v":""}]
[null,{"$f":"IF(A62=\"\",\"\",VLOOKUP(A62, DATA_TABLE!$C$68:$I$321, 7, FALSE))","v":""},null,null,{"$f":"IF(A62=\"\",\"\",VLOOKUP(A62, DATA_TABLE!$C$68:$I$320, 2, FALSE))","v":""},"",0,{"$f":"IF(E62=\"\",\"\",VLOOKUP(A62, DATA_TABLE!$C$68:$I$320, 4, FALSE))","v":""},"",{"$f":"IF(A62=\"\",\"\",VLOOKUP(A62, DATA_TABLE!$C$68:$I$320, 5, FALSE))","v":""},{"$f":"IF(A62=\"\",\"\",VLOOKUP(A62, DATA_TABLE!$C$68:$I$320, 6, FALSE))","v":""}]
[null,{"$f":"IF(A63=\"\",\"\",VLOOKUP(A63, DATA_TABLE!$C$68:$I$321, 7, FALSE))","v":""},null,null,{"$f":"IF(A63=\"\",\"\",VLOOKUP(A63, DATA_TABLE!$C$68:$I$320, 2, FALSE))","v":""},"",0,{"$f":"IF(E63=\"\",\"\",VLOOKUP(A63, DATA_TABLE!$C$68:$I$320, 4, FALSE))","v":""},"",{"$f":"IF(A63=\"\",\"\",VLOOKUP(A63, DATA_TABLE!$C$68:$I$320, 5, FALSE))","v":""},{"$f":"IF(A63=\"\",\"\",VLOOKUP(A63, DATA_TABLE!$C$68:$I$320, 6, FALSE))","v":""}]
[null,{"$f":"IF(A64=\"\",\"\",VLOOKUP(A64, DATA_TABLE!$C$68:$I$321, 7, FALSE))","v":""},null,null,{"$f":"IF(A64=\"\",\"\",VLOOKUP(A64, DATA_TABLE!$C$68:$I$320, 2, FALSE))","v":""},"",0,{"$f":"IF(E64=\"\",\"\",VLOOKUP(A64, DATA_TABLE!$C$68:$I$320, 4, FALSE))","v":""},"",{"$f":"IF(A64=\"\",\"\",VLOOKUP(A64, DATA_TABLE!$C$68:$I$320, 5, FALSE))","v":""},{"$f":"IF(A64=\"\",\"\",VLOOKUP(A64, DATA_TABLE!$C$68:$I$320, 6, FALSE))","v":""}]
[null,{"$f":"IF(A65=\"\",\"\",VLOOKUP(A65, DATA_TABLE!$C$68:$I$321, 7, FALSE))","v":""},null,null,{"$f":"IF(A65=\"\",\"\",VLOOKUP(A65, DATA_TABLE!$C$68:$I$320, 2, FALSE))","v":""},"",0,{"$f":"IF(E65=\"\",\"\",VLOOKUP(A65, DATA_TABLE!$C$68:$I$320, 4, FALSE))","v":""},"",{"$f":"IF(A65=\"\",\"\",VLOOKUP(A65, DATA_TABLE!$C$68:$I$320, 5, FALSE))","v":""},{"$f":"IF(A65=\"\",\"\",VLOOKUP(A65, DATA_TABLE!$C$68:$I$320, 6, FALSE))","v":""}]
[null,{"$f":"IF(A66=\"\",\"\",VLOOKUP(A66, DATA_TABLE!$C$68:$I$321, 7, FALSE))","v":""},null,null,{"$f":"IF(A66=\"\",\"\",VLOOKUP(A66, DATA_TABLE!$C$68:$I$320, 2, FALSE))","v":""},"",0,{"$f":"IF(E66=\"\",\"\",VLOOKUP(A66, DATA_TABLE!$C$68:$I$320, 4, FALSE))","v":""},"",{"$f":"IF(A66=\"\",\"\",VLOOKUP(A66, DATA_TABLE!$C$68:$I$320, 5, FALSE))","v":""},{"$f":"IF(A66=\"\",\"\",VLOOKUP(A66, DATA_TABLE!$C$68:$I$320, 6, FALSE))","v":""}]
[null,{"$f":"IF(A67=\"\",\"\",VLOOKUP(A67, DATA_TABLE!$C$68:$I$321, 7, FALSE))","v":""},null,null,{"$f":"IF(A67=\"\",\"\",VLOOKUP(A67, DATA_TABLE!$C$68:$I$320, 2, FALSE))","v":""},"",0,{"$f":"IF(E67=\"\",\"\",VLOOKUP(A67, DATA_TABLE!$C$68:$I$320, 4, FALSE))","v":""},"",{"$f":"IF(A67=\"\",\"\",VLOOKUP(A67, DATA_TABLE!$C$68:$I$320, 5, FALSE))","v":""},{"$f":"IF(A67=\"\",\"\",VLOOKUP(A67, DATA_TABLE!$C$68:$I$320, 6, FALSE))","v":""}]
[null,{"$f":"IF(A68=\"\",\"\",VLOOKUP(A68, DATA_TABLE!$C$68:$I$321, 7, FALSE))","v":""},null,null,{"$f":"IF(A68=\"\",\"\",VLOOKUP(A68, DATA_TABLE!$C$68:$I$320, 2, FALSE))","v":""},"",0,{"$f":"IF(E68=\"\",\"\",VLOOKUP(A68, DATA_TABLE!$C$68:$I$320, 4, FALSE))","v":""},"",{"$f":"IF(A68=\"\",\"\",VLOOKUP(A68, DATA_TABLE!$C$68:$I$320, 5, FALSE))","v":""},{"$f":"IF(A68=\"\",\"\",VLOOKUP(A68, DATA_TABLE!$C$68:$I$320, 6, FALSE))","v":""}]
["Totals",null,null,{"$f":"SUM(D23:D68)","v":0},null,{"$f":"SUM(F23:F68)","v":0},{"$f":"SUM(G23:G68)","v":0},{"$f":"SUM(H23:H68)","v":0},{"$f":"SUM(I23:I68)","v":0},null,{"$f":"IF(ISERROR(AVERAGE(K23:K68)),0,AVERAGE(K23:K68))","v":0}]
[]
[]
[null,null,"VALUE","Parameter"]
[null,null,{"$f":"COUNTIF(J23:J68,\"=1\")","v":0},"1 = April to May Bloom Period"]
[null,null,{"$f":"COUNTIF(J23:J68,\"=2\")","v":0},"2 = June to July Bloom Period"]
[null,null,{"$f":"COUNTIF(J23:J68,\"=3\")","v":0},"3 = August to October Bloom Period"]
[null,null,{"$f":"SUMIF($J$23:$J$68,\"1\",$G$23:$G$68)","v":0},"% PLS Seeding Rate 1's"]
[null,null,{"$f":"SUMIF($J$23:$J$68,\"2\",$G$23:$G$68)","v":0},"% PLS Seeding Rate 2's"]
[null,null,{"$f":"SUMIF($J$23:$J$68,\"3\",$G$23:$G$68)","v":0}," % PLS Seeding Rate 3's"]
[null,null,{"$f":"COUNT(D6:D20)","v":0},"Grasses Species Richness"]
[null,null,{"$f":"COUNT(D23:D68)","v":0},"Forb/Legume Species Richness"]
[null,null,{"$f":"K21","v":0},"Grasses - COC Average"]
[null,null,{"$f":"K69","v":0},"Forbs -COC Average"]
[null,null,{"$f":"IF(ISERROR(AVERAGE(K6:K20,K23:K68)),0,AVERAGE(K6:K20,K23:K69))","v":0},"COC = Coefficient of Conservatism Combined"]
[null,null,{"$f":"$F$21+$F$69","v":0},"Total PLS "]
[null,null,{"$f":"(F21/(F21+F69))","v":{"$error":"#DIV/0!"}},"PLS % Grasses"]
[null,null,{"$f":"(F69/(F21+F69))","v":{"$error":"#DIV/0!"}},"PLS % Forbs/Legumes"]

{"sheet":"Mix_4","index":3,"n_rows":86,"n_cols":13,"rows_kept":86,"cut":false,"hidden":false,"merged":[[13,12,15,12],[69,0,69,10],[0,1,0,2],[0,3,0,6],[1,0,3,0],[1,2,3,2],[1,3,3,3],[1,4,3,4],[1,5,3,5],[1,6,3,6],[17,12,21,12],[76,3,76,7],[1,7,3,7],[1,8,3,8],[1,9,3,9],[1,10,3,10],[83,3,83,7],[84,3,84,7],[85,3,85,7],[5,12,7,12],[8,12,11,12],[77,3,77,7],[78,3,78,7],[79,3,79,7],[80,3,80,7],[81,3,81,7],[82,3,82,7],[71,3,71,7],[72,3,72,7],[73,3,73,7],[74,3,74,7],[75,3,75,7]]}
["CPA8 MIX 4 - NAME:  ",null,null,"MLRA:"]
["Species List ",null,"Variety names listed in bold are the preferred varieties","PLS LBS per acre","PLS per ft² @ 1lb/ac","PLS per ft² ","% of Grasses","Est. Cost Per Pound (PLS)","Estimated Cost Per Acre","Bloom Period","COC"]
[]
[]
["GRASSES","SCIENTIFIC NAME","Acceptable Varieties"]
[null,{"$f":"IF(A6=\"\",\"\",VLOOKUP(A6, DATA_TABLE!$C$3:$I$64, 7, FALSE))","v":""},null,null,{"$f":"IF(A6=\"\",\"\",VLOOKUP(A6, DATA_TABLE!$C$3:$I$64, 2, FALSE))","v":""},{"$f":"IF(A6=\"\",\"\",(D6*E6))","v":""},{"$f":"IF(A6>0,F6/$F$21,0)","v":0},{"$f":"IF(E6=\"\",\"\",VLOOKUP(A6, DATA_TABLE!$C$3:$I$64, 4, FALSE))","v":""},{"$f":"IF(A6=\"\",\"\",(H6*D6))","v":""},null,{"$f":"IF(A6=\"\",\"\",VLOOKUP(A6, DATA_TABLE!$C$3:$I$64, 6, FALSE))","v":""},null,"Enter the grass, the appropriate varieties ,and pls lbs per acre for grasses and forbs (varieties will rarely be entered for forbs)."]
[null,{"$f":"IF(A7=\"\",\"\",VLOOKUP(A7, DATA_TABLE!$C$3:$I$64, 7, FALSE))","v":""},null,null,{"$f":"IF(A7=\"\",\"\",VLOOKUP(A7, DATA_TABLE!$C$3:$I$64, 2, FALSE))","v":""},{"$f":"IF(A7=\"\",\"\",(D7*E7))","v":""},{"$f":"IF(A7>0,F7/$F$21,0)","v":0},{"$f":"IF(E7=\"\",\"\",VLOOKUP(A7, DATA_TABLE!$C$3:$I$64, 4, FALSE))","v":""},"",null,{"$f":"IF(A7=\"\",\"\",VLOOKUP(A7, DATA_TABLE!$C$3:$I$64, 6, FALSE))","v":""}]
[null,{"$f":"IF(A8=\"\",\"\",VLOOKUP(A8, DATA_TABLE!$C$3:$I$64, 7, FALSE))","v":""},null,null,{"$f":"IF(A8=\"\",\"\",VLOOKUP(A8, DATA_TABLE!$C$3:$I$64, 2, FALSE))","v":""},"",0,{"$f":"IF(E8=\"\",\"\",VLOOKUP(A8, DATA_TABLE!$C$3:$I$64, 4, FALSE))","v":""},"",null,{"$f":"IF(A8=\"\",\"\",VLOOKUP(A8, DATA_TABLE!$C$3:$I$64, 6, FALSE))","v":""}]
[null,{"$f":"IF(A9=\"\",\"\",VLOOKUP(A9, DATA_TABLE!$C$3:$I$64, 7, FALSE))","v":""},null,null,{"$f":"IF(A9=\"\",\"\",VLOOKUP(A9, DATA_TABLE!$C$3:$I$64, 2, FALSE))","v":""},"",0,{"$f":"IF(E9=\"\",\"\",VLOOKUP(A9, DATA_TABLE!$C$3:$I$64, 4, FALSE))","v":""},"",null,{"$f":"IF(A9=\"\",\"\",VLOOKUP(A9, DATA_TABLE!$C$3:$I$64, 6, FALSE))","v":""},null,"Acceptable Varieties:  See the UN-L variety guide (Certified Perennial Grass Varieties Recommended for Nebraska) for acceptable varieties for the MLRA where the seeding will occur.  "]
[null,{"$f":"IF(A10=\"\",\"\",VLOOKUP(A10, DATA_TABLE!$C$3:$I$64, 7, FALSE))","v":""},null,null,{"$f":"IF(A10=\"\",\"\",VLOOKUP(A10, DATA_TABLE!$C$3:$I$64, 2, FALSE))","v":""},"",0,{"$f":"IF(E10=\"\",\"\",VLOOKUP(A10, DATA_TABLE!$C$3:$I$64, 4, FALSE))","v":""},"",null,{"$f":"IF(A10=\"\",\"\",VLOOKUP(A10, DATA_TABLE!$C$3:$I$64, 6, FALSE))","v":""}]
[null,{"$f":"IF(A11=\"\",\"\",VLOOKUP(A11, DATA_TABLE!$C$3:$I$64, 7, FALSE))","v":""},null,null,{"$f":"IF(A11=\"\",\"\",VLOOKUP(A11, DATA_TABLE!$C$3:$I$64, 2, FALSE))","v":""},"",0,{"$f":"IF(E11=\"\",\"\",VLOOKUP(A11, DATA_TABLE!$C$3:$I$64, 4, FALSE))","v":""},"",null,{"$f":"IF(A11=\"\",\"\",VLOOKUP(A11, DATA_TABLE!$C$3:$I$64, 6, FALSE))","v":""}]
[null,{"$f":"IF(A12=\"\",\"\",VLOOKUP(A12, DATA_TABLE!$C$3:$I$64, 7, FALSE))","v":""},null,null,{"$f":"IF(A12=\"\",\"\",VLOOKUP(A12, DATA_TABLE!$C$3:$I$64, 2, FALSE))","v":""},"",0,{"$f":"IF(E12=\"\",\"\",VLOOKUP(A12, DATA_TABLE!$C$3:$I$64, 4, FALSE))","v":""},"",null,{"$f":"IF(A12=\"\",\"\",VLOOKUP(A12, DATA_TABLE!$C$3:$I$64, 6, FALSE))","v":""}]
[null,{"$f":"IF(A13=\"\",\"\",VLOOKUP(A13, DATA_TABLE!$C$3:$I$64, 7, FALSE))","v":""},null,null,{"$f":"IF(A13=\"\",\"\",VLOOKUP(A13, DATA_TABLE!$C$3:$I$64, 2, FALSE))","v":""},"",0,{"$f":"IF(E13=\"\",\"\",VLOOKUP(A13, DATA_TABLE!$C$3:$I$64, 4, FALSE))","v":""},"",null,{"$f":"IF(A13=\"\",\"\",VLOOKUP(A13, DATA_TABLE!$C$3:$I$64, 6, FALSE))","v":""},null,"http://extensionpublications.unl.edu/assets/pdf/ec120.pdf"]
[null,{"$f":"IF(A14=\"\",\"\",VLOOKUP(A14, DATA_TABLE!$C$3:$I$64, 7, FALSE))","v":""},null,null,{"$f":"IF(A14=\"\",\"\",VLOOKUP(A14, DATA_TABLE!$C$3:$I$64, 2, FALSE))","v":""},"",0,{"$f":"IF(E14=\"\",\"\",VLOOKUP(A14, DATA_TABLE!$C$3:$I$64, 4, FALSE))","v":""},"",null,{"$f":"IF(A14=\"\",\"\",VLOOKUP(A14, DATA_TABLE!$C$3:$I$64, 6, FALSE))","v":""},null,"If desired, hide the lines that are not used or are blank under by highlighting the rows, right clicking and selecting \"hide\".  Then if you print this page, the blank rows will not print."]
[null,{"$f":"IF(A15=\"\",\"\",VLOOKUP(A15, DATA_TABLE!$C$3:$I$64, 7, FALSE))","v":""},null,null,{"$f":"IF(A15=\"\",\"\",VLOOKUP(A15, DATA_TABLE!$C$3:$I$64, 2, FALSE))","v":""},"",0,{"$f":"IF(E15=\"\",\"\",VLOOKUP(A15, DATA_TABLE!$C$3:$I$64, 4, FALSE))","v":""},"",null,{"$f":"IF(A15=\"\",\"\",VLOOKUP(A15, DATA_TABLE!$C$3:$I$64, 6, FALSE))","v":""}]
[null,{"$f":"IF(A16=\"\",\"\",VLOOKUP(A16, DATA_TABLE!$C$3:$I$64, 7, FALSE))","v":""},null,null,{"$f":"IF(A16=\"\",\"\",VLOOKUP(A16, DATA_TABLE!$C$3:$I$64, 2, FALSE))","v":""},"",0,{"$f":"IF(E16=\"\",\"\",VLOOKUP(A16, DATA_TABLE!$C$3:$I$64, 4, FALSE))","v":""},"",null,{"$f":"IF(A16=\"\",\"\",VLOOKUP(A16, DATA_TABLE!$C$3:$I$64, 6, FALSE))","v":""}]
[null,{"$f":"IF(A17=\"\",\"\",VLOOKUP(A17, DATA_TABLE!$C$3:$I$64, 7, FALSE))","v":""},null,null,{"$f":"IF(A17=\"\",\"\",VLOOKUP(A17, DATA_TABLE!$C$3:$I$64, 2, FALSE))","v":""},"",0,{"$f":"IF(E17=\"\",\"\",VLOOKUP(A17, DATA_TABLE!$C$3:$I$64, 4, FALSE))","v":""},"",null,{"$f":"IF(A17=\"\",\"\",VLOOKUP(A17, DATA_TABLE!$C$3:$I$64, 6, FALSE))","v":""}]
[null,{"$f":"IF(A18=\"\",\"\",VLOOKUP(A18, DATA_TABLE!$C$3:$I$64, 7, FALSE))","v":""},null,null,{"$f":"IF(A18=\"\",\"\",VLOOKUP(A18, DATA_TABLE!$C$3:$I$64, 2, FALSE))","v":""},"",0,{"$f":"IF(E18=\"\",\"\",VLOOKUP(A18, DATA_TABLE!$C$3:$I$64, 4, FALSE))","v":""},"",null,{"$f":"IF(A18=\"\",\"\",VLOOKUP(A18, DATA_TABLE!$C$3:$I$64, 6, FALSE))","v":""},null,"Note:  If you have mixes from older seeding sheets, you can copy and paste rather than use the dropdowns.  Since this workbook uses standardized names from Flora of Nebraska, any names in the old workbook that do not conform with the standard names will not copy and you will need to manually enter those species."]
[null,{"$f":"IF(A19=\"\",\"\",VLOOKUP(A19, DATA_TABLE!$C$3:$I$64, 7, FALSE))","v":""},null,null,{"$f":"IF(A19=\"\",\"\",VLOOKUP(A19, DATA_TABLE!$C$3:$I$64, 2, FALSE))","v":""},"",0,{"$f":"IF(E19=\"\",\"\",VLOOKUP(A19, DATA_TABLE!$C$3:$I$64, 4, FALSE))","v":""},"",null,{"$f":"IF(A19=\"\",\"\",VLOOKUP(A19, DATA_TABLE!$C$3:$I$64, 6, FALSE))","v":""}]
[null,{"$f":"IF(A20=\"\",\"\",VLOOKUP(A20, DATA_TABLE!$C$3:$I$64, 7, FALSE))","v":""},null,null,{"$f":"IF(A20=\"\",\"\",VLOOKUP(A20, DATA_TABLE!$C$3:$I$64, 2, FALSE))","v":""},"",0,{"$f":"IF(E20=\"\",\"\",VLOOKUP(A20, DATA_TABLE!$C$3:$I$64, 4, FALSE))","v":""},"",null,{"$f":"IF(A20=\"\",\"\",VLOOKUP(A20, DATA_TABLE!$C$3:$I$64, 6, FALSE))","v":""}]
["Totals",null,null,{"$f":"SUM(D6:D20)","v":0},null,{"$f":"SUM(F6:F20)","v":0},{"$f":"SUM(G6:G20)","v":0},{"$f":"SUM(A6:A20)","v":0},{"$f":"SUM(I6:I20)","v":0},null,{"$f":"IF(ISERROR(AVERAGE(K6:K20)),0,AVERAGE(K6:K20))","v":0}]
["FORBS & LEGUMES","SCIENTIFIC NAME",null,"PLS LBS per acre","PLS per ft² @ 1lb/ac","PLS per ft² ","% of Forbs","Est. Cost Per Pound (PLS)","Estimated Cost Per Acre","Bloom Period","COC"]
[null,{"$f":"IF(A23=\"\",\"\",VLOOKUP(A23, DATA_TABLE!$C$68:$I$321, 7, FALSE))","v":""},null,null,{"$f":"IF(A23=\"\",\"\",VLOOKUP(A23, DATA_TABLE!$C$68:$I$320, 2, FALSE))","v":""},{"$f":"IF(D23=\"\",\"\",(D23*E23))","v":""},{"$f":"IF(D23>0,F23/$F$69,0)","v":0},{"$f":"IF(E23=\"\",\"\",VLOOKUP(A23, DATA_TABLE!$C$68:$I$320, 4, FALSE))","v":""},{"$f":"IF(A23=\"\",\"\",(H23*D23))","v":""},{"$f":"IF(A23=\"\",\"\",VLOOKUP(A23, DATA_TABLE!$C$68:$I$320, 5, FALSE))","v":""},{"$f":"IF(A23=\"\",\"\",VLOOKUP(A23, DATA_TABLE!$C$68:$I$320, 6, FALSE))","v":""}]
[null,{"$f":"IF(A24=\"\",\"\",VLOOKUP(A24, DATA_TABLE!$C$68:$I$321, 7, FALSE))","v":""},null,null,{"$f":"IF(A24=\"\",\"\",VLOOKUP(A24, DATA_TABLE!$C$68:$I$320, 2, FALSE))","v":""},{"$f":"IF(D24=\"\",\"\",(D24*E24))","v":""},0,{"$f":"IF(E24=\"\",\"\",VLOOKUP(A24, DATA_TABLE!$C$68:$I$320, 4, FALSE))","v":""},"",{"$f":"IF(A24=\"\",\"\",VLOOKUP(A24, DATA_TABLE!$C$68:$I$320, 5, FALSE))","v":""},{"$f":"IF(A24=\"\",\"\",VLOOKUP(A24, DATA_TABLE!$C$68:$I$320, 6, FALSE))","v":""}]
[null,{"$f":"IF(A25=\"\",\"\",VLOOKUP(A25, DATA_TABLE!$C$68:$I$321, 7, FALSE))","v":""},null,null,{"$f":"IF(A25=\"\",\"\",VLOOKUP(A25, DATA_TABLE!$C$68:$I$320, 2, FALSE))","v":""},"",0,{"$f":"IF(E25=\"\",\"\",VLOOKUP(A25, DATA_TABLE!$C$68:$I$320, 4, FALSE))","v":""},"",{"$f":"IF(A25=\"\",\"\",VLOOKUP(A25, DATA_TABLE!$C$68:$I$320, 5, FALSE))","v":""},{"$f":"IF(A25=\"\",\"\",VLOOKUP(A25, DATA_TABLE!$C$68:$I$320, 6, FALSE))","v":""}]
[null,{"$f":"IF(A26=\"\",\"\",VLOOKUP(A26, DATA_TABLE!$C$68:$I$321, 7, FALSE))","v":""},null,null,{"$f":"IF(A26=\"\",\"\",VLOOKUP(A26, DATA_TABLE!$C$68:$I$320, 2, FALSE))","v":""},"",0,{"$f":"IF(E26=\"\",\"\",VLOOKUP(A26, DATA_TABLE!$C$68:$I$320, 4, FALSE))","v":""},"",{"$f":"IF(A26=\"\",\"\",VLOOKUP(A26, DATA_TABLE!$C$68:$I$320, 5, FALSE))","v":""},{"$f":"IF(A26=\"\",\"\",VLOOKUP(A26, DATA_TABLE!$C$68:$I$320, 6, FALSE))","v":""}]
[null,{"$f":"IF(A27=\"\",\"\",VLOOKUP(A27, DATA_TABLE!$C$68:$I$321, 7, FALSE))","v":""},null,null,{"$f":"IF(A27=\"\",\"\",VLOOKUP(A27, DATA_TABLE!$C$68:$I$320, 2, FALSE))","v":""},"",0,{"$f":"IF(E27=\"\",\"\",VLOOKUP(A27, DATA_TABLE!$C$68:$I$320, 4, FALSE))","v":""},"",{"$f":"IF(A27=\"\",\"\",VLOOKUP(A27, DATA_TABLE!$C$68:$I$320, 5, FALSE))","v":""},{"$f":"IF(A27=\"\",\"\",VLOOKUP(A27, DATA_TABLE!$C$68:$I$320, 6, FALSE))","v":""}]
[null,{"$f":"IF(A28=\"\",\"\",VLOOKUP(A28, DATA_TABLE!$C$68:$I$321, 7, FALSE))","v":""},null,null,{"$f":"IF(A28=\"\",\"\",VLOOKUP(A28, DATA_TABLE!$C$68:$I$320, 2, FALSE))","v":""},"",0,{"$f":"IF(E28=\"\",\"\",VLOOKUP(A28, DATA_TABLE!$C$68:$I$320, 4, FALSE))","v":""},"",{"$f":"IF(A28=\"\",\"\",VLOOKUP(A28, DATA_TABLE!$C$68:$I$320, 5, FALSE))","v":""},{"$f":"IF(A28=\"\",\"\",VLOOKUP(A28, DATA_TABLE!$C$68:$I$320, 6, FALSE))","v":""}]
[null,{"$f":"IF(A29=\"\",\"\",VLOOKUP(A29, DATA_TABLE!$C$68:$I$321, 7, FALSE))","v":""},null,null,{"$f":"IF(A29=\"\",\"\",VLOOKUP(A29, DATA_TABLE!$C$68:$I$320, 2, FALSE))","v":""},"",0,{"$f":"IF(E29=\"\",\"\",VLOOKUP(A29, DATA_TABLE!$C$68:$I$320, 4, FALSE))","v":""},"",{"$f":"IF(A29=\"\",\"\",VLOOKUP(A29, DATA_TABLE!$C$68:$I$320, 5, FALSE))","v":""},{"$f":"IF(A29=\"\",\"\",VLOOKUP(A29, DATA_TABLE!$C$68:$I$320, 6, FALSE))","v":""}]
[null,{"$f":"IF(A30=\"\",\"\",VLOOKUP(A30, DATA_TABLE!$C$68:$I$321, 7, FALSE))","v":""},null,null,{"$f":"IF(A30=\"\",\"\",VLOOKUP(A30, DATA_TABLE!$C$68:$I$320, 2, FALSE))","v":""},"",0,{"$f":"IF(E30=\"\",\"\",VLOOKUP(A30, DATA_TABLE!$C$68:$I$320, 4, FALSE))","v":""},"",{"$f":"IF(A30=\"\",\"\",VLOOKUP(A30, DATA_TABLE!$C$68:$I$320, 5, FALSE))","v":""},{"$f":"IF(A30=\"\",\"\",VLOOKUP(A30, DATA_TABLE!$C$68:$I$320, 6, FALSE))","v":""}]
[null,{"$f":"IF(A31=\"\",\"\",VLOOKUP(A31, DATA_TABLE!$C$68:$I$321, 7, FALSE))","v":""},null,null,{"$f":"IF(A31=\"\",\"\",VLOOKUP(A31, DATA_TABLE!$C$68:$I$320, 2, FALSE))","v":""},"",0,{"$f":"IF(E31=\"\",\"\",VLOOKUP(A31, DATA_TABLE!$C$68:$I$320, 4, FALSE))","v":""},"",{"$f":"IF(A31=\"\",\"\",VLOOKUP(A31, DATA_TABLE!$C$68:$I$320, 5, FALSE))","v":""},{"$f":"IF(A31=\"\",\"\",VLOOKUP(A31, DATA_TABLE!$C$68:$I$320, 6, FALSE))","v":""}]
[null,{"$f":"IF(A32=\"\",\"\",VLOOKUP(A32, DATA_TABLE!$C$68:$I$321, 7, FALSE))","v":""},null,null,{"$f":"IF(A32=\"\",\"\",VLOOKUP(A32, DATA_TABLE!$C$68:$I$320, 2, FALSE))","v":""},"",0,{"$f":"IF(E32=\"\",\"\",VLOOKUP(A32, DATA_TABLE!$C$68:$I$320, 4, FALSE))","v":""},"",{"$f":"IF(A32=\"\",\"\",VLOOKUP(A32, DATA_TABLE!$C$68:$I$320, 5, FALSE))","v":""},{"$f":"IF(A32=\"\",\"\",VLOOKUP(A32, DATA_TABLE!$C$68:$I$320, 6, FALSE))","v":""}]
[null,{"$f":"IF(A33=\"\",\"\",VLOOKUP(A33, DATA_TABLE!$C$68:$I$321, 7, FALSE))","v":""},null,null,{"$f":"IF(A33=\"\",\"\",VLOOKUP(A33, DATA_TABLE!$C$68:$I$320, 2, FALSE))","v":""},"",0,{"$f":"IF(E33=\"\",\"\",VLOOKUP(A33, DATA_TABLE!$C$68:$I$320, 4, FALSE))","v":""},"",{"$f":"IF(A33=\"\",\"\",VLOOKUP(A33, DATA_TABLE!$C$68:$I$320, 5, FALSE))","v":""},{"$f":"IF(A33=\"\",\"\",VLOOKUP(A33, DATA_TABLE!$C$68:$I$320, 6, FALSE))","v":""}]
[null,{"$f":"IF(A34=\"\",\"\",VLOOKUP(A34, DATA_TABLE!$C$68:$I$321, 7, FALSE))","v":""},null,null,{"$f":"IF(A34=\"\",\"\",VLOOKUP(A34, DATA_TABLE!$C$68:$I$320, 2, FALSE))","v":""},"",0,{"$f":"IF(E34=\"\",\"\",VLOOKUP(A34, DATA_TABLE!$C$68:$I$320, 4, FALSE))","v":""},"",{"$f":"IF(A34=\"\",\"\",VLOOKUP(A34, DATA_TABLE!$C$68:$I$320, 5, FALSE))","v":""},{"$f":"IF(A34=\"\",\"\",VLOOKUP(A34, DATA_TABLE!$C$68:$I$320, 6, FALSE))","v":""}]
[null,{"$f":"IF(A35=\"\",\"\",VLOOKUP(A35, DATA_TABLE!$C$68:$I$321, 7, FALSE))","v":""},null,null,{"$f":"IF(A35=\"\",\"\",VLOOKUP(A35, DATA_TABLE!$C$68:$I$320, 2, FALSE))","v":""},"",0,{"$f":"IF(E35=\"\",\"\",VLOOKUP(A35, DATA_TABLE!$C$68:$I$320, 4, FALSE))","v":""},"",{"$f":"IF(A35=\"\",\"\",VLOOKUP(A35, DATA_TABLE!$C$68:$I$320, 5, FALSE))","v":""},{"$f":"IF(A35=\"\",\"\",VLOOKUP(A35, DATA_TABLE!$C$68:$I$320, 6, FALSE))","v":""}]
[null,{"$f":"IF(A36=\"\",\"\",VLOOKUP(A36, DATA_TABLE!$C$68:$I$321, 7, FALSE))","v":""},null,null,{"$f":"IF(A36=\"\",\"\",VLOOKUP(A36, DATA_TABLE!$C$68:$I$320, 2, FALSE))","v":""},"",0,{"$f":"IF(E36=\"\",\"\",VLOOKUP(A36, DATA_TABLE!$C$68:$I$320, 4, FALSE))","v":""},"",{"$f":"IF(A36=\"\",\"\",VLOOKUP(A36, DATA_TABLE!$C$68:$I$320, 5, FALSE))","v":""},{"$f":"IF(A36=\"\",\"\",VLOOKUP(A36, DATA_TABLE!$C$68:$I$320, 6, FALSE))","v":""}]
[null,{"$f":"IF(A37=\"\",\"\",VLOOKUP(A37, DATA_TABLE!$C$68:$I$321, 7, FALSE))","v":""},null,null,{"$f":"IF(A37=\"\",\"\",VLOOKUP(A37, DATA_TABLE!$C$68:$I$320, 2, FALSE))","v":""},"",0,{"$f":"IF(E37=\"\",\"\",VLOOKUP(A37, DATA_TABLE!$C$68:$I$320, 4, FALSE))","v":""},"",{"$f":"IF(A37=\"\",\"\",VLOOKUP(A37, DATA_TABLE!$C$68:$I$320, 5, FALSE))","v":""},{"$f":"IF(A37=\"\",\"\",VLOOKUP(A37, DATA_TABLE!$C$68:$I$320, 6, FALSE))","v":""}]
[null,{"$f":"IF(A38=\"\",\"\",VLOOKUP(A38, DATA_TABLE!$C$68:$I$321, 7, FALSE))","v":""},null,null,{"$f":"IF(A38=\"\",\"\",VLOOKUP(A38, DATA_TABLE!$C$68:$I$320, 2, FALSE))","v":""},"",0,{"$f":"IF(E38=\"\",\"\",VLOOKUP(A38, DATA_TABLE!$C$68:$I$320, 4, FALSE))","v":""},"",{"$f":"IF(A38=\"\",\"\",VLOOKUP(A38, DATA_TABLE!$C$68:$I$320, 5, FALSE))","v":""},{"$f":"IF(A38=\"\",\"\",VLOOKUP(A38, DATA_TABLE!$C$68:$I$320, 6, FALSE))","v":""}]
[null,{"$f":"IF(A39=\"\",\"\",VLOOKUP(A39, DATA_TABLE!$C$68:$I$321, 7, FALSE))","v":""},null,null,{"$f":"IF(A39=\"\",\"\",VLOOKUP(A39, DATA_TABLE!$C$68:$I$320, 2, FALSE))","v":""},"",0,{"$f":"IF(E39=\"\",\"\",VLOOKUP(A39, DATA_TABLE!$C$68:$I$320, 4, FALSE))","v":""},"",{"$f":"IF(A39=\"\",\"\",VLOOKUP(A39, DATA_TABLE!$C$68:$I$320, 5, FALSE))","v":""},{"$f":"IF(A39=\"\",\"\",VLOOKUP(A39, DATA_TABLE!$C$68:$I$320, 6, FALSE))","v":""}]
[null,{"$f":"IF(A40=\"\",\"\",VLOOKUP(A40, DATA_TABLE!$C$68:$I$321, 7, FALSE))","v":""},null,null,{"$f":"IF(A40=\"\",\"\",VLOOKUP(A40, DATA_TABLE!$C$68:$I$320, 2, FALSE))","v":""},"",0,{"$f":"IF(E40=\"\",\"\",VLOOKUP(A40, DATA_TABLE!$C$68:$I$320, 4, FALSE))","v":""},"",{"$f":"IF(A40=\"\",\"\",VLOOKUP(A40, DATA_TABLE!$C$68:$I$320, 5, FALSE))","v":""},{"$f":"IF(A40=\"\",\"\",VLOOKUP(A40, DATA_TABLE!$C$68:$I$320, 6, FALSE))","v":""}]
[null,{"$f":"IF(A41=\"\",\"\",VLOOKUP(A41, DATA_TABLE!$C$68:$I$321, 7, FALSE))","v":""},null,null,{"$f":"IF(A41=\"\",\"\",VLOOKUP(A41, DATA_TABLE!$C$68:$I$320, 2, FALSE))","v":""},"",0,{"$f":"IF(E41=\"\",\"\",VLOOKUP(A41, DATA_TABLE!$C$68:$I$320, 4, FALSE))","v":""},"",{"$f":"IF(A41=\"\",\"\",VLOOKUP(A41, DATA_TABLE!$C$68:$I$320, 5, FALSE))","v":""},{"$f":"IF(A41=\"\",\"\",VLOOKUP(A41, DATA_TABLE!$C$68:$I$320, 6, FALSE))","v":""}]
[null,{"$f":"IF(A42=\"\",\"\",VLOOKUP(A42, DATA_TABLE!$C$68:$I$321, 7, FALSE))","v":""},null,null,{"$f":"IF(A42=\"\",\"\",VLOOKUP(A42, DATA_TABLE!$C$68:$I$320, 2, FALSE))","v":""},"",0,{"$f":"IF(E42=\"\",\"\",VLOOKUP(A42, DATA_TABLE!$C$68:$I$320, 4, FALSE))","v":""},"",{"$f":"IF(A42=\"\",\"\",VLOOKUP(A42, DATA_TABLE!$C$68:$I$320, 5, FALSE))","v":""},{"$f":"IF(A42=\"\",\"\",VLOOKUP(A42, DATA_TABLE!$C$68:$I$320, 6, FALSE))","v":""}]
[null,{"$f":"IF(A43=\"\",\"\",VLOOKUP(A43, DATA_TABLE!$C$68:$I$321, 7, FALSE))","v":""},null,null,{"$f":"IF(A43=\"\",\"\",VLOOKUP(A43, DATA_TABLE!$C$68:$I$320, 2, FALSE))","v":""},"",0,{"$f":"IF(E43=\"\",\"\",VLOOKUP(A43, DATA_TABLE!$C$68:$I$320, 4, FALSE))","v":""},"",{"$f":"IF(A43=\"\",\"\",VLOOKUP(A43, DATA_TABLE!$C$68:$I$320, 5, FALSE))","v":""},{"$f":"IF(A43=\"\",\"\",VLOOKUP(A43, DATA_TABLE!$C$68:$I$320, 6, FALSE))","v":""}]
[null,{"$f":"IF(A44=\"\",\"\",VLOOKUP(A44, DATA_TABLE!$C$68:$I$321, 7, FALSE))","v":""},null,null,{"$f":"IF(A44=\"\",\"\",VLOOKUP(A44, DATA_TABLE!$C$68:$I$320, 2, FALSE))","v":""},"",0,{"$f":"IF(E44=\"\",\"\",VLOOKUP(A44, DATA_TABLE!$C$68:$I$320, 4, FALSE))","v":""},"",{"$f":"IF(A44=\"\",\"\",VLOOKUP(A44, DATA_TABLE!$C$68:$I$320, 5, FALSE))","v":""},{"$f":"IF(A44=\"\",\"\",VLOOKUP(A44, DATA_TABLE!$C$68:$I$320, 6, FALSE))","v":""}]
[null,{"$f":"IF(A45=\"\",\"\",VLOOKUP(A45, DATA_TABLE!$C$68:$I$321, 7, FALSE))","v":""},null,null,{"$f":"IF(A45=\"\",\"\",VLOOKUP(A45, DATA_TABLE!$C$68:$I$320, 2, FALSE))","v":""},"",0,{"$f":"IF(E45=\"\",\"\",VLOOKUP(A45, DATA_TABLE!$C$68:$I$320, 4, FALSE))","v":""},"",{"$f":"IF(A45=\"\",\"\",VLOOKUP(A45, DATA_TABLE!$C$68:$I$320, 5, FALSE))","v":""},{"$f":"IF(A45=\"\",\"\",VLOOKUP(A45, DATA_TABLE!$C$68:$I$320, 6, FALSE))","v":""}]
[null,{"$f":"IF(A46=\"\",\"\",VLOOKUP(A46, DATA_TABLE!$C$68:$I$321, 7, FALSE))","v":""},null,null,{"$f":"IF(A46=\"\",\"\",VLOOKUP(A46, DATA_TABLE!$C$68:$I$320, 2, FALSE))","v":""},"",0,{"$f":"IF(E46=\"\",\"\",VLOOKUP(A46, DATA_TABLE!$C$68:$I$320, 4, FALSE))","v":""},"",{"$f":"IF(A46=\"\",\"\",VLOOKUP(A46, DATA_TABLE!$C$68:$I$320, 5, FALSE))","v":""},{"$f":"IF(A46=\"\",\"\",VLOOKUP(A46, DATA_TABLE!$C$68:$I$320, 6, FALSE))","v":""}]
[null,{"$f":"IF(A47=\"\",\"\",VLOOKUP(A47, DATA_TABLE!$C$68:$I$321, 7, FALSE))","v":""},null,null,{"$f":"IF(A47=\"\",\"\",VLOOKUP(A47, DATA_TABLE!$C$68:$I$320, 2, FALSE))","v":""},"",0,{"$f":"IF(E47=\"\",\"\",VLOOKUP(A47, DATA_TABLE!$C$68:$I$320, 4, FALSE))","v":""},"",{"$f":"IF(A47=\"\",\"\",VLOOKUP(A47, DATA_TABLE!$C$68:$I$320, 5, FALSE))","v":""},{"$f":"IF(A47=\"\",\"\",VLOOKUP(A47, DATA_TABLE!$C$68:$I$320, 6, FALSE))","v":""}]
[null,{"$f":"IF(A48=\"\",\"\",VLOOKUP(A48, DATA_TABLE!$C$68:$I$321, 7, FALSE))","v":""},null,null,{"$f":"IF(A48=\"\",\"\",VLOOKUP(A48, DATA_TABLE!$C$68:$I$320, 2, FALSE))","v":""},"",0,{"$f":"IF(E48=\"\",\"\",VLOOKUP(A48, DATA_TABLE!$C$68:$I$320, 4, FALSE))","v":""},"",{"$f":"IF(A48=\"\",\"\",VLOOKUP(A48, DATA_TABLE!$C$68:$I$320, 5, FALSE))","v":""},{"$f":"IF(A48=\"\",\"\",VLOOKUP(A48, DATA_TABLE!$C$68:$I$320, 6, FALSE))","v":""}]
[null,{"$f":"IF(A49=\"\",\"\",VLOOKUP(A49, DATA_TABLE!$C$68:$I$321, 7, FALSE))","v":""},null,null,{"$f":"IF(A49=\"\",\"\",VLOOKUP(A49, DATA_TABLE!$C$68:$I$320, 2, FALSE))","v":""},"",0,{"$f":"IF(E49=\"\",\"\",VLOOKUP(A49, DATA_TABLE!$C$68:$I$320, 4, FALSE))","v":""},"",{"$f":"IF(A49=\"\",\"\",VLOOKUP(A49, DATA_TABLE!$C$68:$I$320, 5, FALSE))","v":""},{"$f":"IF(A49=\"\",\"\",VLOOKUP(A49, DATA_TABLE!$C$68:$I$320, 6, FALSE))","v":""}]
[null,{"$f":"IF(A50=\"\",\"\",VLOOKUP(A50, DATA_TABLE!$C$68:$I$321, 7, FALSE))","v":""},null,null,{"$f":"IF(A50=\"\",\"\",VLOOKUP(A50, DATA_TABLE!$C$68:$I$320, 2, FALSE))","v":""},"",0,{"$f":"IF(E50=\"\",\"\",VLOOKUP(A50, DATA_TABLE!$C$68:$I$320, 4, FALSE))","v":""},"",{"$f":"IF(A50=\"\",\"\",VLOOKUP(A50, DATA_TABLE!$C$68:$I$320, 5, FALSE))","v":""},{"$f":"IF(A50=\"\",\"\",VLOOKUP(A50, DATA_TABLE!$C$68:$I$320, 6, FALSE))","v":""}]
[null,{"$f":"IF(A51=\"\",\"\",VLOOKUP(A51, DATA_TABLE!$C$68:$I$321, 7, FALSE))","v":""},null,null,{"$f":"IF(A51=\"\",\"\",VLOOKUP(A51, DATA_TABLE!$C$68:$I$320, 2, FALSE))","v":""},"",0,{"$f":"IF(E51=\"\",\"\",VLOOKUP(A51, DATA_TABLE!$C$68:$I$320, 4, FALSE))","v":""},"",{"$f":"IF(A51=\"\",\"\",VLOOKUP(A51, DATA_TABLE!$C$68:$I$320, 5, FALSE))","v":""},{"$f":"IF(A51=\"\",\"\",VLOOKUP(A51, DATA_TABLE!$C$68:$I$320, 6, FALSE))","v":""}]
[null,{"$f":"IF(A52=\"\",\"\",VLOOKUP(A52, DATA_TABLE!$C$68:$I$321, 7, FALSE))","v":""},null,null,{"$f":"IF(A52=\"\",\"\",VLOOKUP(A52, DATA_TABLE!$C$68:$I$320, 2, FALSE))","v":""},"",0,{"$f":"IF(E52=\"\",\"\",VLOOKUP(A52, DATA_TABLE!$C$68:$I$320, 4, FALSE))","v":""},"",{"$f":"IF(A52=\"\",\"\",VLOOKUP(A52, DATA_TABLE!$C$68:$I$320, 5, FALSE))","v":""},{"$f":"IF(A52=\"\",\"\",VLOOKUP(A52, DATA_TABLE!$C$68:$I$320, 6, FALSE))","v":""}]
[null,{"$f":"IF(A53=\"\",\"\",VLOOKUP(A53, DATA_TABLE!$C$68:$I$321, 7, FALSE))","v":""},null,null,{"$f":"IF(A53=\"\",\"\",VLOOKUP(A53, DATA_TABLE!$C$68:$I$320, 2, FALSE))","v":""},"",0,{"$f":"IF(E53=\"\",\"\",VLOOKUP(A53, DATA_TABLE!$C$68:$I$320, 4, FALSE))","v":""},"",{"$f":"IF(A53=\"\",\"\",VLOOKUP(A53, DATA_TABLE!$C$68:$I$320, 5, FALSE))","v":""},{"$f":"IF(A53=\"\",\"\",VLOOKUP(A53, DATA_TABLE!$C$68:$I$320, 6, FALSE))","v":""}]
[null,{"$f":"IF(A54=\"\",\"\",VLOOKUP(A54, DATA_TABLE!$C$68:$I$321, 7, FALSE))","v":""},null,null,{"$f":"IF(A54=\"\",\"\",VLOOKUP(A54, DATA_TABLE!$C$68:$I$320, 2, FALSE))","v":""},"",0,{"$f":"IF(E54=\"\",\"\",VLOOKUP(A54, DATA_TABLE!$C$68:$I$320, 4, FALSE))","v":""},"",{"$f":"IF(A54=\"\",\"\",VLOOKUP(A54, DATA_TABLE!$C$68:$I$320, 5, FALSE))","v":""},{"$f":"IF(A54=\"\",\"\",VLOOKUP(A54, DATA_TABLE!$C$68:$I$320, 6, FALSE))","v":""}]
[null,{"$f":"IF(A55=\"\",\"\",VLOOKUP(A55, DATA_TABLE!$C$68:$I$321, 7, FALSE))","v":""},null,null,{"$f":"IF(A55=\"\",\"\",VLOOKUP(A55, DATA_TABLE!$C$68:$I$320, 2, FALSE))","v":""},"",0,{"$f":"IF(E55=\"\",\"\",VLOOKUP(A55, DATA_TABLE!$C$68:$I$320, 4, FALSE))","v":""},"",{"$f":"IF(A55=\"\",\"\",VLOOKUP(A55, DATA_TABLE!$C$68:$I$320, 5, FALSE))","v":""},{"$f":"IF(A55=\"\",\"\",VLOOKUP(A55, DATA_TABLE!$C$68:$I$320, 6, FALSE))","v":""}]
[null,{"$f":"IF(A56=\"\",\"\",VLOOKUP(A56, DATA_TABLE!$C$68:$I$321, 7, FALSE))","v":""},null,null,{"$f":"IF(A56=\"\",\"\",VLOOKUP(A56, DATA_TABLE!$C$68:$I$320, 2, FALSE))","v":""},"",0,{"$f":"IF(E56=\"\",\"\",VLOOKUP(A56, DATA_TABLE!$C$68:$I$320, 4, FALSE))","v":""},"",{"$f":"IF(A56=\"\",\"\",VLOOKUP(A56, DATA_TABLE!$C$68:$I$320, 5, FALSE))","v":""},{"$f":"IF(A56=\"\",\"\",VLOOKUP(A56, DATA_TABLE!$C$68:$I$320, 6, FALSE))","v":""}]
[null,{"$f":"IF(A57=\"\",\"\",VLOOKUP(A57, DATA_TABLE!$C$68:$I$321, 7, FALSE))","v":""},null,null,{"$f":"IF(A57=\"\",\"\",VLOOKUP(A57, DATA_TABLE!$C$68:$I$320, 2, FALSE))","v":""},"",0,{"$f":"IF(E57=\"\",\"\",VLOOKUP(A57, DATA_TABLE!$C$68:$I$320, 4, FALSE))","v":""},"",{"$f":"IF(A57=\"\",\"\",VLOOKUP(A57, DATA_TABLE!$C$68:$I$320, 5, FALSE))","v":""},{"$f":"IF(A57=\"\",\"\",VLOOKUP(A57, DATA_TABLE!$C$68:$I$320, 6, FALSE))","v":""}]
[null,{"$f":"IF(A58=\"\",\"\",VLOOKUP(A58, DATA_TABLE!$C$68:$I$321, 7, FALSE))","v":""},null,null,{"$f":"IF(A58=\"\",\"\",VLOOKUP(A58, DATA_TABLE!$C$68:$I$320, 2, FALSE))","v":""},"",0,{"$f":"IF(E58=\"\",\"\",VLOOKUP(A58, DATA_TABLE!$C$68:$I$320, 4, FALSE))","v":""},"",{"$f":"IF(A58=\"\",\"\",VLOOKUP(A58, DATA_TABLE!$C$68:$I$320, 5, FALSE))","v":""},{"$f":"IF(A58=\"\",\"\",VLOOKUP(A58, DATA_TABLE!$C$68:$I$320, 6, FALSE))","v":""}]
[null,{"$f":"IF(A59=\"\",\"\",VLOOKUP(A59, DATA_TABLE!$C$68:$I$321, 7, FALSE))","v":""},null,null,{"$f":"IF(A59=\"\",\"\",VLOOKUP(A59, DATA_TABLE!$C$68:$I$320, 2, FALSE))","v":""},"",0,{"$f":"IF(E59=\"\",\"\",VLOOKUP(A59, DATA_TABLE!$C$68:$I$320, 4, FALSE))","v":""},"",{"$f":"IF(A59=\"\",\"\",VLOOKUP(A59, DATA_TABLE!$C$68:$I$320, 5, FALSE))","v":""},{"$f":"IF(A59=\"\",\"\",VLOOKUP(A59, DATA_TABLE!$C$68:$I$320, 6, FALSE))","v":""}]
[null,{"$f":"IF(A60=\"\",\"\",VLOOKUP(A60, DATA_TABLE!$C$68:$I$321, 7, FALSE))","v":""},null,null,{"$f":"IF(A60=\"\",\"\",VLOOKUP(A60, DATA_TABLE!$C$68:$I$320, 2, FALSE))","v":""},"",0,{"$f":"IF(E60=\"\",\"\",VLOOKUP(A60, DATA_TABLE!$C$68:$I$320, 4, FALSE))","v":""},"",{"$f":"IF(A60=\"\",\"\",VLOOKUP(A60, DATA_TABLE!$C$68:$I$320, 5, FALSE))","v":""},{"$f":"IF(A60=\"\",\"\",VLOOKUP(A60, DATA_TABLE!$C$68:$I$320, 6, FALSE))","v":""}]
[null,{"$f":"IF(A61=\"\",\"\",VLOOKUP(A61, DATA_TABLE!$C$68:$I$321, 7, FALSE))","v":""},null,null,{"$f":"IF(A61=\"\",\"\",VLOOKUP(A61, DATA_TABLE!$C$68:$I$320, 2, FALSE))","v":""},"",0,{"$f":"IF(E61=\"\",\"\",VLOOKUP(A61, DATA_TABLE!$C$68:$I$320, 4, FALSE))","v":""},"",{"$f":"IF(A61=\"\",\"\",VLOOKUP(A61, DATA_TABLE!$C$68:$I$320, 5, FALSE))","v":""},{"$f":"IF(A61=\"\",\"\",VLOOKUP(A61, DATA_TABLE!$C$68:$I$320, 6, FALSE))","v":""}]
[null,{"$f":"IF(A62=\"\",\"\",VLOOKUP(A62, DATA_TABLE!$C$68:$I$321, 7, FALSE))","v":""},null,null,{"$f":"IF(A62=\"\",\"\",VLOOKUP(A62, DATA_TABLE!$C$68:$I$320, 2, FALSE))","v":""},"",0,{"$f":"IF(E62=\"\",\"\",VLOOKUP(A62, DATA_TABLE!$C$68:$I$320, 4, FALSE))","v":""},"",{"$f":"IF(A62=\"\",\"\",VLOOKUP(A62, DATA_TABLE!$C$68:$I$320, 5, FALSE))","v":""},{"$f":"IF(A62=\"\",\"\",VLOOKUP(A62, DATA_TABLE!$C$68:$I$320, 6, FALSE))","v":""}]
[null,{"$f":"IF(A63=\"\",\"\",VLOOKUP(A63, DATA_TABLE!$C$68:$I$321, 7, FALSE))","v":""},null,null,{"$f":"IF(A63=\"\",\"\",VLOOKUP(A63, DATA_TABLE!$C$68:$I$320, 2, FALSE))","v":""},"",0,{"$f":"IF(E63=\"\",\"\",VLOOKUP(A63, DATA_TABLE!$C$68:$I$320, 4, FALSE))","v":""},"",{"$f":"IF(A63=\"\",\"\",VLOOKUP(A63, DATA_TABLE!$C$68:$I$320, 5, FALSE))","v":""},{"$f":"IF(A63=\"\",\"\",VLOOKUP(A63, DATA_TABLE!$C$68:$I$320, 6, FALSE))","v":""}]
[null,{"$f":"IF(A64=\"\",\"\",VLOOKUP(A64, DATA_TABLE!$C$68:$I$321, 7, FALSE))","v":""},null,null,{"$f":"IF(A64=\"\",\"\",VLOOKUP(A64, DATA_TABLE!$C$68:$I$320, 2, FALSE))","v":""},"",0,{"$f":"IF(E64=\"\",\"\",VLOOKUP(A64, DATA_TABLE!$C$68:$I$320, 4, FALSE))","v":""},"",{"$f":"IF(A64=\"\",\"\",VLOOKUP(A64, DATA_TABLE!$C$68:$I$320, 5, FALSE))","v":""},{"$f":"IF(A64=\"\",\"\",VLOOKUP(A64, DATA_TABLE!$C$68:$I$320, 6, FALSE))","v":""}]
[null,{"$f":"IF(A65=\"\",\"\",VLOOKUP(A65, DATA_TABLE!$C$68:$I$321, 7, FALSE))","v":""},null,null,{"$f":"IF(A65=\"\",\"\",VLOOKUP(A65, DATA_TABLE!$C$68:$I$320, 2, FALSE))","v":""},"",0,{"$f":"IF(E65=\"\",\"\",VLOOKUP(A65, DATA_TABLE!$C$68:$I$320, 4, FALSE))","v":""},"",{"$f":"IF(A65=\"\",\"\",VLOOKUP(A65, DATA_TABLE!$C$68:$I$320, 5, FALSE))","v":""},{"$f":"IF(A65=\"\",\"\",VLOOKUP(A65, DATA_TABLE!$C$68:$I$320, 6, FALSE))","v":""}]
[null,{"$f":"IF(A66=\"\",\"\",VLOOKUP(A66, DATA_TABLE!$C$68:$I$321, 7, FALSE))","v":""},null,null,{"$f":"IF(A66=\"\",\"\",VLOOKUP(A66, DATA_TABLE!$C$68:$I$320, 2, FALSE))","v":""},"",0,{"$f":"IF(E66=\"\",\"\",VLOOKUP(A66, DATA_TABLE!$C$68:$I$320, 4, FALSE))","v":""},"",{"$f":"IF(A66=\"\",\"\",VLOOKUP(A66, DATA_TABLE!$C$68:$I$320, 5, FALSE))","v":""},{"$f":"IF(A66=\"\",\"\",VLOOKUP(A66, DATA_TABLE!$C$68:$I$320, 6, FALSE))","v":""}]
[null,{"$f":"IF(A67=\"\",\"\",VLOOKUP(A67, DATA_TABLE!$C$68:$I$321, 7, FALSE))","v":""},null,null,{"$f":"IF(A67=\"\",\"\",VLOOKUP(A67, DATA_TABLE!$C$68:$I$320, 2, FALSE))","v":""},"",0,{"$f":"IF(E67=\"\",\"\",VLOOKUP(A67, DATA_TABLE!$C$68:$I$320, 4, FALSE))","v":""},"",{"$f":"IF(A67=\"\",\"\",VLOOKUP(A67, DATA_TABLE!$C$68:$I$320, 5, FALSE))","v":""},{"$f":"IF(A67=\"\",\"\",VLOOKUP(A67, DATA_TABLE!$C$68:$I$320, 6, FALSE))","v":""}]
[null,{"$f":"IF(A68=\"\",\"\",VLOOKUP(A68, DATA_TABLE!$C$68:$I$321, 7, FALSE))","v":""},null,null,{"$f":"IF(A68=\"\",\"\",VLOOKUP(A68, DATA_TABLE!$C$68:$I$320, 2, FALSE))","v":""},"",0,{"$f":"IF(E68=\"\",\"\",VLOOKUP(A68, DATA_TABLE!$C$68:$I$320, 4, FALSE))","v":""},"",{"$f":"IF(A68=\"\",\"\",VLOOKUP(A68, DATA_TABLE!$C$68:$I$320, 5, FALSE))","v":""},{"$f":"IF(A68=\"\",\"\",VLOOKUP(A68, DATA_TABLE!$C$68:$I$320, 6, FALSE))","v":""}]
["Totals",null,null,{"$f":"SUM(D23:D68)","v":0},null,{"$f":"SUM(F23:F68)","v":0},{"$f":"SUM(G23:G68)","v":0},{"$f":"SUM(A23:A68)","v":0},{"$f":"SUM(I23:I68)","v":0},null,{"$f":"IF(ISERROR(AVERAGE(K23:K68)),0,AVERAGE(K23:K68))","v":0}]
[]
[]
[null,null,"VALUE","Parameter"]
[null,null,{"$f":"COUNTIF(J23:J68,\"=1\")","v":0},"1 = April to May Bloom Period"]
[null,null,{"$f":"COUNTIF(J23:J68,\"=2\")","v":0},"2 = June to July Bloom Period"]
[null,null,{"$f":"COUNTIF(J23:J68,\"=3\")","v":0},"3 = August to October Bloom Period"]
[null,null,{"$f":"SUMIF($J$23:$J$68,\"1\",$G$23:$G$68)","v":0},"% PLS Seeding Rate 1's"]
[null,null,{"$f":"SUMIF($J$23:$J$68,\"2\",$G$23:$G$68)","v":0},"% PLS Seeding Rate 2's"]
[null,null,{"$f":"SUMIF($J$23:$J$68,\"3\",$G$23:$G$68)","v":0}," % PLS Seeding Rate 3's"]
[null,null,{"$f":"COUNT(D6:D20)","v":0},"Grasses Species Richness"]
[null,null,{"$f":"COUNT(D23:D68)","v":0},"Forb/Legume Species Richness"]
[null,null,{"$f":"K21","v":0},"Grasses - COC Average"]
[null,null,{"$f":"K69","v":0},"Forbs -COC Average"]
[null,null,{"$f":"IF(ISERROR(AVERAGE(K6:K20,K23:K68)),0,AVERAGE(K6:K20,K23:K69))","v":0},"COC = Coefficient of Conservatism Combined"]
[null,null,{"$f":"$F$21+$F$69","v":0},"Total PLS "]
[null,null,{"$f":"(F21/(F21+F69))","v":{"$error":"#DIV/0!"}},"PLS % Grasses"]
[null,null,{"$f":"(F69/(F21+F69))","v":{"$error":"#DIV/0!"}},"PLS % Forbs/Legumes"]

{"sheet":"Jobsheet","index":4,"n_rows":139,"n_cols":14,"rows_kept":139,"cut":false,"hidden":false,"merged":[[68,11,69,16],[0,3,0,9],[1,3,1,9],[71,11,75,15],[136,1,136,5],[136,7,136,10],[4,3,4,6],[70,0,70,2],[4,0,4,2],[6,0,6,10],[7,0,13,10],[15,0,15,10],[4,7,4,8],[4,9,4,10],[14,0,14,10],[34,3,34,8],[48,7,48,8],[48,6,49,6],[45,0,45,1],[45,2,45,3],[47,0,48,5],[44,5,46,10],[30,0,30,2],[33,0,33,2],[47,6,47,7],[47,8,47,10],[48,9,49,9],[48,10,49,10],[43,2,43,7],[49,0,49,5],[16,0,16,2],[17,0,17,2],[16,6,16,7],[16,8,16,10],[17,6,17,7],[24,0,24,10],[17,8,17,10],[30,3,30,8],[31,0,31,2],[31,3,31,8],[29,3,29,8],[22,7,22,10],[23,0,23,1],[29,0,29,2],[20,0,20,10],[25,2,25,7],[25,9,25,10],[27,0,27,10],[21,0,21,10],[22,0,22,1],[22,2,22,5],[18,6,18,7],[18,8,18,10],[19,6,19,7],[0,0,1,2],[2,1,2,4],[3,2,3,3],[3,4,3,6],[3,7,3,8],[3,9,3,10],[2,7,2,10],[2,5,2,6],[5,0,5,10],[19,8,19,10],[18,0,18,2],[19,0,19,2],[23,7,23,10],[26,0,26,10],[23,2,23,5],[28,0,28,10],[39,2,39,6],[39,8,39,10],[40,2,40,6],[41,0,41,10],[42,2,42,6],[42,8,42,10],[35,0,35,2],[35,3,35,8],[36,0,36,2],[36,3,36,8],[37,0,37,10],[38,0,38,10],[32,0,32,2],[32,3,32,8],[33,3,33,8],[34,0,34,2],[50,0,50,2],[50,3,50,5],[138,0,138,10],[66,0,66,2],[66,3,66,4],[66,6,66,10],[117,0,117,2],[117,3,117,4],[117,6,117,10],[68,0,68,5],[69,0,69,5],[135,1,135,5],[70,3,70,5],[128,0,128,10],[130,0,130,10],[133,0,133,10],[129,0,129,2],[120,0,120,10],[122,0,122,10],[123,0,123,10],[125,0,125,10],[126,0,126,10],[134,0,134,10]]}
[null,null,null,"HERBACEOUS SEEDING IMPLEMENTATION REQUIREMENTS",null,null,null,null,null,null,"NE-CPA-8    "]
[null,null,null,"SEEEDING PLAN",null,null,null,null,null,null,"July, 2020"]
["NAME:","Joe Farmer",null,null,null,"Tract No. / Legal",null,"T-1786, NW4 34 T-1-N R-40-W"]
["MLRA:",72,"ECOLOGICAL SITE:",null,"Rolling Sands",null,null,"Contract Number:",null,1234]
["Practice Code and Name:   ",null,null,"550- Range Seeding",null,null,null,"PROGRAM/CIN No.",null,"CRP - 5"]
[]
["DESCRIBE SEEDBED PREPARATION AND SEEDING SPECIFICATIONS:"]
["Current cover is dryland wheat stubble.  No-till drill a cover crop sudan grass at a rate of  15 pounds per acre.  Drill the cover crop between June 1 and June 15th.  Monitor cover crop growth; if the growth is excessive (>4' in height), mow or shred the cover crop leaving a stubble height of approximately 18\".  Plant the grass using the mixture on page 2 of this plan between 11/1/2020 and 5/15/2021 ensuring that the top 1/2\" of soil is thawed when drilling.  Monitor weed population and mow or chemically control weeds if the weeds become thick enough to block sunlight to the seedlings or if they are depleting soil moisture."]
[]
[]
[]
[]
[]
[]
[]
["  Grass Seeding Requirments:  Drills must have depth control capabilities.  If broadcasting, double seeding rates listed on page 2."]
["Type of Equipment",null,null,"Tract No.","Field No.","Acres","Planting Depth",null,"Planting Dates"]
["No-Till Grassland Drill",null,null,1786,"2,3",160.80000000000001,"1/4-1/2\"",null,"March 1 - May 15, 2021"]
["No-Till Grassland Drill",null,null,1786,"1,3",75.900000000000006,"1/4-1/2\"",null,"November 1, 2020 - May 15, 2021"]
["Broadcast/Harrow",null,null,1786,2,2.1,"surface",null,"November 1 - December 15, 2021"]
["Attach a copy of an  conservation plan map denoting field boundary, field number, land use, acres and north arrow as per National Planning Procedures Handbook, Part 600.31"]
["Signatures of Natural Resources Conservation Service Representative or Technical Service Provider who designed/approved the  practice design."]
["Designed by:   ",null,null,null,null,null,"Date"]
["Approved by:   ",null,null,null,null,null,"Date"]
["Producer's Statement:   The design of this practice has been discussed with me, and I concur with the design. "]
[null,"Signature:",null,null,null,null,null,null,"Date:    "]
[]
[]
["PRACTICE CERTIFICATION"]
[" Applied Practices",null,null,"Type and/or Method",null,null,null,null,null,"Acres","Date Applied"]
["Applied Cover / Companion Crop"]
["Chemical Seedbed preparation"]
["Mechanical Seedbed preparation"]
["Mulching "]
["Grass Seeding Equipment"]
["Weed control (pre-emergence)"]
["Other"]
["Complete above section, “PRACTICE CERTIFICATION,” after all seeding activities are applied, signing below to verify completion.  The seed dealer MUST complete information on page 2/3 of this jobsheet, OR provide a copy of seed bill and seed tag information to the NRCS Office.  Seed Dealer MUST sign either copy of information provided.\n"]
["This practice has been applied according to the specifications listed above."]
[null,"Signature:",null,null,null,null,null,"Date:"]
[null,null,"(Signature of producer or person/contractor completing the work)"]
["This practice as applied meets NRCS specifications as outlined in the perennial herbaceous seeding plan."]
[null,"Signature:",null,null,null,null,null,"Date:"]
[null,null,"Signature of NRCS Representative or Technical Service Provider"]
[null,null,null,null,null,"Seed dealer:  Complete seed documentation below in the shaded boxes.  Enter the bulk pounds and indicate if seedlot is certified (Y/N).  If grass seed is not certified, list the state  and county of origin"]
["Acres to be Seeded",null,238.8]
[]
["*Please refer to mileage restrictions if non-certified grass seed (variety stated or variety not stated) is provided",null,null,null,null,null,"PLANNED",null,"PURCHASED"]
[null,null,null,null,null,null,"PLS LBS/AC","Total Pounds Needed",null,"Certified (Y/N)","State / County of Origin"]
["Species List ",null,null,null,null,null,null,"PLS","BULK"]
["  GRASSES",null,null,"Allowable Varieties"]
["Blue Grama ",null,null,"Hachita, Bad River, Lovington",null,null,0.12,{"$f":"IF(A52=\"\",\"\",($C$46*G52))","v":28.655999999999999},null,null,null,"Use the mix tabs to develop the seeding mixuture and use the "]
["Canada Wildrye",null,null,"Mandan",null,null,0.3,{"$f":"IF(A53=\"\",\"\",($C$46*G53))","v":71.64},null,null,null,"transfer to jobsheet button to transfer final mixture to the Jobsheet."]
["Green Needlegrass",null,null,"Lodorm",null,null,0.25,59.7,null,null,null,"The light orange shaded boxes are to be completed by the seed dealer."]
["Indiangrass",null,null,"Holt",null,null,0.2,47.760000000000005,null,null,null,"Manually bold the preferred varieties by selecting the text and formating the text."]
["Indian Ricegrass",null,null,"Nezpar, Rimrock",null,null,0.25,59.7,null,null,null,"Size text if needed for the varieties to appear on one line."]
["Sand Lovegrass",null,null,"NE 27",null,null,0.02,4.7760000000000007]
["Little Bluestem",null,null,"Cimarron, Pastura, Camper, Blaze",null,null,0.8,191.04000000000002,null,null,null,null,null," "]
["Sand Bluestem",null,null,"Champ, Garden County, Goldstrike",null,null,2,477.6]
["Thickspike Wheatgrass",null,null,"Critana",null,null,0.6,143.28]
["Switchgrass",null,null,"NE 28",null,null,0.2,47.760000000000005]
["Western Wheatgrass ",null,null,"Flintlock, Barton, Arriba, Rodan, Rosana",null,null,0.7,167.16]
[null,null,null,null,null,null,null,""]
[null,null,null,null,null,null,null,""]
[null,null,null,null,null,null,null,""]
[null,null,null,null,null,null,null,""]
["Grass Totals",null,null,"PLS/ft2:",null,20.20499540863177]
["COMPANION CROP COVER - Seeding Method",null,null,null,null,null," LBS/AC","Total LBS.","Total Bulk lbs.","Certified","State/County Origin"]
[null,null,null,null,null,null,{"$f":"IF(A69=\"\",\"\",VLOOKUP(A69,DATA_TABLE!$A$326:$B$331,2,FALSE))","v":""},{"$f":"IF(A69=\"\",\"\",($C$46*G69))","v":""},null,null,null,"If a companion crop is recommended; select the appropriate crop/seeding method from dropdown menu"]
[null,null,null,null,null,null,{"$f":"IF(A70=\"\",\"\",VLOOKUP(A70,DATA_TABLE!$A$326:$B$331,2,FALSE))","v":""},""]
["FORBS and LEGUMES",null,null,"Scientific Name",null,null,"PLS LBS/AC","Total PLS lbs.","Total Bulk lbs.","Certified","State/County Origin"]
["Aromatic Aster",null,null,{"$f":"IF(A72=\"\",\"\",VLOOKUP(A72, DATA_TABLE!$C$68:$I$321, 7, FALSE))","v":"Symphyotrichum oblongifolium "},null,null,0.04,9.5520000000000014,null,null,null,"Hide the lines that are not used or are blank by selecting the rows, right clicking and selecting \"hide\".  Using hide eliminates as the blank rows and cleans up your jobsheet printout."]
["Purple Prairie Clover",null,null,{"$f":"IF(A73=\"\",\"\",VLOOKUP(A73, DATA_TABLE!$C$68:$I$321, 7, FALSE))","v":"Dalea purpurea"},null,null,0.15,35.82]
["Canada Goldenrod ",null,null,{"$f":"IF(A74=\"\",\"\",VLOOKUP(A74, DATA_TABLE!$C$68:$I$321, 7, FALSE))","v":"Solidago canadensis"},null,null,8.9999999999999993E-3,2.1492]
["Sweet Sand Verbena",null,null,{"$f":"IF(A75=\"\",\"\",VLOOKUP(A75, DATA_TABLE!$C$68:$I$321, 7, FALSE))","v":"Abronia fragrans"},null,null,0.4,95.52000000000001]
["Stiff Sunflower",null,null,{"$f":"IF(A76=\"\",\"\",VLOOKUP(A76, DATA_TABLE!$C$68:$I$321, 7, FALSE))","v":"Helianthus pauciflorus"},null,null,0.4,95.52000000000001]
["Field Snakecotton",null,null,{"$f":"IF(A77=\"\",\"\",VLOOKUP(A77, DATA_TABLE!$C$68:$I$321, 7, FALSE))","v":"Froelichia floridana"},null,null,0.2,47.760000000000005]
["Fringed Pucoon",null,null,{"$f":"IF(A78=\"\",\"\",VLOOKUP(A78, DATA_TABLE!$C$68:$I$321, 7, FALSE))","v":"Lithospermum incisum"},null,null,0.9,214.92000000000002]
["Leadplant",null,null,{"$f":"IF(A79=\"\",\"\",VLOOKUP(A79, DATA_TABLE!$C$68:$I$321, 7, FALSE))","v":"Amorpha canescens"},null,null,0.1,23.880000000000003]
["Narrowleaf Beardtongue",null,null,{"$f":"IF(A80=\"\",\"\",VLOOKUP(A80, DATA_TABLE!$C$68:$I$321, 7, FALSE))","v":"Penstemon angustifolius"},null,null,0.05,11.940000000000001]
["Winterfat",null,null,{"$f":"IF(A81=\"\",\"\",VLOOKUP(A81, DATA_TABLE!$C$68:$I$321, 7, FALSE))","v":"Krascheninnikovia lanata"},null,null,0.2,47.760000000000005]
["White Sage",null,null,{"$f":"IF(A82=\"\",\"\",VLOOKUP(A82, DATA_TABLE!$C$68:$I$321, 7, FALSE))","v":"Artemisia ludoviciana"},null,null,7.0000000000000001E-3,1.6716000000000002]
["White Prairie Clover",null,null,{"$f":"IF(A83=\"\",\"\",VLOOKUP(A83, DATA_TABLE!$C$68:$I$321, 7, FALSE))","v":"Dalea candida"},null,null,0.1,23.880000000000003]
["Cutleaf Ironplant ",null,null,{"$f":"IF(A84=\"\",\"\",VLOOKUP(A84, DATA_TABLE!$C$68:$I$321, 7, FALSE))","v":"Machaeranthera pinnatifida"},null,null,4.0000000000000001E-3,0.95520000000000005]
["Indian Breadroot",null,null,{"$f":"IF(A85=\"\",\"\",VLOOKUP(A85, DATA_TABLE!$C$68:$I$321, 7, FALSE))","v":"Pediomelum esculentum"},null,null,1,238.8]
["Showy Milkweed",null,null,{"$f":"IF(A86=\"\",\"\",VLOOKUP(A86, DATA_TABLE!$C$68:$I$321, 7, FALSE))","v":"Asclepias speciosa"},null,null,0.1,23.880000000000003]
["Prairie Ragwort",null,null,{"$f":"IF(A87=\"\",\"\",VLOOKUP(A87, DATA_TABLE!$C$68:$I$321, 7, FALSE))","v":"Packera plattensis"},null,null,0.01,2.3880000000000003]
[null,null,null,{"$f":"IF(A88=\"\",\"\",VLOOKUP(A88, DATA_TABLE!$C$68:$I$321, 7, FALSE))","v":""},null,null,null,""]
[null,null,null,{"$f":"IF(A89=\"\",\"\",VLOOKUP(A89, DATA_TABLE!$C$68:$I$321, 7, FALSE))","v":""},null,null,null,""]
[null,null,null,{"$f":"IF(A90=\"\",\"\",VLOOKUP(A90, DATA_TABLE!$C$68:$I$321, 7, FALSE))","v":""},null,null,null,""]
[null,null,null,{"$f":"IF(A91=\"\",\"\",VLOOKUP(A91, DATA_TABLE!$C$68:$I$321, 7, FALSE))","v":""},null,null,null,""]
[null,null,null,{"$f":"IF(A92=\"\",\"\",VLOOKUP(A92, DATA_TABLE!$C$68:$I$321, 7, FALSE))","v":""},null,null,null,""]
[null,null,null,{"$f":"IF(A93=\"\",\"\",VLOOKUP(A93, DATA_TABLE!$C$68:$I$321, 7, FALSE))","v":""},null,null,null,""]
[null,null,null,{"$f":"IF(A94=\"\",\"\",VLOOKUP(A94, DATA_TABLE!$C$68:$I$321, 7, FALSE))","v":""},null,null,null,""]
[null,null,null,{"$f":"IF(A95=\"\",\"\",VLOOKUP(A95, DATA_TABLE!$C$68:$I$321, 7, FALSE))","v":""},null,null,null,""]
[null,null,null,{"$f":"IF(A96=\"\",\"\",VLOOKUP(A96, DATA_TABLE!$C$68:$I$321, 7, FALSE))","v":""},null,null,null,""]
[null,null,null,{"$f":"IF(A97=\"\",\"\",VLOOKUP(A97, DATA_TABLE!$C$68:$I$321, 7, FALSE))","v":""},null,null,null,""]
[null,null,null,{"$f":"IF(A98=\"\",\"\",VLOOKUP(A98, DATA_TABLE!$C$68:$I$321, 7, FALSE))","v":""},null,null,null,""]
[null,null,null,{"$f":"IF(A99=\"\",\"\",VLOOKUP(A99, DATA_TABLE!$C$68:$I$321, 7, FALSE))","v":""},null,null,null,""]
[null,null,null,{"$f":"IF(A100=\"\",\"\",VLOOKUP(A100, DATA_TABLE!$C$68:$I$321, 7, FALSE))","v":""},null,null,null,""]
[null,null,null,{"$f":"IF(A101=\"\",\"\",VLOOKUP(A101, DATA_TABLE!$C$68:$I$321, 7, FALSE))","v":""},null,null,null,""]
[null,null,null,{"$f":"IF(A102=\"\",\"\",VLOOKUP(A102, DATA_TABLE!$C$68:$I$321, 7, FALSE))","v":""},null,null,null,""]
[null,null,null,{"$f":"IF(A103=\"\",\"\",VLOOKUP(A103, DATA_TABLE!$C$68:$I$321, 7, FALSE))","v":""},null,null,null,""]
[null,null,null,{"$f":"IF(A104=\"\",\"\",VLOOKUP(A104, DATA_TABLE!$C$68:$I$321, 7, FALSE))","v":""},null,null,null,""]
[null,null,null,{"$f":"IF(A105=\"\",\"\",VLOOKUP(A105, DATA_TABLE!$C$68:$I$321, 7, FALSE))","v":""},null,null,null,""]
[null,null,null,{"$f":"IF(A106=\"\",\"\",VLOOKUP(A106, DATA_TABLE!$C$68:$I$321, 7, FALSE))","v":""},null,null,null,""]
[null,null,null,{"$f":"IF(A107=\"\",\"\",VLOOKUP(A107, DATA_TABLE!$C$68:$I$321, 7, FALSE))","v":""},null,null,null,""]
[null,null,null,{"$f":"IF(A108=\"\",\"\",VLOOKUP(A108, DATA_TABLE!$C$68:$I$321, 7, FALSE))","v":""},null,null,null,""]
[null,null,null,{"$f":"IF(A109=\"\",\"\",VLOOKUP(A109, DATA_TABLE!$C$68:$I$321, 7, FALSE))","v":""},null,null,null,""]
[null,null,null,{"$f":"IF(A110=\"\",\"\",VLOOKUP(A110, DATA_TABLE!$C$68:$I$321, 7, FALSE))","v":""},null,null,null,""]
[null,null,null,{"$f":"IF(A111=\"\",\"\",VLOOKUP(A111, DATA_TABLE!$C$68:$I$321, 7, FALSE))","v":""},null,null,null,""]
[null,null,null,{"$f":"IF(A112=\"\",\"\",VLOOKUP(A112, DATA_TABLE!$C$68:$I$321, 7, FALSE))","v":""},null,null,null,""]
[null,null,null,{"$f":"IF(A113=\"\",\"\",VLOOKUP(A113, DATA_TABLE!$C$68:$I$321, 7, FALSE))","v":""},null,null,null,""]
[null,null,null,{"$f":"IF(A114=\"\",\"\",VLOOKUP(A114, DATA_TABLE!$C$68:$I$321, 7, FALSE))","v":""},null,null,null,""]
[null,null,null,{"$f":"IF(A115=\"\",\"\",VLOOKUP(A115, DATA_TABLE!$C$68:$I$321, 7, FALSE))","v":""},null,null,null,""]
[null,null,null,{"$f":"IF(A116=\"\",\"\",VLOOKUP(A116, DATA_TABLE!$C$68:$I$321, 7, FALSE))","v":""},null,null,null,""]
[null,null,null,{"$f":"IF(A117=\"\",\"\",VLOOKUP(A117, DATA_TABLE!$C$68:$I$321, 7, FALSE))","v":""},null,null,null,""]
["Forb/Legume Totals",null,null,"PLS/ft2:",null,8.8532667584940334]
[]
["*SEED DEALER PLEASE NOTE:"]
["When varieties are recommended, certified grass seedlots of improved varieties will be used whenever possible.   Only \"blue seed tags\" are considered certified see.  If Certified grass seedlots are not utilized, the following seedlots can be used: "]
["Warm Season Grasses:"]
["Mileage limitations for Non-Certified Seedlots with Variety Stated on the seedtag:  350 MILES SOUTH; 250 MILES NORTH; AND 300 MILES EAST AND WEST"]
["Mileage limitations for Non-Certified Seedlots without a variety stated on the seedtag (variety not stated VNS, local ecotype, common, or native harvest):  250 MILES SOUTH; 150 MILES NORTH; AND 200 MILES EAST AND WEST"]
["Cool Season Grasses:"]
["Mileage limitations for Non-Certified Seedlots with Variety Stated on the seedtag:  No mileage limits."]
["Mileage limitations for Non-Certified Grass Seedlots without a Variety Stated on the seedtag:  Must come from Nebraska or a state adjacent to Nebraska, but no further than 250 miles north of the planting site."]
["Introduced Legumes:"]
["Legumes/forb seedlots MUST be adapted to the site/county and consistent with the purpose of the planting. Legumes must be inoculated with the correct inoculant for forage uses and other uses when necessary to achieve purpose. "]
["Native Legumes/forbs:"]
["Native Legumes/Forb seedlots MUST be adapted to the site/county and consistent with the purpose of the planting. Non-certified native legumes/forbs utilized for prairie restorations can not come from outside the continental United States."]
[]
["CUSTOMER AND SEED DEALER PLEASE NOTE:"]
["When grass seed that meets the requirements listed above is not available, check with other seed dealers to obtain grass seed that meets these requirements.   After checking with other seed dealers, and grass seed that meets these requirements is not available, contact your local NRCS office for other acceptable grass varieties/species, or to request a variance for extending the mileage limitations for non-certified warm season grass seedlots with a variety stated.  If a variance is warranted, the local NRCS office will provide the seed dealer a grower’s declaration.  The grass seed grower/vendor must complete the grower’s declaration in order to verify that the seedlot meets specific quality requirements and qualifies for a variance."]
["I, the Seed Dealer, certify that all seed meets requirements listed above, including the mileage requirements for Non-Certified Grass Seed (stated above), that no primary or secondary noxious weeds are contained in the seed, and were sold to:"]
["Customer Name:",null,null,null,null,null,"Date:"]
["Seed Dealer:",null,null,null,null,null,"By:"]
[]
["Seed Dealer:  Attach printout with seedlot number, purity, germination, bulk pounds and pls pounds for each seedlot that that was purchased by the producer.  If printout is not available, complete BULK-PLS Documentation Sheet"]

{"sheet":"Bulk_PLS_Documentation","index":5,"n_rows":40,"n_cols":8,"rows_kept":40,"cut":false,"hidden":false,"merged":[[69,7,69,8],[66,7,66,8],[67,7,67,8],[68,7,68,8],[63,7,63,8],[64,7,64,8],[65,7,65,8],[60,7,60,8],[61,7,61,8],[62,7,62,8],[57,7,57,8],[58,7,58,8],[59,7,59,8],[54,7,54,8],[55,7,55,8],[56,7,56,8],[51,7,51,8],[52,7,52,8],[53,7,53,8],[48,7,48,8],[49,7,49,8],[50,7,50,8],[45,7,45,8],[46,7,46,8],[47,7,47,8],[42,7,42,8],[43,7,43,8],[44,7,44,8],[39,7,39,8],[40,7,40,8],[41,7,41,8],[36,7,36,8],[37,7,37,8],[38,7,38,8],[33,7,33,8],[34,7,34,8],[35,7,35,8],[30,7,30,8],[31,7,31,8],[32,7,32,8],[27,7,27,8],[28,7,28,8],[29,7,29,8],[24,7,24,8],[25,7,25,8],[26,7,26,8],[21,1,21,2],[21,7,21,8],[22,0,22,8],[23,0,23,2],[23,7,23,8],[19,1,19,2],[19,7,19,8],[20,1,20,2],[20,7,20,8],[17,1,17,2],[17,7,17,8],[18,1,18,2],[18,7,18,8],[15,1,15,2],[15,7,15,8],[16,1,16,2],[16,7,16,8],[13,1,13,2],[13,7,13,8],[14,1,14,2],[14,7,14,8],[11,1,11,2],[11,7,11,8],[12,1,12,2],[12,7,12,8],[9,1,9,2],[9,7,9,8],[10,1,10,2],[10,7,10,8],[7,1,7,2],[7,7,7,8],[8,1,8,2],[8,7,8,8],[3,0,4,8],[5,1,5,2],[5,7,5,8],[6,1,6,2],[6,7,6,8],[2,0,2,8],[0,0,1,0],[0,1,1,6],[0,7,0,8],[1,7,1,8]]}
[null,"SEEDING PLAN: BULK TO PLS DOCUMENTATION SHEET",null,null,null,null,null,"NE-CPA-8    "]
[null,null,null,null,null,null,null,"June, 2020"]
["Seed Dealer: If printout with seedlot number, purity, germination, bulk pounds and pls pounds for each seedlot that that was purchased by the producer is not available, please complete this documentation sheet."]
["Seed Purchased "]
[]
["Grass Species List","Variety",null,"Purity","Germ","Bulk Lbs","PLS Lbs","Seedlot Number"]
["Blue Grama "]
["Canada Wildrye"]
["Green Needlegrass"]
["Indiangrass"]
["Indian Ricegrass"]
["Sand Lovegrass"]
["Little Bluestem"]
["Sand Bluestem"]
["Thickspike Wheatgrass"]
["Switchgrass"]
["Western Wheatgrass "]
[]
[]
[]
[]
[]
[]
["Forb and Legume List"]
["Aromatic Aster"]
["Purple Prairie Clover"]
["Canada Goldenrod "]
["Sweet Sand Verbena"]
["Stiff Sunflower"]
["Field Snakecotton"]
["Fringed Pucoon"]
["Leadplant"]
["Narrowleaf Beardtongue"]
["Winterfat"]
["White Sage"]
["White Prairie Clover"]
["Cutleaf Ironplant "]
["Indian Breadroot"]
["Showy Milkweed"]
["Prairie Ragwort"]

{"sheet":"Guide-Grasses_Grasslikes","index":6,"n_rows":61,"n_cols":35,"rows_kept":61,"cut":false,"hidden":false,"merged":[[0,0,0,30],[0,31,0,33]]}
["GRASSES & GRASS-LIKES (Hide rows that are not applicable to your seedings i.e. MLRAs outside your work area)   If cells are blank, then no information is available for that characteristic."]
["PLANT Common Name","Species - USDA PLANTS","Family","Sands","Sandy","Loamy","Calcareous","Clayey","Shallow","Alkline / Saline Dry","Overflow / Lowland","Subirrigated","Wet Land","Saline Subirrigated","60A","63B","64","65","66","67A","71","72","73","75","102C","106","107B","B= Bunch,            S= Sod-forming,       A= Annual","N= Native US, NN= Native Nebraska, I=Introduced","Season of Growth  C= Cool, W=Warm","Suitable for Irrigated Forage Mixes","Fertility Requirements / Nitrogen Scavenging / (per National Plants Database)","Livestock Forage Value (per National Plants Database)","Wildlife Values","General Comments"]
["alkali sacaton ","Sporobolus airoides","Poaceae","N","N","N","N","N","N","Y","N","N","N","Y","Y","Y","Y","Y","N","Y","N","Y","N","N","N","Y","N","B ","NN","W","N","Medium","Medium",null,"In Lancaster County is only found in Saline Wetlands - rest of MLRAs listed, is found on Saline or Alkaline sites."]
["Bicknell's sedge","Carex bicknellii","Cyperaceae","N","N","Y","N","Y","N","N","Y","Y","Y","N","N","N","N","Y","N","N","Y","N","N","Y","Y","Y","Y","B ","NN","C","N","Low","Low","upland and songbirds will eat seeds","Upland prairies of SE and mesic meadows of eastern Sandhills"]
["big bluestem","Andropogon gerardii","Poaceae","N","N","Y","Y","Y","Y","N","Y","Y","N","N","Y","Y","Y","Y","Y","Y","Y","Y","Y","Y","Y","Y","Y","S ","NN","W","Y","Low","High","ideal for nesting and winter cover for birds/fawning cover"]
["blowout grass","Redfieldia flexuosa","Poaceae","Y","N","N","N","N","N","N","N","N","N","N","Y","Y","Y","Y","Y","Y","N","Y","N","N","N","N","N","S ","NN","W","N","Low","Low",null,"range plantings on loose sands sites only"]
["blue grama ","Bouteloua gracilis","Poaceae","Y","Y","Y","Y","Y","Y","Y","Y","Y","N","Y","Y","Y","Y","Y","Y","Y","Y","Y","Y","Y","Y","Y","Y","B ","NN","W","N","Low","Medium","creates ideal nesting cover","High forage quality, but medium for forage use as production is lower than other forage grasses."]
["bluebunch wheatgrass ","Pseudoroegneria spicata","Poaceae","N","Y","Y","N","N","Y","N","Y","N","N","N","Y","N","Y","N","N","N","N","N","N","N","N","N","N","B ","NN","C","N","Low","High",null,"Native to Sioux and Dawes County"]
["bluejoint reedgrass ","Calamagrostis canadensis","Poaceae","N","N","N","N","N","N","N","N","Y","Y","Y","N","Y","N","Y","Y","N","Y","N","N","N","Y","N","Y","S ","NN","C","N","Medium","High"]
["bottle-brush sedge","Carex hystericina","Cyperaceae","N","N","N","N","N",null,"N","N","Y","Y",null,"Y","Y","Y","Y","Y","Y","Y","Y","Y","Y","Y","Y","Y","B ","NN","C","N"]
["buffalograss","Buchloë dactyloides / Bouteloua dactyloides","Poaceae","N","N","Y","Y","Y","Y","Y","Y","N","N","N","Y","Y","Y","Y","Y","Y","Y","Y","Y","Y","Y","Y","Y","S ","NN","W","N","Low","Medium",null,"High forage quality, but medium for forage use as production is lower than other forage grasses."]
["Canada wild-rye ","Elymus canadensis","Poaceae","N","N","N","N","N","N","N","Y","Y","N","N","Y","Y","Y","Y","Y","Y","Y","Y","Y","Y","Y","Y","Y","B ","NN","C","N","Medium","Medium","can create ideal nesting habitat","Short-lived but reseeds"]
["creeping foxtail ","Alopecurus arundinaceus","Poaceae","N","N","N","N","N","N","N","Y","Y","N","Y","Y","Y","Y","Y","Y","N","Y","N","N","T","N","N","N","S ","I","C","Y","Medium","High",null,"Tolerates moderately acidic and moderately alkaline conditions.  Adapted to wet sites."]
["crested wheatgrass ","Agropyron cristatum","Poaceae","N","Y","Y","Y","N","N","Y","Y","N","N","N","Y","Y","Y","Y","Y","Y","Y","Y","Y","N","Y","N","N","B ","I","C","N","Medium","Medium"]
["eastern gamagrass ","Tripsacum dactyloides","Poaceae","N","N","Y","N","N","N","N","Y","Y","N","N","N","N","N","N","N","N","N","N","Y","Y","N","Y","Y","S ","NN","W","Y","High","High","can provide nesting habitat, songbirds may eat the seeds"]
["fox sedge","Carex vulpinoidea","Cyperaceae","N","N","N","N","N","N",null,null,"Y","Y",null,"N","Y","N","Y","Y","N","Y","Y","Y","Y","Y","Y","Y","B ","NN","C","N","Medium","Medium"]
["foxtail barley","Hordeum jubatum","Poaceae","N","N","N","N","N","N","N","Y","Y","N","Y","Y","Y","Y","Y","Y","Y","Y","Y","Y","Y","Y","Y","Y","B ","NN","C","N","Low","Low"]
["green needle grass ","Nassella viridula","Poaceae","N","N","Y","Y","Y","Y","N","Y","N","N","N","Y","Y","Y","Y","Y","Y","Y","Y","N","N","N","N","N","B ","NN","C","N","Medium","Medium",null,"Slow to establish"]
["hairy grama","Bouteloua hirsuta","Poaceae","Y","Y","N","y","N","Y","N","N","N","N","N","Y","Y","Y","Y","Y","Y","Y","Y","Y","Y","Y","Y","Y","B ","NN","W","N","Low","Medium ","creates ideal nesting cover","High forage quality, but medium for forage use as production is lower than other forage grasses."]
["heavy sedge","Carex gravida","Cyperaceae","N","N","Y","Y","Y","Y",null,"Y","Y","Y"," ","N","Y","N","N","Y","N","Y","Y","Y","Y","Y","Y","Y","B ","NN","C","N","Low","Low"]
["Indian grass ","Sorghastrum nutans","Poaceae","Y","Y","Y","Y","Y","Y","N","Y","Y","N","N","Y","Y","Y","Y","Y","Y","Y","Y","Y","Y","Y","Y","Y","S ","NN","W","Y","Low","High","ideal for nesting and winter cover/fawning cover"]
["Indian ricegrass ","Achnatherum hymenoides","Poaceae","Y","Y","Y","Y","N","Y","Y","N","N","N","N","Y","N","Y","Y","N","Y","N","Y","Y","N","N","N","N","B ","NN","C","N","Low","High"]
["inland rush","Juncus interior","Juncaceae","N","Y","Y","N","Y","N","Y","Y","Y","Y","Y","Y","Y","Y","Y","Y","Y","Y","Y","Y","Y","Y","Y","Y","B ","NN","C","N","Low","Low",null,"Found on margins of streams, ponds, lakes; also in tallgrass prairie in lowland and uplands."]
["intermediate wheatgrass ","Thinopyrum intermedium","Poaceae","Y/N","Y","Y","Y/N","Y","N","Y","Y","N","N","N","Y","Y","Y","Y","Y","Y","Y","Y","Y","Y","Y","Y","Y","S ","I","C","Y","Medium","High",null,"Drought tolerant; can be used for limited or full irrigation."]
["little bluestem ","Schizachyrium scoparium","Poaceae","Y","Y","Y","Y","Y","Y","N","Y","Y","N","N","Y","Y","Y","Y","Y","Y","Y","Y","Y","Y","Y","Y","Y","B ","NN","W","N","Low","High","important for nesting birds"]
["meadow brome ","Bromus biebersteinii","Poaceae","N","N","Y","N","Y","N","N","Y","Y","N","N","N","Y","N","Y","Y","N","Y","N","N","N","N","N","N","B ","I","C","Y","High","High",null,"Use in mixtures only"]
["needle-and-thread ","Hesperostipa comata","Poaceae","Y","Y","Y","Y","Y","Y","N","N","N","N","N","Y","Y","Y","Y","Y","Y","Y","Y","Y","N","Y","N","N","B ","NN","C","N","Low","Medium"]
["Newhy Wheatgrass","Elymus hoffmannii Newhy","Poaceae","N","N","Y","N","N","N","N","N","Y","N","Y","Y","Y","Y","Y","Y","Y","Y","Y","Y","Y","Y","Y","Y","B ","I","C","Y","High","High",null,"Cross between bluebunch wheatgrass and quackgrass."]
["orchard grass ","Dactylis glomerata","Poaceae","N","N","N","N","N","N","N","Y","Y","Y","N","Y","Y","Y","Y","Y","Y","Y","Y","Y","Y","Y","Y","Y","B ","I","C","Y","Medium","High",null,"Use in mixtures only"]
["perennial ryegrass ","Lolium perenne","Poaceae",null,null,null,"N",null,null,null,null,null,null,null,"Y","Y","Y","Y","Y","N","Y","Y","Y","Y","Y","Y","Y","B ","I","C","Y","High","High"]
["porcupine grass ","Hesperostipa spartea","Poaceae","Y","Y","Y","N","Y","N","N","Y","N","N","N","N","Y","N","Y","Y","N","Y","N","N","Y","Y","Y","Y","B ","NN","C","N","Medium","Medium"]
["prairie cordgrass","Spartina pectinata","Poaceae","N","N","N","N","N","N","N","N","N","Y","N","Y","Y","Y","Y","Y","Y","Y","Y","Y","Y","Y","Y","Y","S ","NN","W","N","Medium","Medium"]
["prairie dropseed ","Sporobolus heterolepis","Poaceae","N","Y","Y","Y","N","Y","N","Y","N","N","N","N","N","N","N","Y","N","N","N","N","Y","Y","Y","Y","B ","NN","W","N","Medium","Medium"]
["prairie Junegrass","Koeleria macrantha","Poaceae","Y","Y","Y","Y","Y","Y","N","N","N","N","N","Y","Y","Y","Y","Y","Y","Y","Y","Y","Y","Y","Y","Y","B ","NN","C","N","Medium","High","ideal for nesting and winter cover"]
["prairie sandreed ","Calamovilfa longifolia","Poaceae","Y","Y","Y","N","N","Y","N","Y","N","N","N","Y","Y","Y","Y","Y","Y","Y","Y","Y","Y","Y","N","Y","S ","NN","W","N","High","Medium"]
["purple lovegrass","Eragrostis spectabilis","Poaceae","Y","Y","Y","N","Y","N","N","N","N","N","N","N","N","N","Y","Y","N","Y","Y","Y","Y","Y","Y","Y","S ","NN","W","N","Low","Low",null,"Forage is rated as medium, but due to the low forage production has been rated as low."]
["redtop (purpletop)","Tridens flavus","Poaceae","N","Y","Y","Y","Y","N","N","Y","N","N","N","N","N","N","N","N","N","N","N","Y","Y","Y","Y","Y","B ","NN","W","N","Low","High"]
["redtop bent","Agrostis gigantea","Poaceae","N","N","N","N","N","N","N","Y","Y","N","Y","Y","Y","Y","Y","Y","Y","Y","Y","Y","Y","Y","Y","Y","S ","I","C","N","Low","High"]
["rough dropseed (tall dropseed)","Sporobolus compositus","Poaceae","N","N","Y","Y","Y","N","N","Y","Y","N","N","Y","Y","Y","Y","Y","Y","Y","Y","Y","Y","Y","Y","Y","B ","NN","W","N","Low","Medium"]
["Russian wild-rye ","Psathyrostachys juncea","Poaceae","N","N","Y","N","Y","N","N","Y","Y","N","Y","N","N","N","N","N","Y","N","N","N","N","N","N","N","B ","I","C","Y","Low","High"]
["saltgrass","Distichlis spicata","Poaceae","N","Y","Y","N","Y","N","Y","Y","Y","N","Y","Y","Y","Y","Y","Y","Y","Y","Y","Y","Y","Y","Y","Y","S ","NN","W","N","Medium","Low"]
["sand bluestem ","Andropogon hallii","Poaceae","Y","Y","N","N","N","Y","N","N","N","N","N","Y","Y","Y","Y","Y","Y","Y","Y","Y","Y","Y","Y","Y","S ","NN","W","N","Low","High","ideal for nesting and winter cover for birds/fawning cover"]
["sand dropseed","Sporobolus cryptandrus","Poaceae","Y","Y","Y","Y","Y","Y","Y","Y","Y","N","Y","Y","Y","Y","Y","Y","Y","Y","Y","Y","Y","Y","Y","Y","B ","NN","W","N","Low","Low"]
["sand lovegrass ","Eragrostis trichodes","Poaceae","Y","Y","Y","N","N","Y","N","N","N","N","N","Y","Y","Y","Y","Y","Y","Y","Y","Y","Y","Y","Y","Y","B ","NN","W","N","Low","High","ideal for nesting and winter cover for birds/fawning cover"]
["Schweinitz's flatsedge","Cyperus schweinitzii","Cyperaceae","Y","Y","N","N","N","N","N","Y","Y","N","N","Y","Y","Y","Y","Y","Y","Y","Y","Y","Y","Y","Y","Y","B ","NN","C","N"]
["Scribner panicum (rosettegrass)","Dichanthelium oligosanthes var. scribnerianum","Poaceae","Y","Y","Y","Y","Y","Y","Y","Y","Y","N","Y","Y","Y","Y","Y","Y","Y","Y","Y","Y","Y","Y","Y","Y","B ","NN","C","N",null,"Medium"]
["shortbeak sedge","Carex brevior","Cyperaceae",null,"Y","Y",null,"Y",null,null,"Y","Y"," ",null,"Y","Y","Y","Y","Y","Y","Y","Y","Y","Y","Y","Y","Y","B ","NN","C","N",null,null,"carex species provide  food for waterfowl in wetland sites"]
["sideoats grama ","Bouteloua curtipendula","Poaceae","N","Y","Y","Y","Y","Y","N","Y","N","N","N","Y","Y","Y","Y","Y","Y","Y","Y","Y","Y","Y","Y","Y","S ","NN","W","N","Medium","High"]
["sixweeks-fescue","Vulpia octoflora","Poaceae","Y","Y","Y","Y","Y","Y","Y","Y","N","Y","N","Y","Y","Y","Y","Y","Y","Y","Y","Y","Y","Y","Y","Y","A","NN","C","N","Low","Low"]
["slender wheatgrass ","Elymus trachycaulus","Poaceae","N","Y","Y","N","Y","N","N","Y","Y",null,null,"Y","Y","Y","Y","Y","Y","Y","Y","Y","Y","Y","Y","Y","B ","NN","C","N","Medium","High"]
["smooth brome ","Bromus inermis","Poaceae","N","N","Y","N","Y","N","N","Y","Y","N","N","Y","Y","Y","Y","Y","Y","Y","Y","Y","Y","Y","Y","Y","S ","I ","C","Y","High","High","low wildlife value, never recommened for wildlife projects","Aggressive and can invade native rangelands."]
["switchgrass ","Panicum virgatum","Poaceae","Y","Y","Y","N","N","N","N","Y","Y","N","Y","Y","Y","Y","Y","Y","Y","Y","Y","Y","Y","Y","Y","Y","S ","NN","W","Y","High","High","ideal for nesting and winter cover for birds/fawning cover"]
["tall wheatgrass ","Thinopyrum ponticum","Poaceae","N","N","N","N","N","N","N","N","Y","N","Y","Y","N","Y","Y","Y","Y","Y","Y","Y","Y","N","N","N","B ","I","C","Y","Medium","Medium",null,"Tall, coarse, preforms best on saline/alkaline sites with high water table"]
["tall-fescue ","Schedonorus arundinaceus","Poaceae","N","Y","Y","N","N","N","Y","Y","Y","N","Y","N","N","Y","N","N","Y","Y","Y","Y","Y","Y","Y","Y","B ","I","C","Y","Medium","High",null,"Aggressive and can invade native rangelands."]
["thickspike wheatgrass ","Elymus lanceolatus","Poaceae","N","N","Y","Y","N","Y","Y","N","Y","N","Y","Y","N","Y","N","N","Y","N","N","N","N","N","N","N","S ","NN","C","N","Medium","Medium",null,"Native to NW part of state"]
["timothy ","Phleum pratense","Poaceae","N","N","N","N","N","N","N","Y","Y","N","N","Y","Y","Y","Y","Y","Y","Y","Y","Y","Y","Y","Y","Y","B ","I","C","N","Medium","High"]
["Virginia wild-rye ","Elymus virginicus","Poaceae","N","N","N","N","N","N","N","Y","Y","N","N","Y","Y","Y","Y","Y","Y","Y","Y","Y","Y","Y","Y","Y","B ","NN","C","N","Medium","Low","provides nesting cover for birds/fawning cover","Short-lived; found on wet soils and bottomlands"]
["wedge grass  (prairie wedgescale)","Sphenopholis obtusata","Poaceae","N","Y","Y","N","N","N","N","Y","Y","N","N","Y","Y","Y","Y","Y","Y","Y","Y","Y","Y","Y","Y","Y","B ","NN","C","N","Medium","Low"]
["western wheatgrass ","Pascopyrum smithii","Poaceae","N","Y","Y","Y","Y","Y","Y","Y","Y","N","Y","Y","Y","Y","Y","Y","Y","Y","Y","Y","Y","Y","Y","Y","S ","NN","C","N","Medium","Medium"]
["yellow sand paspalum","Paspalum setaceum","Poaceae","Y","Y","N","N","N","N","N","N","N","N","N","N","Y","N","Y","Y","N","Y","Y","Y","Y","Y","Y","Y","B ","N","W","N","Low","Low"]
["yellowfruit sedge","Carex annectens","Cyperaceae","N","N","N","N","N","N","N","Y","Y","Y","N","N","N","N","Y","N","N","Y","N","N","Y","Y","Y","Y","B ","NN","C","N"]

{"sheet":"Guide-Forbs","index":7,"n_rows":239,"n_cols":38,"rows_kept":239,"cut":false,"hidden":false,"merged":[[0,4,0,13],[0,14,0,26],[0,0,0,2]]}
["FORBS",null,null,null,"SOIL TYPES",null,null,null,null,null,null,null,null,null,"MLRA ADAPTABILITY (MLRAS where plant has been found in native situations; adaptability may extend into adjacent MLRAs)",null,null,null,null,null,null,null,null,null,null,null,null,"LIFESPAN","ORIGIN"]
["Plant  Name                                  (As listed in Flora of NE)","Species - USDA PLANTS","Family","Sands","Sandy","Loams","Calcareous","Clays","Shallow / Gravelly","Alkaline / Saline","Lowland","Subirrigated","Wet Land","Alk. / Saline Subirrigated","60A","63B","64","65","66","67A","71","72","73","75","102C","106","107B","A=Annual,   B=Biennial,  P=Perennial ","N= Native US, NN= Native Nebraska, I=Introduced","Bloom Period","TOXICITY","Livestock Forage Value","Pollinator Value","Monarch Value","Appropriate for Beneficial Insect Plantings","Monarch Value2","Wildlife Values","General Comments"]
["Allegheny monkey-flower ","Mimulus ringens","Scrophulariaceae","N","N","N","N","N","N","N","Y","Y","N","N","N","Y","N","Y","Y","Y","Y","N","Y","Y","Y","Y","Y","P","NN",2,null,null,null,null,null,null,null,"Found along mosist streambanks and other wet places, usually in woods."]
["Alsike clover ","Trifolium hybridum","Fabaceae","N","Y","Y",null,null,"N",null,"Y","Y",null,null,"N","N","N","N","Y","Y","Y","N","N","Y","Y","Y","Y","P","I",null,"Potentially Toxic","High",null,null,null,null,"creates  brood-rearing cover through structure","Locally common where seeded in hay meadows and tame pasture."]
["American germander ","Teucrium canadense","Lamiaceae","N","N","N","N","N","N","N","Y","Y","Y",null,"Y","Y","Y","Y","Y","Y","Y","Y","Y","Y","Y","Y","Y","P","NN",2,"None","Low",null,null,null,null,null,"Meadows, low prairies, moist woodlands and wetlands."]
["American senna","Senna hebecarpa","Fabaceae","N","Y","Y","N",null,null,null,"Y","Y",null,null,null,null,null,null,null,null,null,null,null,null,null,null,null,"P","N",2,null,null,null,null,null,null,null,"This is a large, long-lived legume.  It prefers moist soils of floodplains, but will grow on dry sites."]
["American vetch ","Vicia americana","Fabaceae","N","Y","Y","Y",null,null,"N",null,null,"N","N","Y","Y","Y","Y","Y","Y","Y","Y","Y","Y","Y","Y","Y","P","NN",1,"None","High",null,null,null,null,"provides forage for game birds and big game animals","Found in moist to dry prairies, open woodlands and badlands throughout the state."]
["aromatic aster","Symphyotrichum oblongifolium ","Asteraceae","Y","Y","Y",null,null,null,null,null,null,null,null,"N","Y","Y","Y","Y","N","Y","N","Y","Y","Y","Y","Y","P","NN",3,null,null,null,null,"Y","High",null,"Dry prairies except for the Southern Panhandle and SW.  "]
["arrow-leaf aster","Symphyotrichum cordifolium","Asteraceae","N","Y","Y","Y","Y","N","N","Y","N","N","N","N","N","N","N","N","N","N","N","N","N","N","N","Y","P","NN",3,"None","Low",null,null,"Y","High",null,"Found in oak woodlands along Missouri River."]
["azure aster","Symphyotrichum oolentangiense ","Asteraceae","N","Y","Y","Y","Y",null,null,"Y",null,null,null,"N","N","N","N","N","N","N","N","N","N","N","Y","Y","P","NN",3,null,null,null,null,"Y","High",null,"Dry and mesic prairies and woodlands in the SE 1/8 part of the state."]
["bird's-foot trefoil","Lotus corniculatus","Fabaceae","N","Y","Y",null,"Y",null,null,"Y",null,null,null,"Y","Y","Y","N","Y","Y","Y","N","N","Y","Y","Y","Y","P","I",1,"None","High",null,null,null,null,"provides structure and cover ","Can invade native rangeland - very aggressive."]
["black-eyed Susan ","Rudbeckia hirta","Asteraceae","Y","Y","Y","Y","Y","N","N","Y","N","N","N","Y","Y","Y","Y","Y","Y","Y","Y","Y","Y","Y","Y","Y","P","NN",2,"None","Low",null,null,"Y",null,"seeds important food source for birds, deer may browse on leaves","Moist to mesic prairies and meadows."]
["blanket-flower","Gaillardia aristata","Asteraceae","N","Y","Y","Y","Y","Y","Y","Y","N","N","N","Y","Y","Y","N","N","Y","N","N","N","N","N","N","N","P","N",1,"None","Low",null,null,null,null,null,"Plant is native to Black Hills, and Eastern Wyoming. "]
["blue flax","Linum perenne","Linaceae","N","Y","Y","Y",null,null,null,null,null,null,null,"Y","Y","Y","N","N","Y","Y","N","N","Y","Y","Y","N","P","I",1,"None",null,null,null,null,null,"provides cover for small birds, forage for birds and deer","Escaped from cultivation and roadside seedings."]
["blue lobelia","Lobelia siphilitica","Campanulaceae","N","N","N","N","N","N","N","Y","Y","N","Y","Y","Y","Y","Y","Y","Y","Y","Y","Y","Y","Y","Y","Y","P","NN",3,null,null,null,null,null,null,null,"In shaded or open wet areas near streams or standing water, and wetlands."]
["blue sage","Salvia azurea var. grandiflora","Lamiaceae","Y","Y","Y","Y","N","N","N","Y",null,null,null,"N","N","N","Y","Y","Y","Y","Y","Y","Y","Y","Y","N","P","NN",2,"None","Low",null,null,null,"High",null,"Originally found mostly in the SE corner, but has been planted in roadside plantings throughout the state."]
["blue vervain","Verbena hastata","Verbenaceae","N","N","N","N","N","N","N","Y","Y",null,null,"Y","Y","Y","Y","Y","Y","Y","Y","Y","Y","Y","Y","Y","P","NN",2,null,null,null,null,null,null,"seeds eaten by song birds","Common in meadows, low prairies, creek and pond edges and low open woodlands."]
["boneset","Eupatorium perfoliatum","Asteraceae","N","Y","N","N","N","N","N","Y","Y",null,null,"N","Y","Y","Y","Y","N","Y","N","Y","Y","Y","Y","Y","P","NN",3,null,"low",null,null,null,null,null,"Found along streamsides, marshes, and wet ditches nearly statewide."]
["bracted spiderwort","Tradescantia bracteata","Commelinaceae","N","N","Y","Y","Y","Y",null,"Y",null,null,null,"Y","Y","N","N","Y","N","Y","N","Y","Y","Y","Y","Y","P","NN",1,"None","Medium",null,null,"Y",null,null,"Common on mesic to moist prairies in E 1/2 and Northern tier  - not found in the Sandhills."]
["brown-eyed Susan ","Rudbeckia triloba","Asteraceae",null,null,"Y","N",null,null,null,"Y",null,null,null,"N","N","N","N","N","N","Y","N","N","Y","Y","Y","Y","P","N",2,null,null,null,null,null,null,null,"Found in forest edges and shady areas; probably introduced.  Is native to Kansas."]
["bush morning-glory","Ipomoea leptophylla","Convulvulaceae","Y","Y","Y","Y","N","N","N","Y","N","N","N","Y","Y","Y","Y","Y","Y","Y","Y","Y","N","Y","N","N","P","NN",2,null,"High",null,null,null,null,null,"Most often found in the W 2/3 of the state (west of 100th meridian) but also found in Loup, Elkhorn and Niobrara drainages."]
["bushy seedbox","Ludwigia alternifolia","Onagraceae","N","N","N","N","Y","N","N","N","Y","Y","N","N","N","N","N","N","N","N","N","N","Y","N","Y","N","P","NN",3,null,null,null,null,null,null,null,"Known from seeps and springs in Jefferson County."]
["butterfly milkweed ","Asclepias tuberosa","Apocynaceae","Y","Y","Y","Y","Y",null,null,null,null,null,null,"N","N","N","Y","Y","N","Y","N","N","Y","Y","Y","Y","P","NN",2,"None","Low",null,null,"Y","Very High"]
["calamus","Acorus calamus","Acoraceae","N","N","N","N","N","N","N","N","N","Y","Y","Y","N","Y","N","N","N","N","N","N","Y","N","Y","Y","P","I",2,"None","Low",null,null,null,null,null,"Found in mesic open upland and lowland forests, woodlands, streamsides E 1/3 of state"]
["Canada goldenrod ","Solidago canadensis","Asteraceae","Y","Y","Y","Y","Y",null,null,"Y",null,null,null,"Y","Y","Y","Y","Y","Y","Y","Y","Y","Y","Y","Y","Y","P","NN",3,"Potentially Toxic","Low",null,null,"Y","High","seeds eaten by birds, provides structure ","Forage is not toxic, but can serve as host to a rust fungus that is toxic."]
["Canada milk-vetch ","Astragalus canadensis","Fabaceae","N","Y","Y",null,null,"N",null,"Y","Y",null,null,"Y","Y","Y","Y","Y","Y","Y","Y","Y","Y","Y","Y","Y","P","NN",2,"Slight ","Low",null,null,"Y",null,"sought after by deer","Found on moist prairies, streambanks and open woods throughout most of the State."]
["Canada tick-clover","Desmodium canadense","Fabaceae","Y","Y","Y",null,null,null,null,"Y","Y",null,null,"Y","Y","Y","Y","Y","N","Y","N","N","Y","Y","Y","Y","P","NN",2,"None","High",null,null,"Y"]
["candle anemone ","Anemone cylindrica","Ranunculaceae","Y","Y","Y",null,null,null,"N","Y",null,null,null,"Y","Y","Y","Y","Y","N","Y","N","N","Y","Y","Y","Y","P","NN",2,null,null,null,null,"Y",null,null,"Found primarily in W 2/3 of state (unless introduced along roads and railroads further east)."]
["cardinal flower","Lobelia cardinalis","Campanulaceae","N","N","N","N","N","N","N","Y","Y","N","N","N","N","N","N","N","N","Y","Y","Y","Y","N","Y","N","P","NN",3,"None","Medium",null,null,null,null,null,"Found in shaded or open wet areas often near streams, especially the Republican River drainage and Central Platte River."]
["Carolina anemone","Anemone caroliniana","Ranunculaceae","Y","Y","Y",null,null,"N","N","Y",null,null,null,"N","Y","N","Y","Y","N","Y","N","N","Y","Y","Y","Y","P","NN",1]
["catnip giant-hyssop","Agastache nepetoides","Lamiaceae","Y","Y","Y","N","Y","N","N","Y","Y","N",null,"N","N","N","N","N","N","Y","N","N","Y","Y","Y","Y","P","NN",2,null,"Low",null,null,"Y","High",null,"Common cause of hay fever"]
["chick-pea milk-vetch ","Astragalus cicer","Fabaceae",null,"Y","Y",null,null,null,null,"Y",null,null,null,"Y","N","Y","N","Y","Y","Y","N","N","N","N","N","N","P","I",2,"Slight","Medium",null,null,null,null,null,"Range is expanding due to planting in pasture seedings.  Plant can invade native rangeland."]
["clammy ground-cherry","Physalis heterophylla","Solanaceae","Y","Y","Y"," "," ",null,"N","Y","N","N","N","N","N","Y","Y","Y","N","Y","Y","Y","Y","Y","Y","N","P","NN",2,"Potentially Toxic","Low",null,null,"Y"]
["clasping coneflower","Dracopis amplexicaulis","Asteraceae","N","N",null,"N","N","N","N","Y","Y",null,null,null,null,null,null,null,null,null,null,null,null,null,null,null,"A","N",2,"None","Low",null,null,null,null,"seeds important food source for birds","Prefers bottomland areas with rich soil, ample moisture and full sun."]
["cobaea penstemon","Penstemon cobaea","Scrophulariaceae","N","N","Y",null,null,"Y","N",null,null,null,null,"N","N","N","N","N","Y","N","Y","Y","Y","N","Y","Y","P","NN",1,"Potentially Toxic",null,null,null,null,null,null,"All Penstemons are selenium accumulators.  Specimens from the Panhandle and SW may have been introduced via roadside plantings."]
["common agalinis","Agalinis tenuifolia","Scrophulariaceae","N","N","N","N","N","N","N","Y","Y","Y","Y","Y","Y","Y","Y","Y","Y","Y","Y","Y","Y","Y","Y","Y","A","NN",3,"Occasionally Toxic","Low"]
["common evening-primrose ","Oenothera biennis","Onagraceae","N","Y","Y","Y","Y","N","N","Y","N","N","N","Y","Y","Y","Y","Y","Y","Y","Y","Y","Y","Y","Y","Y","B","NN",2,"None",null,null,null,"Y",null,null,"Found in disturbed areas; in the Sandhills is not found on the dunes, but can be found on other sites."]
["common golden alexander","Zizia aurea","Apiaceae","N","N","N","N","N","N","N","Y",null,null,null,"N","N","N","N","N","N","N","N","N","N","Y","Y","Y","P","NN",1,null,null,null,null,"Y",null,null,"Low prairies and open woods of E 1/5 of state."]
["common milkweed ","Asclepias syriaca","Apocynaceae","Y","Y","Y","Y","Y","Y","Y","Y","Y",null,null,"N","Y","N","Y","Y","N","Y","N","Y","Y","Y","Y","Y","P","NN",2,"Moderately toxic","Low",null,null,"Y","Very High"]
["common ragweed","Ambrosia artemisiifolia","Asteraceae","Y","Y","Y",null,"Y",null,null,"Y","N","N","N","N","Y","N","Y","Y","Y","Y","Y","Y","Y","Y","Y","Y","A","NN",null,"Occasionally Toxic","Low",null,null,null,null,"important food souce, can provide cover and shade","Found in Eastern 2/3 except not in extreme NE"]
["common sunflower","Helianthus annuus","Asteraceae","N","Y","Y","Y","Y","Y",null,"Y",null,"N",null,"Y","Y","Y","Y","Y","Y","Y","Y","Y","Y","Y","Y","Y","A","NN",3,"None","Medium",null,null,"Y","Very High","important wildlife food source, large leaves provide cover and shade","Abundant in disturbed areas on heavy to somewhat sandy soils (not dunes).  May hybridize with H. petiolaris.  "]
["compass-plant ","Silphium laciniatum","Asteraceae","N","N","Y","Y","Y","N","N","Y",null,null,null,"N","N","N","N","N","N","Y","N","N","Y","Y","Y","Y","P","NN",2,null,null,null,null,"Y","High","seeds eaten by birds, provides structure","Low mesic prairies, occasionally on uplands."]
["crimson clover","Trifolium incarnatum","Fabaceae","N","Y","Y",null,null,"N",null,null,null,null,null,"N","N","Y","N","Y","N","N","N","N","N","N","Y","N","A","I",null,"Potentially Toxic","High",null,null,null,null,"creates  brood-rearing cover through structure","Planted for quick cover; does not persist in our climate."]
["Culver's root","Veronicastrum virginicum","Scrophulariaceae","N","N","Y","Y","Y","N","N","Y","N","N","N","N","N","N","N","N","N","N","N","N","N","N","Y","Y","P","NN",2,null,null,null,null,"Y","High",null,"Mesic tallgrass prairies."]
["cup-plant ","Silphium perfoliatum","Asteraceae","N","N","Y","Y","Y","N","N","Y",null,null,null,"N","N","N","N","N","N","N","N","N","Y","Y","Y","Y","P","NN",2,"None",null,null,null,"Y","High","seeds eaten by birds, provides structure","Low moist prairies and forest margins."]
["curly cup gumweed","Grindelia squarrosa","Asteraceae","N","Y","Y","Y","Y","Y","Y","Y","N","N","N","Y","Y","Y","Y","Y","Y","Y","Y","Y","Y","Y","Y","Y","A / B / P","NN",2,"Potentially Toxic","Low",null,null,"Y",null,"may provide food source for grouse chicks"]
["Cutleaf coneflower","Rudbeckia laciniata","Asteraceae","N","N","N","N","N","N","N","Y","Y","Y","N","N","Y","Y","Y","Y","N","Y","N","Y","Y","Y","Y","Y","P","NN",2,"None","High",null,null,null,null,null,"Marshes and moist woods."]
["cutleaf ironplant","Machaeranthera pinnatifida","Asteraceae","Y","Y","Y","Y","Y","Y",null,"N","N","N","N","Y","Y","Y","Y","Y","Y","Y","Y","Y","Y","Y","N","N","P","NN",2,"Potentially Toxic","Low",null,null,null,null,null,"Selenium accumulator."]
["daisy fleabane","Erigeron strigosus","Asteraceae","N","Y","Y","Y","Y",null,null,null,null,null,null,"Y","Y","Y","Y","Y","N","Y","N","Y","Y","Y","Y","Y","A / B","NN",1,"None",null,null,null,"Y"]
["Dakota mock vervain","Glandularia bipinnatifida","Verbenaceae","N","Y","Y","Y",null,"Y","N",null,"N","N","N","Y","Y","N","N","Y","N","Y","Y","Y","Y","Y","Y","N","P","NN",1,null,null,null,null,"Y","High",null,"Often associated with limestone, chalk, or calcareous glacial till."]
["devil's beggar-ticks","Bidens frondosa","Asteraceae","N","N","N","N","N","N","N","Y","Y","Y",null,"Y","Y","Y","Y","Y","Y","Y","Y","Y","Y","Y","Y","Y","A","NN",3,"None","Low",null,null,null,null,"seeds important food source for songbirds and waterfowl","Found in damp woods, shores and streamsides statewide."]
["dotted gayfeather","Liatris punctata","Asteraceae","Y","Y","Y","Y","Y","Y","N","N","N","N","N","Y","Y","Y","Y","Y","Y","Y","Y","Y","Y","Y","Y","Y","P","NN",2,"None","Medium",null,null,null,"High",null,"Found state wide on upland prairies."]
["downy blue violet","Viola sororia","Violaceae","N","Y","Y","Y","Y","N","N","Y",null,null,null,"Y","Y","Y","Y","Y","Y","Y","Y","Y","Y","Y","Y","Y","P","NN",1,"None",null,null,null,"Y",null,"seeds eaten by birds including quail and turkey","Found in woodlands and forests on a wide range of soils."]
["downy gentian","Gentiana puberulenta","Gentianaceae","N","N","Y","N","Y","N","N","Y","Y",null,"Y","N","N","N","Y","Y","N","N","N","N","Y","Y","Y","Y","P","NN",3,null,null,null,null,null,null,null,"In western part of range is found in subirrigated meadows, in the east part of range can be on moist upland sites."]
["downy goldenrod","Solidago petiolaris","Asteraceae","Y","Y","N","N","N","Y","N","N","N","N","N","N","N","N","N","N","N","Y","N","N","Y","N","Y","Y","P","NN",3,null,null,null,null,"Y","High","seeds eaten by birds, provides structure ","Found in rocky and sandy woods, canyons and escarpments in E 1/2 of southern tier of counties."]
["dwarf Indian-paintbrush","Castilleja sessiliflora","Scrophulariaceae","N","Y","Y","Y","Y","Y","N","N","N","N","N","Y","Y","Y","N","Y","Y","N","Y","Y","N","Y","N","Y","P","NN",1,"None",null,null,null,null,null,null,"Plant is a partial root parasite on many different angiosperm hosts."]
["false boneset","Brickellia eupatorioides var. corymbulosa","Asteraceae","Y","Y","Y","Y","Y",null,null,"Y",null,null,null,"Y","Y","Y","Y","Y","Y","Y","Y","Y","Y","Y","Y","Y","P","NN",2,null,"Low",null,null,"Y","High"]
["false sunflower","Heliopsis helianthoides","Asteraceae","N","N","N","N","N","N","N","Y","Y",null,null,"N","Y","Y","Y","Y","Y","Y","N","Y","Y","Y","Y","Y","P","NN",2,"None","Low",null,null,"Y","Very High","important wildlife food source, leaves provide cover and shade","Low prairies, forest margins and open woodlands of E 1/2 and scattered across the north part of the W 1/2."]
["field mint","Mentha arvensis","Lamiaceae","N","N","N","N","N","N","N","Y","Y",null,null,"Y","Y","Y","Y","Y","Y","Y","Y","Y","Y","Y","Y","Y","P","NN",2,"None","Low",null,null,"Y",null,null,"Statewide but less common in the South."]
["field pussytoes","Antennaria neglecta","Asteraceae","Y","Y","Y","Y","Y",null,null,"Y","N","N","N","N","Y","N","Y","Y","N","Y","N","N","Y","Y","Y","Y","P","NN",1,"None","Low",null,null,"Y",null,null,"Found in low meadows, moist prairies of Platte Valley and moist draws in tall grass prairie."]
["field snake-cotton","Froelichia floridana","Amaranthaceae","Y","Y","N","N","N","N","N","N","N","N","N","N","Y","N","Y","Y","N","Y","Y","N","N","Y","N","Y","P","NN",2,null,null,null,null,null,null,null,"Disturbed sandy soils of sandhills, sandsage prairie and Platte and Republican river valleys."]
["finger coreopsis","Coreopsis palmata","Asteraceae","N","Y","Y","N","N","N","N","Y","Y","Y",null,"N","N","N","N","N","N","N","N","N","N","Y","Y","Y","P","NN",2,null,null,null,null,"Y","High"]
["flat-top golden-top","Euthamia graminifolia","Asteraceae","N","Y","Y","N","N",null,"N","Y","Y",null,null,"Y","N","Y","Y","N","Y","N","N","N","N","N","Y","Y","P","N",3,null,null,null,null,"Y",null,null,"Found in neighboring states adjacent to northern panhandle and SE NE."]
["Flodman's thistle","Cirsium flodmanii","Asteraceae","N","N","Y","Y","Y",null,null,"Y",null,null,null,"Y","Y","Y","Y","Y","Y","Y","N","N","Y","Y","Y","Y","P","NN",2,"None",null,null,null,"Y","High",null,"Plant absent from sandhills dunes and SW."]
["flowering spurge","Euphorbia corollata","Euphorbiaceae","N","N","Y","Y","Y",null,null,"Y",null,null,null,"N","N","N","N","N","N","N","N","N","N","Y","Y","Y","P","NN",2,null,null,null,null,"T"]
["fourpoint evening-primrose ","Oenothera rhombipetala","Onagraceae","Y","Y","N","N","N","Y","N","N","N","N","N","N","Y","Y","Y","Y","N","N","Y","Y","Y","Y","N","N","B","NN",2,null,null,null,null,"Y",null,null,"Sand dunes, sandy plains and sand lowlands."]
["fragrant cudweed","Pseudognaphalium obtusifolium","Asteraceae","Y","Y","Y","Y","Y",null,null,"Y","N","N","N","N","N","N","N","N","N","Y","Y","Y","Y","Y","Y","Y","P","NN",3,null,null,null,null,"Y",null,null,"Dry prairies, river bottoms on heavy to sandy soils."]
["fringed puccoon","Lithospermum incisum","Boraginaceae","Y","Y","Y","Y","Y","N","N","N","N","N","N","Y","Y","Y","Y","Y","Y","Y","Y","Y","Y","Y","Y","Y","P","NN",1,null,"Low",null,null,null,null,null,"Dry prairies and open woods on heavy to loose-sandy soils.  "]
["fringe-leaf wild-petunia","Ruellia humilis","Acanthaceae","N","N","Y","Y","Y","Y","N","Y",null,null,null,"N","N","N","N","N","N","N","N","N","Y","N","Y","Y","P","NN",2,"None","Medium",null,null,"Y",null,null,"Found in upland or lowland tall-grass prairies of the SE part of the state."]
["goat's-beard","Tragopogon dubius","Asteraceae","Y","Y","Y","Y","Y",null,null,"Y","Y","N","N","Y","Y","Y","Y","Y","Y","Y","Y","Y","Y","Y","Y","Y","B","I",1,"None","Low",null,null,null,null,null,"Disturbed soils and in meadows."]
["golden-aster","Heterotheca villosa","Asteraceae","Y","Y","Y","Y",null,"Y",null,"Y","N","N","N","Y","Y","Y","Y","Y","Y","Y","Y","Y","N","Y","N","N","P","NN",2,"None","Low",null,null,null,null,null,"Sands and dry slopes with heavier soils; not found in SE 1/6."]
["golden-top","Euthamia gymnospermoides","Asteraceae","N","Y","Y","N",null,null,"N","Y","Y",null,"Y","Y","Y","Y","Y","Y","Y","Y","Y","Y","Y","Y","Y","Y","P","NN",3,null,null,null,null,null,null,null,"Found in dry to most sandy soils of river bottoms and low meadows and along roadsides."]
["gray goldenrod","Solidago nemoralis","Asteraceae","Y","Y","Y","Y","Y",null,null,"N","N","N","N","Y","Y","Y","Y","Y","Y","Y","N","Y","Y","Y","Y","Y","P","NN",3,"None","Medium",null,null,"Y","Very High","seeds eaten by birds, provides structure ","Found on dry prairies over most of the state - not in the SW corner of the state."]
["grayhead prairie coneflower ","Ratibida pinnata","Asteraceae","N","Y","N","N","N","N","N","Y","Y","N","N","N","N","N","N","N","N","N","N","N","N","N","Y","Y","P","NN",2,"None","Medium",null,null,"Y",null,null,"Moist meadows and forest margins in the extreme east part of the state."]
["green milkweed","Asclepias viridiflora","Apocynaceae","N","Y","Y","Y","Y",null,null,null,null,null,null,"Y","Y","Y","Y","Y","Y","Y","Y","Y","Y","Y","Y","Y","P","NN",2,null,"Low",null,null,"Y",null,null,"May have narrow or broad leaves.  State wide; occasional in Sandhills."]
["grooved flax","Linum sulcatum","Linaceae","Y","Y","Y","Y","Y",null,null,null,null,null,null,"N","Y","N","Y","Y","N","Y","N","N","Y","Y","Y","Y","A","NN",2]
["ground-plum  ","Astragalus crassicarpus","Fabaceae","N","Y","Y","Y","Y","Y",null,"Y","N","N","N","Y","Y","Y","Y","Y","Y","Y","N","Y","Y","Y","Y","Y","P","NN",1,"None","Medium",null,null,"Y"]
["hairy aster","Symphyotrichum pilosum","Asteraceae","N","Y","N","N","N","N","N","Y","N","N","N","N","N","N","N","N","N","N","N","N","Y","N","Y","Y","P","NN",3,null,null,null,null,"Y","High",null,"Dry meadows in SE 1/6 part of the state."]
["hairy four-o'clock ","Mirabilis hirsuta","Nyctaginaceae","Y","Y","Y",null,"N","N","N",null,"N","N","N","Y","Y","Y","Y","Y","Y","Y","Y","Y","N","Y","N","N","P","NN",2,null,"Low",null,null,null,null,null,"Usually found on sandy soils in mixed grass prairie; rare in open woods and tall grass prairie."]
["hairy hawkweed","Hieracium longipilum","Asteraceae","N","Y","Y",null,"Y",null,null,"Y",null,null,null,"N","N","N","N","N","N","N","N","N","Y","Y","N","Y","P","NN",2,null,null,null,null,null,null,null,"Dry to mesic prairies of SE 1/6."]
["hairy sunflower","Helianthus mollis","Asteraceae","N","N",null,null,null,null,null,null,null,null,null,"N","N","N","N","N","N","Y","N","N","Y","N","Y","Y","P","N",3,"None","High",null,null,null,null,null,"Introduced from states to east and south."]
["hare's-foot dalea","Dalea leporina","Fabaceae",null,"Y","Y","Y","Y",null,null,null,"N","N","N","N","Y","N","Y","Y","N","Y","N","N","Y","Y","Y","Y","A","NN",2,null,null,null,null,null,null,null,"Plant is more common in the east, scattered locations in west."]
["heath aster","Symphyotrichum ericoides ","Asteraceae","Y","Y","Y","Y",null,"Y",null,"Y",null,null,null,"Y","Y","Y","Y","Y","Y","Y","Y","Y","Y","Y","Y","Y","P","NN",3,"Potentially Toxic","Low",null,null,"Y","Very High",null,"Mesic to dry prairies nearly state wide."]
["hemp dogbane","Apocynum cannabinum","Apocynaceae","N","Y","Y","Y","Y",null,null,"Y","Y","N"," ","Y","Y","Y","Y","Y","Y","Y","Y","Y","Y","Y","Y","Y","P","NN",2,"Potentially Toxic","Low",null,null,"Y","High"]
["hoary puccoon","Lithospermum canescens","Boraginaceae","N","N","Y","Y","Y","N","N","Y","N","N","N","N","N","N","N","N","N","N","N","N","N","Y","Y","Y","P","NN",1,null,"Low",null,null,"Y","High",null,"Prairies, meadows, open woods, not on sandy soils in the E 1/4 of state."]
["hoary tick-clover","Desmodium canescens","Fabaceae","N","Y","Y",null,null,null,null,"Y",null,null,null,"N","N","N","N","N","N","Y","N","N","Y","Y","Y","Y","P","NN",2,"None","High",null,null,"Y"]
["hoary vervain","Verbena stricta","Verbenaceae",null,"Y","Y","Y",null,"N",null,"Y","N","N","N","Y","Y","Y","Y","Y","Y","Y","Y","Y","Y","Y","Y","Y","P","NN",2,null,null,null,null,"Y","High",null,"Very common in disturbed prairies, old fields and can form large colonies."]
["horse mint","Monarda punctata","Lamiaceae","Y","Y",null,null,null,null,null,null,null,null,null,"N","N","N","Y","N","N","N","N","N","N","Y","N","N","A/B","N",2,null,null,null,null,"Y",null,null,"Introduced from further south; found only in scattered locations.  "]
["Illinois bundleflower ","Desmanthus illinoensis","Fabaceae","N","N","Y","N","N","N","N","Y","Y",null,null,"N","Y","N","Y","Y","Y","Y","Y","Y","Y","Y","Y","Y","P","NN",2,"None","High",null,null,"Y",null,"seeds important food source for birds in late fall and early winter","Most common in east 3/4; rare in Panhandle"]
["Illinois tick-clover","Desmodium illinoense","Fabaceae","N","Y","Y",null,"Y","N","N","Y",null,null,null,"N","N","N","N","N","N","Y","N","N","Y","Y","Y","Y","P","NN",2,"None","High",null,null,null,null,"seeds important food source for quail and wild turkeys"]
["Indian blanket-flower","Gaillardia pulchella","Asteraceae","N","Y","Y","Y",null,"Y","N","N","N","N","N","N","N","N","N","N","N","N","N","Y","N","N","N","N","A","NN",2,"None","Medium",null,null,"Y",null,null,"Plant has been planted extensively in roadside plantings and gardens across the state."]
["Indian-breadroot","Pediomelum esculentum","Fabaceae","N","Y","Y","Y","Y","N","N",null,"N","N","N","Y","Y","Y","Y","Y","Y","Y","Y","Y","Y","Y","Y","Y","P","NN",1,"None","Medium",null,null,null,null,null,"Common in prairies and open woodlands throughout Nebraska."]
["ironweed","Vernonia fasciculata","Asteraceae","N","Y","N","N","N","N","N","Y","Y",null,null,"N","N","N","Y","Y","Y","Y","N","N","Y","Y","Y","Y","P","NN",2,null,null,null,null,"Y","High",null,"Moist prairies in North Platte Valley in Panhandle, and in E 1/2 of State.  "]
["Jerusalem -artichoke ","Helianthus tuberosus","Asteraceae","N","N","N","N","N","N","N","Y","Y",null,null,"N","Y","Y","Y","Y","Y","Y","N","Y","Y","Y","Y","Y","P","NN",3,"None","High",null,null,"Y","High",null,"Forms large dense colonies in low meadows in E 1/2 (scattered in the West)."]
["lacy phacelia","Phacelia tanacetifolia","Hydrophyllaceae","Y","Y","N","N","N","Y","N","N","N","N","N","Y","N","Y","Y","N","Y","N","Y","N","N","N","N","N","A","N",1,"None",null,null,null,null,null,null,"Often used as a cover crop."]
["lance-leaf gayfeather","Liatris lancifolia","Asteraceae","N","Y","N","N","N","N","N","Y","Y",null,"Y","N","N","Y","Y","Y","Y","Y","Y","Y","Y","Y","Y","Y","P","NN",3,null,null,null,null,null,"High",null,"Found on native meadows, and sandy and alkaline river bottoms of the Platte, North Platte and Niobrara rivers; also SW along Republican River."]
["lance-leaf tickseed ","Coreopsis lanceolata","Asteraceae",null,null,null,null,null,null,null,null,null,null,null,"N","Y","N","N","Y","N","Y","N","N","Y","Y","Y","Y","P","N",2,"None","Low",null,null,null,null,"seeds plovide food source for birds","Introduced from Eastern States."]
["large beardtongue","Penstemon grandiflorus","Scrophulariaceae","Y","Y",null,null,null,null,null,null,null,null,null,"Y","Y","Y","Y","Y","Y","Y","Y","Y","Y","Y","Y","Y","P","NN",1,"Potentially Toxic","Medium",null,null,"Y",null,null,"All Penstemons are selenium accumulators.  Found primarily in sandy or disturbed soils."]
["large-flowered gaura","Oenothera filiformis","Onagraceae","N","N","Y",null,null,null,null,"Y",null,null,null,"N","N","N","N","N","N","Y","N","N","Y","N","Y","Y","B","NN",3,null,null,null,null,null,null,null,"Found in tallgrass prairies and forest edges of the E 1/2 of state."]
["late goldenrod","Solidago gigantea","Asteraceae","N","N","N","N","N","N","N","Y","Y",null,null,"Y","Y","Y","Y","Y","Y","Y","Y","Y","Y","Y","Y","Y","P","NN",3,"None",null,null,null,"Y",null,"seeds eaten by birds, provides structure ","Moist meadows across the state."]
["lavender giant-hyssop","Agastache foeniculum","Lamiaceae","Y","Y","Y","Y","Y","N","N","N","N","N","N","Y","N","Y","N","N","N","N","N","N","N","N","N","N","P","NN",3]
["lemon bee-balm","Monarda citriodora","Lamiaceae",null,"Y","Y","Y",null,null,null,null,null,null,null,"N","N","N","N","N","N","N","N","Y","N","Y","Y","N","P","N",2,null,null,null,null,null,null,null,"Introduced from further south; found only in scattered locations.  "]
["long bract wild indigo ","Baptisia bracteata var. leucophaea","Fabaceae","N","N","Y","Y","Y",null,null,null,"N","N","N","N","N","N","N","N","N","N","N","N","Y","N","Y","Y","P","N",1]
["marble-seed","Onosmodium bejariense","Boraginaceae","N","N","Y","Y","Y","N","N","Y","N","N","N","Y","Y","Y","Y","Y","N","Y","N","Y","Y","Y","Y","Y","P","NN",2,"None","Low",null,null,null,null,null,"Dry Prairies in N 1/2 and E 2/3 of the State."]
["Maximilian's sunflower ","Helianthus maximiliani","Asteraceae","N","Y","N","N","N","N","N","Y","Y",null,null,"Y","Y","Y","Y","Y","Y","Y","Y","Y","Y","Y","Y","Y","P","NN",3,"None","Low",null,null,"Y","High","important wildlife food source, leaves provide cover and shade","Moist prairies and ditches state wide (can sometimes be found in drier prairies if planted)."]
["meadow anemone","Anemone canadensis","Ranunculaceae","N","N","N","N","N","N","N","Y","Y",null,null,"N","Y","N","N","Y","N","Y","N","N","Y","Y","Y","Y","P","NN",1,null,"Low",null,null,"Y",null,null,"Found in pine ridge, wildcat hills and along Niobrara River; in oak woodlands in east."]
["Mexican hat ","Ratibida columnifera","Asteraceae","Y","Y","Y","Y","Y","Y","N","N","N","N","N","Y","Y","Y","Y","Y","Y","Y","Y","Y","Y","Y","Y","Y","P","NN",2,"None","Medium",null,null,null,null,null,"This is a horticultural variety of the native prairie coneflower.  Do not use Ratibida peduncularis which is native to TX and LA."]
["Missouri evening-primrose ","Oenothera macrocarpa ssp. macrocarpa","Onagraceae","N","N","N","Y","Y","Y","N","N","N","N","N","N","N","N","N","N","N","N","N","Y","Y","N","Y","N","P","NN",1,null,null,null,null,null,null,null,"Found in the southern tier of counties in rocky areas (limestone or chalk)."]
["narrowleaf beardtongue","Penstemon angustifolius","Scrophulariaceae","Y","Y","Y","Y","Y","Y","N","N","N","N","N","Y","Y","Y","Y","Y","Y","Y","Y","N","Y","Y","N","N","P","NN",1,"Potentially Toxic","Medium",null,null,null,null,null,"All Penstemons are selenium accumulators."]
["narrow-leaf milkweed","Asclepias stenophylla","Apocynaceae","N","Y","Y","Y","Y","N",null,null,"N","N","N","Y","Y","N","Y","Y","N","Y","Y","Y","Y","Y","Y","Y","P","NN",2,null,null,null,null,"Y","Very High"]
["narrow-leaf purple coneflower","Echinacea angustifolia","Asteraceae","N","N","Y","Y",null,"Y","N","N","N","N","N","Y","Y","Y","Y","Y","Y","Y","Y","Y","Y","Y","Y","Y","P","NN",2,null,"High",null,null,"Y","High",null,"Not found in Sandhills proper, southern Panhandle or SW."]
["New England aster ","Symphyotrichum novae-angliae","Asteraceae","Y","Y","N","N","N","N","N","Y","Y",null,null,"N","N","N","Y","Y","N","Y","N","N","N","Y","Y","Y","P","NN",3,null,null,null,null,"Y","High",null,"Low, damp meadows and streamsides and open or bottomland woods, in Missouri, Loup, and Platte valleys and Sandhills."]
["nine-anther dalea","Dalea enneandra","Fabaceae","N","N","Y","Y","Y","Y","N","N","N","N","N","Y","Y","Y","N","N","Y","Y","Y","Y","Y","N","N","Y","P","NN",2,null,"High",null,null,null,null,null,"Seldom found on sand, it is common on calcareous, gravelly sites and loess bluff prairies."]
["nodding onion ","Allium cernuum","Liliaceae","Y","Y","Y","Y","Y","Y","N","N","N","N","N","Y","N","Y","N","N","N","N","N","N","N","N","N","N","P","NN",2,"Potentially Toxic",null,null,null,"Y",null,null,"Found on streambanks and other moist habitats "]
["obedience plant ","Physostegia virginiana ssp. virginiana","Lamiaceae","N","N","N","N","N","N","N","Y",null,null,"N","N","N","N","Y","Y","N","Y","N","N","Y","Y","Y","Y","P","N",2,null,null,null,null,null,null,null,"Found in moist areas near streams or marshes often in or near woods; mostly in the SE 1/3."]
["pale Indian-plantain","Arnoglossum atriplicifolium","Asteraceae","N","N","N","N","N","N","N","Y","Y",null,null,"N","N","N","N","N","N","N","N","N","N","Y","Y","Y","P","NN",2,null,null,null,null,"Y",null,null,"Found in marshes, wet ditches, lake and streamsides."]
["pale purple coneflower ","Echinacea pallida","Asteraceae","N","N","Y","Y","Y","Y","N","N","N","N","N","N","N","N","N","N","N","N","N","N","N","N","Y","Y","P","NN",2,null,"High",null,null,"Y","High"]
["panicled aster","Symphyotrichum lanceolatum","Asteraceae","N","N","N","N","N","N","N","Y","Y","N","Y","Y","Y","Y","Y","Y","Y","Y","Y","Y","Y","Y","Y","Y","P","NN",3,null,null,null,null,"Y","High",null,"Meadows, floodplains, river bottoms and fens."]
["pasque flower","Pulsatilla patens ssp. multifida","Ranunculaceae","N","N","Y","N","N","Y","N","N","N","N","N","Y","Y","Y","N","N","Y","N","N","N","N","Y","N","N","P","NN",1,null,null,null,null,null,null,null,"Prairie and open woodlands, usually in rocky areas.  N 2/3, but not in the sandhills."]
["pink poppy-mallow ","Callirhoe alcaeoides","Malvaceae","N","Y","Y","Y","Y",null,null,"Y",null,null,null,"N","N","N","N","N","N","Y","N","N","Y","N","Y","Y","P","NN",1,"None","Low",null,null,"Y"]
["plains bee-balm ","Monarda pectinata","Lamiaceae","Y","Y","Y","Y",null,null,null,null,"N","N","N","Y","N","Y","Y","Y","Y","N","Y","Y","N","N","N","N","A","NN",2,null,null,null,null,"Y",null,null,"Plants are taprooted annuals."]
["plains coreopsis","Coreopsis tinctoria","Asteraceae","N","Y","N","N","N","N","N","Y","Y","Y",null,"N","Y","N","Y","Y","Y","Y","Y","Y","Y","Y","Y","Y","A / B","NN",2,"None",null,null,null,"Y",null,null,"Not found in Sandhills proper unless planted."]
["plains evening-primrose","Calylophus serrulatus ","Onagraceae","Y","Y","Y","Y","Y","N","N",null,"N","N","N","Y","Y","Y","Y","Y","Y","Y","Y","Y","Y","Y","Y","Y","P","NN",1,"None","High",null,null,null,null,null,"Has been reported from every county in the state."]
["plains false indigo","Baptisia australis","Fabaceae","N","N","N","N","N","Y","N","N","N","N","N","N","N","N","N","N","N","N","N","N","Y","N","Y","N","P","N ",1,null,null,null,null,null,null,null,"Populations in Jefferson County may be native; plant is native just south of Nebraska."]
["plains sunflower","Helianthus petiolaris","Asteraceae","Y","Y","N","N","N","Y","N","N","N","N","N","Y","Y","Y","Y","Y","Y","Y","Y","Y","Y","Y","N","N","A","NN",2,"None","Medium",null,null,"Y","High","wildlife food source, provides structure","Sand dunes, sand bars and sandy roadsides in all but the SE 1/8 part of state."]
["Platte lupine","Lupinus plattensis","Fabaceae","Y","Y","N","N","N","Y","N",null,null,null,null,"Y","Y","Y","N","N","Y","N","N","N","N","N","N","N","P","NN",1,"Primary Toxic","Medium",null,null,null,null,null,"Seeds are the most poisonous part of the plant; the toxic agent is an alkaloid. There have been reported cases of poisoning in children."]
["Platte River milk-vetch","Astragalus plattensis","Fabaceae","N","Y","Y","Y","Y","N",null,null,null,"N","N","Y","Y","Y","Y","Y","Y","Y","Y","Y","Y","N","Y","N","P","NN",1,"None","High"]
["Platte thistle","Cirsium canescens","Asteraceae","N","Y","Y","Y","N","Y",null,null,null,null,null,"Y","Y","Y","Y","Y","Y","N","Y","Y","Y","Y","N","N","B / P","NN",1,"None",null,null,null,"Y",null,null,"Plant is either biennial or short-lived non-colonial perennial. "]
["prairie alumroot","Heuchera richardsonii","Saxifragaceae","N","Y","N","Y","N","N","N","N","N","N","N","N","Y","Y","Y","Y","N","N","N","N","N","Y","Y","Y","P","NN",1,null,null,null,null,null,null,null,"Moist, mesic or dry wooded ravines across the N tier, E-C and Jefferson County on sandy or limy soils with oak or birch trees or ponderosa pine in the panhandle."]
["prairie blue-eyed-grass","Sisyrinchium campestre","Iridaceae","Y","Y","Y","Y",null,"N","N",null,null,"N","N","N","Y","N","Y","Y","N","Y","N","N","Y","Y","Y","Y","P","NN",1,null,null,null,null,null,null,null,"Common in E 1/3 of state on mesic to dry prairies on sand, loam or loess soils."]
["prairie coneflower","Ratibida columnifera","Asteraceae","Y","Y","Y","Y","Y","Y","N","N","N","N","N","Y","Y","Y","Y","Y","Y","Y","Y","Y","Y","Y","Y","Y","P","NN",2,"None","Medium",null,null,"Y",null,"seeds provide food source for birds","Common statewide on a wide variety of soils."]
["prairie dandelion","Nothocalais cuspidata","Asteraceae","Y","Y","Y","Y","Y","Y",null,"N","N","N","N","Y","Y","Y","Y","Y","Y","Y","Y","Y","Y","Y","Y","Y","P","NN",1,null,null,null,null,null,null,null,"Dry sandy, gravelly prairies on lower slopes of sand dunes, and well drained loess and glacial till."]
["prairie flax","Linum lewisii var. lewisii","Linaceae","N","Y","Y","Y",null,null,null,"N","N","N","N","Y","N","Y","N","N","N","N","N","N","N","N","N","N","P","NN",1,"None","High",null,null,null,null,null,"Native to the Northern Panhandle."]
["prairie gentian","Eustoma exaltatum ssp. russellianum","Gentianaceae","N","N","N","N","N","N","N","Y","Y",null,"Y","Y","N","Y","Y","N","Y","N","Y","N","Y","Y","Y","N","A / B / P","NN",2,null,null,null,null,null,null,null,"Found in low, damp sandy and alkaline meadows; common in west and central Platte River Valley."]
["prairie goldenrod","Solidago missouriensis","Asteraceae","Y","Y","Y","Y","Y","Y",null,"Y","N","N","N","Y","Y","Y","Y","Y","Y","Y","Y","Y","Y","Y","Y","Y","P","NN",2,"None","Low",null,null,"Y","High","seeds eaten by birds, provides structure ","Common statewide on dry prairies."]
["prairie Indian-plantain","Arnoglossum plantagineum","Asteraceae","N","N","N","N","N","N","N","Y","Y",null,null,"N","N","N","N","N","N","N","N","N","Y","Y","Y","Y","P","NN",2,null,null,null,null,"Y",null,null,"Sandy soils in W 2/3 of state."]
["prairie larkspur","Delphinium carolinianum ssp. virescens ","Ranunculaceae","Y","Y","Y","Y","Y","Y",null,"Y","N","N","N","Y","Y","Y","Y","Y","Y","Y","Y","Y","Y","Y","Y","Y","P","NN",1,"Primary Toxic","Low",null,null,null,null,null,"Toxic alkaloids are present in this palatable plant.  Death may occur within 1 hour of ingestion."]
["prairie onion","Allium textile","Liliaceae","Y","Y","Y","Y","Y","Y",null,"Y","N","N","N","Y","N","Y","Y","N","Y","N","Y","Y","N","N","N","N","P","NN",1,"Potentially Toxic",null,null,null,null,null,null,"Low moist prairies mostly in E 1/3 of state"]
["prairie phlox ","Phlox pilosa ssp. fulgida","Polemoniaceae","N",null,"Y",null,"Y",null,null,null,null,null,null,"N","N","N","N","N","N","N","N","N","N","Y","Y","Y","P","NN",1,null,null,null,null,"Y",null,null,"Found in virgin prairies of the E 1/6 of the state."]
["prairie ragwort ","Packera plattensis","Asteraceae","N","N","Y","Y","Y","Y",null,"Y","N","N","N","Y","Y","Y","Y","Y","Y","Y","Y","Y","Y","Y","Y","Y","B/P","NN",1,"Occasionally Toxic","Medium",null,null,"Y",null,null,"Found on a wide range of dry soils including sandy soils - but not sand dunes.  Not found in the SW part of state."]
["prairie trefoil","Lotus unifoliolatus","Fabaceae","Y","Y","Y",null,null,null,null,"Y","Y",null,null,"Y","Y","Y","Y","Y","Y","Y","N","N","Y","Y","Y","Y","A","NN",1,"None",null,null,null,"Y",null,null,"Also known as American bird's-foot trefoil."]
["prairie violet","Viola pedatifida","Violaceae","N","Y","Y","Y","Y","N","N","Y","Y","N","N","Y","Y","Y","Y","Y","N","Y","N","N","Y","Y","Y","Y","P","NN",1,"None",null,null,null,null,null,null,"Common in undisturbed prairies and open deciduous woodlands of E 1/2 and pine forests of the Pine Ridge."]
["prairie-parsley","Polytaenia nuttallii","Apiaceae","Y","Y","Y","Y","Y","Y","N","Y","N","N","N","N","N","N","N","N","N","N","N","N","Y","N","Y","Y","P","NN",1,null,null,null,null,"Y",null,null,"Upland and lowland tallgrass prairies and sandy or rocky areas in SE Nebraska."]
["prickly poppy ","Argemone polyanthemos","Papavaraceae","Y","Y",null,"Y","N","Y",null,null,"N","N","N","Y","Y","Y","Y","Y","Y","Y","Y","Y","Y","N","N","Y","B","NN",2,"Potentially Toxic","Low",null,null,"Y",null,null,"Common on deep, loose, dry sands and sand in river valleys."]
["purple coneflower ","Echinacea purpurea","Asteraceae","N","Y","Y","Y","Y","Y",null,"Y",null,null,null,"N","N","N","N","N","N","N","N","N","N","N","Y","Y","P","N",2,null,null,null,null,null,null,null,"Does well in open woodland habitats and semi-shady areas."]
["purple locoweed","Oxytropis lambertii","Fabaceae",null,"Y","Y","Y","Y","Y",null,null,"N","N","N","Y","Y","Y","Y","Y","Y","Y","Y","Y","Y","Y","N","Y","P","NN",1,"Primary Toxic","Low"]
["purple poppy mallow ","Callirhoe involucrata","Malvaceae","N","Y","Y","Y","Y",null,null,"Y",null,"N","N","Y","Y","Y","Y","Y","Y","Y","Y","Y","Y","Y","Y","Y","P","NN",2,"None","Low",null,null,"Y"]
["purple prairie clover","Dalea purpurea","Fabaceae","Y","Y","Y","Y","Y","Y",null,null,"N","N","N","Y","Y","Y","Y","Y","Y","Y","Y","Y","Y","Y","Y","Y","P","NN",2,null,"High",null,null,"Y","High"]
["purplestem beggar-ticks","Bidens connata","Asteraceae","N","N","N","N","N","N","N","N","Y","Y",null,"N","Y","N","N","Y","N","Y","N","N","Y","Y","Y","Y","A","NN",3,"None","Low",null,null,null,null,"seeds important food source for songbirds and waterfowl","Found on wide variety of soils along shores and marshes of the E 1/2 of state."]
["rattlesnake-master","Eryngium yuccifolium","Apiaceae","N","Y","Y",null,null,null,null,"Y",null,null,null,"N","N","N","N","N","N","N","N","N","Y","N","Y","Y","P","NN",2,null,"High",null,null,"Y","High",null,"Found in lowland tallgrass prairies."]
["rattlesnake-root","Prenanthes aspera","Asteraceae","N","N","Y","Y","Y",null,"N",null,"N","N","N","N","N","N","N","Y","N","Y","N","N","Y","Y","Y","Y","P","NN",3,null,null,null,null,null,null,null,"Dry to mesic prairies of the E 1/2 of the state."]
["rayless greenthread","Thelesperma megapotamicum","Asteraceae","Y","Y","Y","Y","N","Y","N","N","N","N","N","Y","N","Y","Y","N","Y","Y","Y","Y","N","N","N","N","P","NN",2,"None","Medium",null,null,"Y",null,null,"Sandy soils of Panhandle, SW, South Central and Western Sandhills."]
["red clover","Trifolium pratense","Fabaceae","N","N","Y",null,null,"N",null,"Y","Y",null,null,"Y","Y","Y","Y","Y","Y","Y","Y","Y","Y","Y","Y","Y","B/P","I",null,"Potentially Toxic","High",null,null,null,null,"creates  brood-rearing cover through structure","Short lived; found where planted in pastures and hay meadows."]
["Rocky Mountain bee-plant ","Cleome serrulata","Capparaceae","Y","Y","Y","Y",null,"Y",null,"Y","N","N","N","Y","Y","Y","Y","Y","Y","Y","Y","Y","N","Y","N","N","A","NN",2,"None",null,null,null,null,"High","seeds provide food source for birds","Plants in the W 1/4 of the state are likely introductions."]
["rosinweed","Silphium integrifolium","Asteraceae","N","Y","Y",null,null,null,null,"Y",null,null,null,"N","N","N","N","N","N","Y","N","N","Y","Y","Y","Y","P","NN",2,null,null,null,null,"Y","High","seeds eaten by birds, provides structure","Mesic prairies in the E 1/2 part of the state."]
["rough agalinis*","Agalinis aspera*","Scrophulariaceae","Y","Y","Y","Y",null,null,null,"N","N","N","N","N","Y","N","Y","Y","N","Y","N","Y","Y","Y","Y","Y","A","NN",3,"None","Low"]
["rough gayfeather","Liatris aspera","Asteraceae","N","N","Y","Y","Y","Y","N",null,null,"N","N","N","Y","N","N","Y","N","Y","N","N","Y","Y","Y","Y","P","NN",3,"None","Low",null,null,"Y","Very High",null,"Common on loess, glacial till, sandy loams in the E 1/2 of state-not in the Sandhills."]
["round head bush-clover","Lespedeza capitata","Fabaceae","Y","Y","Y",null,null,null,"N","Y",null,null,null,"N","Y","N","Y","Y","N","Y","N","Y","Y","Y","Y","Y","P","NN",2,"None","Low",null,null,"Y",null,null,"Found in Eastern 2/3 of state"]
["round-head prairie-clover","Dalea multiflora","Fabaceae","N","N","N","Y","N","Y","N","N","N","N","N","N","N","N","N","N","N","N","N","N","N","N","Y","Y","P","NN",1,null,null,null,null,null,"High",null,"Common on calcareous prairies and rocky hillsides in extreme SE counties."]
["sainfoin ","Onobrychis viciifolia","Fabaceae","N",null,"Y","Y",null,"N","N",null,"N","N","N",null,null,null,null,null,null,null,null,null,null,null,null,null,"P","I",null,"None","High",null,null,null,null,null,"Does not tolerate moist soils, when grown with alfalfa it will not do well.  Is adapted to calcareous soils."]
["salad burnet","Sanguisorba minor","Rosaceae",null,null,null,null,null,null,null,null,null,null,null,null,null,null,null,null,null,null,null,null,null,null,null,null,"P","I",null,"None","High",null,null,null,null,null,"Escaped from cultivation."]
["sand milkweed ","Asclepias arenaria","Apocynaceae","Y","Y","N","N","N","N","N","N","N","N","N","N","Y","N","Y","Y","Y","Y","Y","Y","N","Y","N","N","P","NN",2,null,"None",null,null,"Y",null,null,"Found on most sites in the E 1/2 on all but most alkaline soils.  Rare in Sandhills"]
["sand-lily","Mentzelia nuda","Loasaceae","Y","Y","N","N","N","N","N","N","N","N","N","Y","Y","Y","Y","Y","Y","N","Y","Y","N","Y","N","N","B/P","NN",2,null,null,null,null,"Y",null,null,"Found on sandy plains and sand dunes."]
["sawtooth sunflower","Helianthus grosseserratus","Asteraceae","N","N","Y","N","N","N","N","Y","Y","Y",null,"N","N","N","N","Y","N","Y","N","N","Y","Y","Y","Y","P","NN",3,"None","High",null,null,"Y","High","important wildlife food source, leaves provide cover and shade","Grows in colonies in ditches and low meadows on wide array of soil types."]
["scaly blazing star","Liatris squarrosa","Asteraceae","Y","Y","N","N","N","Y","N","N","N","N","N","Y","Y","Y","Y","Y","Y","Y","Y","Y","N","Y","N","N","P","NN",2,null,null,null,null,"Y",null,null,"All but SE part of state on dry prairies, sandhills and sandy plains."]
["scarlet bee-blossom","Oenothera suffrutescens","Onagraceae","N","Y","Y","Y","Y","Y","N",null,"N","N","N","Y","Y","Y","Y","Y","Y","Y","Y","Y","N","Y","N","Y","P","NN",2,"None",null,null,null,"Y",null,null,"Western 3/4 of the state and the Missouri River counties."]
["scarlet globemallow ","Sphaeralcea coccinea","Malvaceae","Y","Y","Y","Y",null,"Y",null,"Y","N","N","N","Y","Y","Y","Y","Y","Y","Y","Y","Y","N","Y","N","N","P","NN",1,"None","Medium",null,null,"Y",null,"provide food source to birds, small mammals and big game","Found in western 4/5 of the state.  "]
["scorpion-weed","Phacelia hastata","Hydrophyllaceae","N","N","N","Y","N","Y","N","N","N","N","N","Y","N","Y","N","N","Y","N","N","N","N","N","N","N","P","NN",1,"None","Low",null,null,null,null,null,"Found on eroded sandstone and siltstone outcrops, gravelly and rocky sites."]
["Sensitive Briar ","Mimosa nuttallii","Fabaceae","N","Y","Y","Y",null,"Y","N","N","N","N","N","N","Y","N","N","N","N","Y","N","Y","Y","Y","Y","Y","P","NN",2,null,null,null,null,null,null,null,"Can from large patches; stems are scrambling or decumbent."]
["showy milkweed","Asclepias speciosa","Apocynaceae","Y","Y","N","N","N","N","N","N","N","N","N","Y","Y","N","Y","Y","N","Y","Y","Y","N","N","N","N","P","NN",2,"Slightly toxic",null,null,null,"Y","High"]
["showy partridge-pea ","Chamaecrista fasciculata","Fabaceae","N","Y","Y","Y","Y","N","N","Y",null,null,null,"N","N","N","Y","Y","N","Y","N","N","Y","Y","Y","Y","A","NN",2,"Slight",null,null,null,"Y",null,"important wildlife food source","Found in East 1/2 and also found in Chase County.  Has been planted extensively on roadsides across state."]
["showy-wand goldenrod ","Solidago speciosa","Asteraceae","Y","Y","Y","Y","Y",null,"N","N","N","N","N","N","Y","Y","Y","Y","N","N","N","N","Y","Y","Y","Y","P","NN",3,null,null,null,null,"Y","High","seeds eaten by birds, provides structure "]
["silky aster","Symphyotrichum sericeum ","Asteraceae","N","N","Y","Y","Y","Y","N","N","N","N","N","N","N","N","N","N","N","N","N","N","Y","Y","Y","Y","P","NN",3,null,null,null,null,null,null,null,"Dry, non-sandy soils of prairies and woodland openings of SE 1/4 NE; some in NE 1/4."]
["silky prairie-clover","Dalea villosa","Fabaceae","Y","Y","N","N","N","N","N","N","N","N","N","N","Y","Y","Y","Y","Y","Y","Y","Y","Y","Y","Y","N","P","NN",2,null,"Medium",null,null,null,null,null,"Not found in extreme east or in the southwestern panhandle."]
["silvery lupine","Lupinus argenteus","Fabaceae","Y","Y","Y","Y","Y",null,null,null,null,null,null,"Y","N","Y","N","N","Y","N","N","N","N","N","N","N","P","NN",2,"Primary Toxic","Medium",null,null,"Y",null,null,"Seeds are the most poisonous part of the plant; the toxic agent is an alkaloid. There have been reported cases of poisoning in children."]
["skeletonweed","Lygodesmia juncea","Asteraceae","Y","Y","Y","Y","Y","Y","N","N","N","N","N","Y","Y","Y","Y","Y","Y","Y","Y","Y","Y","Y","Y","Y","P","NN",2,null,"Low"]
["sleepy catchfly ","Silene antirrhina","Caryophyllaceae","Y","Y","Y","Y","Y","N",null,"Y",null,null,null,"N","N","Y","Y","Y","N","Y","N","N","Y","Y","Y","Y","A","NN",1,null,null,null,null,null,null,null,"Disturbed areas; more common in the SE 1/4; scattered in the North and West."]
["slender beardtongue","Penstemon gracilis","Scrophulariaceae","Y","Y","Y",null,null,null,"N",null,null,null,"N","Y","Y","Y","Y","Y","N","Y","N","N","Y","Y","Y","N","P","NN",2,"Potentially Toxic",null,null,null,null,null,null,"All Penstemons are selenium accumulators.  Primarily found in Central and Northern NE (also Jefferson and Lancaster Counties)."]
["slender-flowered scurf-pea","Psoralidium tenuiflorum","Fabaceae","Y","Y","Y","Y","Y","Y",null,null,"N","N","N","Y","Y","Y","Y","Y","Y","Y","Y","Y","Y","N","Y","Y","P","NN",1,"None","Low",null,null,null,null,null,"Common in all but the NE 1/4 of the state."]
["slender-leaf mountain-mint","Pycnanthemum tenuifolium","Lamiaceae",null,null,null,null,null,null,null,null,null,null,null,"N","N","N","N","N","N","N","N","N","Y","N","Y","N","P","NN",2,null,null,null,null,"Y","High",null,"Found in the SE most counties, uncommon."]
["small lupine","Lupinus pusillus","Fabaceae","Y","Y","Y","Y","N","Y","N","N","N","N","N","Y","N","Y","N","N","Y","N","Y","Y","N","N","N","N","P","NN",1,"Primary Toxic","Medium",null,null,null,null,null,"Seeds are the most poisonous part of the plant; the toxic agent is an alkaloid. There have been reported cases of poisoning in children."]
["smooth blue aster ","Symphyotrichum laeve ","Asteraceae","N","Y","Y","Y","Y",null,null,"Y",null,null,null,"Y","Y","Y","Y","Y","N","N","N","N","N","Y","Y","Y","P","NN",3,null,null,null,null,"Y","High","deer will browse on this species, creates structure ","Woodlands, forests and prairies along the White, Niobrara and Missouri Rivers."]
["sneezeweed","Helenium autumnale","Asteraceae","N","N","N","N","N","N","N","Y","Y","Y","N","N","N","N","Y","Y","Y","Y","Y","Y","N","Y","Y","Y","P","NN",3,"Highly Toxic","Low",null,null,"Y","High",null,"Sandbars and Sandy riverbanks, floodplain swamps and forests; in sandhills on sedge-peat mounds and depressions. Highly toxic but rarely eaten."]
["snow-on-the-mountain","Euphorbia marginata","Euphorbiaceae","N","Y","Y","Y","Y",null,null,"Y",null,null,null,"Y","Y","Y","Y","Y","Y","Y","Y","Y","Y","Y","Y","Y","A","NN",2,null,null,null,null,null,null,null,"Not found in Sandhills proper except for areas where fill has been brought in (roads, railroads, etc.)"]
["soft goldenrod","Solidago mollis","Asteraceae","Y","Y","Y","Y","Y","Y",null,"Y","N","N","N","Y","Y","Y","Y","Y","Y","Y","Y","Y","Y","Y","N","N","P","NN",3,null,null,null,null,"Y",null,"seeds eaten by birds, provides structure ","Found on dry prairies on heavy to sandy soils but not in the E 1/6 of state."]
["southern blue flag","Iris virginica var. shrevei","Iridaceae","N","N","N","N","N","N","N",null,"Y","Y",null,"N","N","N","N","N","N","N","N","N","N","N","Y","Y","P","NN",2,null,null,null,null,null,null,null,"Marshes, wet ditches and watersides in extreme SE counties."]
["spider milkweed","Asclepias viridis","Apocynaceae","Y","Y","Y",null,null,"Y","N","N","N","N","N","N","N","N","N","N","N","Y","N","N","Y","N","Y","Y","P","NN",1,null,null,null,null,"Y","High"]
["spotted Joe Pye weed ","Eutrochium maculatum","Asteraceae","N","N","N","N","N","N","N","Y","Y",null,null,"N","Y","Y","Y","Y","Y","Y","N","Y","Y","N","N","Y","P","NN",3,null,null,null,null,null,null,null,"Most common in Sandhills marshes and in North Platte River valley."]
["spreading dogbane","Apocynum androsaemifolium","Apocynaceae","Y","Y","Y",null,"Y",null,null,"Y","N","N","N","Y","Y","Y","N","Y","Y","N","N","N","N","N","Y","Y","P","NN",1,"Potentially Toxic","Low",null,null,"Y","High",null,"Common in W 1/2 of state on sand and sandy loam and gravels, not common in the Sandhills."]
["stiff flax","Linum rigidum","Linaceae","Y","Y","Y","Y","Y",null,null,"N","N","N","N","Y","Y","Y","Y","Y","Y","Y","Y","Y","N","Y","N","N","A/P","NN",1,null,null,null,null,null,null,null,"Most of the state; not found in the SE 1/6"]
["stiff goldenrod","Oligoneuron rigidum","Asteraceae","Y","Y","Y","Y","Y","Y",null,"N","N","N","N","Y","Y","Y","Y","Y","Y","Y","N","Y","Y","Y","Y","Y","P","NN",3,null,"Low",null,null,"Y","High",null,"Found on a wide range of soils in all but the SW part of the state."]
["stiff greenthread","Thelesperma filifolium","Asteraceae","Y","Y","N","N","N","Y","N","N","N","N","N","Y","N","Y","Y","N","Y","N","Y","Y","N","N","N","N","A/P","NN",1,null,null,null,null,null,null,null,"Dry sandy or gravelly prairies of Panhandle, Niobrara Valley, SW, and western sandhills."]
["stiff sunflower","Helianthus pauciflorus","Asteraceae","Y","Y","N","Y","N","Y","N","N","N","N","N","N","Y","Y","Y","Y","Y","Y","N","N","Y","Y","Y","Y","P","NN",3,"None","High",null,null,"Y","High","wildlife food source, provides structure","Dry sandy prairies; two subspecies or varieties found in NE."]
["strawberry clover","Trifolium fragiferum","Fabaceae","N","N","N","N","N","N","N","Y","Y","N","Y","N","N","N","N","Y","Y","Y","N","N","N","N","Y","N","P","I",null,null,null,null,null,null,null,null,"Locally abundant in fields, tame pastures, and lawns."]
["strict blue-eyed-grass","Sisyrinchium montanum","Iridaceae","N","N","N","N","N","N","N","Y","Y"," ","Y","Y","Y","Y","Y","Y","Y","Y","Y","N","N","Y","Y","N","P","NN",1,null,null,null,null,"Y",null,null,"Found in wet meadows and moist prairies in the W 2/3 and in Platte River Bottoms in E 1/3."]
["Sullivant's milkweed","Asclepias sullivantii","Apocynaceae","N","Y","N","N","N","N","N","Y",null,null,null,"N","N","N","N","Y","N","Y","N","N","Y","Y","Y","Y","P","NN",2,null,"low",null,null,"Y","High"]
["swamp milkweed ","Asclepias incarnata","Apocynaceae","N","N","N","N","N","N","N","N","Y","Y",null,"Y","Y","Y","Y","Y","Y","Y","Y","Y","Y","Y","Y","Y","P","NN",2,"Moderately toxic","Low",null,null,null,null,null,"Found in E 1/2 of state on range of soils; only in the Eastern Sandhills."]
["sweet black-eyed Susan ","Rudbeckia subtomentosa","Asteraceae","N","N","N","N","N","N","N","Y","Y","N","N","N","N","N","N","N","N","N","N","N","N","N","N","N","P","N",2,null,null,null,null,null,null,null,"Moist meadows and woodlands and gravelly seeps."]
["sweet sand-verbena","Abronia fragrans","Nyctaginaceae","Y","Y","N","N","N","Y","N","N","N","N","N","Y","N","Y","Y","N","Y","N","Y","N","N","N","N","N","P","NN",2,null,null,null,null,null,null,null,"Found in mesic shaded pine bottoms of Pine Ridge"]
["sweetflag","Acorus americanus","Acoraceae","N","N","N","N","N","N","N","N","N","Y","N","N","N","N","Y","N","N","Y","N","N","Y","Y","Y","Y","P","NN",2,"None","Low",null,null,null,null,null,"Found in moist woodlands and woodland edges, occasionally in open (E 1/3 of state)"]
["tall boneset","Eupatorium altissimum","Asteraceae","N","Y","Y","Y","Y",null,null,null,null,null,null,"N","N","N","N","N","N","N","N","N","Y","Y","Y","Y","P","NN",3,null,"High",null,null,"Y","High",null,"Found in eastern 1/3 of state."]
["tall cinquefoil","Potentilla arguta","Rosaceae","N","Y","Y","Y","Y","N","N","Y","N","N","N","Y","Y","Y","Y","Y","N","Y","N","N","Y","Y","Y","Y","P","NN",2,"None","Low",null,null,"Y",null,null,"Eastern 1/3 and Northern tier of the state in prairies and open woodlands."]
["Tall spiderwort ","Tradescantia ohiensis","Commelinaceae","N","Y","Y","Y","Y",null,null,"Y",null,null,null,"N","N","N","N","N","N","N","N","N","Y","Y","Y","Y","P","NN",1,"None","Medium",null,null,"Y",null,null,"Dry to moist sites in the E 1/4 of the state"]
["tall thistle","Cirsium altissimum","Asteraceae","N","Y","Y","Y",null,null,null,"Y",null,"N","N","N","Y","N","N","Y","N","Y","Y","Y","Y","Y","Y","Y","P","NN",3,null,null,null,null,"Y","High","american goldfinches will eat these seeds","Plant is a short lived perennial."]
["tall tickseed ","Coreopsis tripteris","Asteraceae",null,null,null,null,null,null,null,null,null,null,null,null,null,null,null,null,null,null,null,null,null,null,null,null,"P","N",2,null,null,null,null,null,null,null,"Found in sandy tall-grass prairies."]
["tall white penstemon","Penstemon digitalis","Scrophulariaceae","N","N","Y",null,"Y",null,"N",null,null,null,null,"N","N","N","N","N","N","N","N","N","N","Y","Y","Y","P","N",1,"Potentially Toxic","Low",null,null,null,null,null,"All Penstemons are selenium accumulators.  Introduced from the Mississippi River Valey."]
["tansy-aster","Machaeranthera tanacetifolia","Asteraceae","N","Y","Y","Y","N","N","N","Y","Y",null,"Y","Y","N","Y","N","N","Y","N","Y","Y","N","N","N","N","A","NN",2,"None",null,null,null,null,null,null,"Occasional in the SW and Panhandle in dry disturbed prairies alkaline meadows and open ponderosa pine woods."]
["ten-petal stickleaf","Mentzelia decapetala","Loasaceae","N","N","Y","Y","Y","Y","N","N","N","N","N","Y","Y","Y","N","Y","Y","Y","Y","Y","N","N","N","N","B/P","NN",2,"None",null,null,null,null,null,null,"Dry, rocky outcrops (sandstone and limestone), and badlands clay."]
["thickspike gayfeather","Liatris pycnostachya","Asteraceae","N","N","N","N","N","N","N","Y","Y","N","N","N","N","N","N","N","N","N","N","N","Y","N","Y","Y","P","NN",2,null,null,null,null,"Y","High",null,"Found in low, moist prairies of the SE part of the state."]
["thimbleweed","Anemone virginiana","Ranunculaceae","N","N","Y",null,null,"N",null,"Y",null,null,null,"Y","N","N","N","N","N","N","N","N","N","Y","Y","Y","P","NN",2,null,null,null,null,null,null,null,"Found on wooded slopes and in alluvial woods."]
["tube penstemon","Penstemon tubaeflorus","Scrophulariaceae","N","Y","Y",null,null,null,null,null,null,null,null,"N","N","N","N","N","N","N","N","N","N","N","N","Y","P","NN",2,"Potentially Toxic",null,null,null,null,null,null,"All Penstemons are selenium accumulators.  This may or may not be native to Nebraska; if so, it is native to the extreme eastern portion of the state."]
["velvetweed","Oenothera curtiflora","Onagraceae","Y","Y","Y",null,null,null,null,"Y",null,null,null,"Y","Y","Y","Y","Y","Y","Y","Y","Y","Y","Y","Y","Y","A","NN",2,null,null,null,null,null,null,null,"Found in disturbed area.  Plant is very tall with small flowers."]
["Virginia ground-cherry","Physalis virginiana","Solanaceae","N","Y","Y","Y","Y",null,null,"Y","N","N","N","Y","Y","Y","Y","Y","Y","Y","Y","Y","Y","Y","Y","Y","P","NN",2,"Potentially Toxic","Low",null,null,"Y",null,null,"Common on all soil types; not found on dunes."]
["Virginia mountain-mint ","Pycnanthemum virginianum","Lamiaceae","N","N","Y","N","N","N","N","Y",null,null,null,"N","Y","N","Y","Y","N","Y","N","N","Y","Y","Y","Y","P","NN",2,null,null,null,null,"Y",null,null,"Lowland tallgrass prairies, wet meadows, and floodplains in sandy loam soils in N-C, SE and S-C parts of the state."]
["water smartweed","Polygonum punctatum","Polygonaceae","N","N","N","N","N","N","N","N","Y","Y","Y","N","Y","N","Y","Y","N","Y","Y","Y","Y","Y","Y","Y","A/P","NN",2,"None","Low"]
["wavy-leaf thistle","Cirsium undulatum","Asteraceae","Y","Y","Y","Y",null,"Y",null,"Y","N","N","N","Y","Y","Y","Y","Y","Y","Y","Y","Y","Y","N","Y","Y","P","NN",2,"None",null,null,null,"Y","High",null,"Plant is a short lived perennial."]
["western heath aster ","Symphyotrichum falcatum ssp. commutatum","Asteraceae","Y","Y","Y","Y",null,"Y","Y",null,null,null,null,"Y","N","Y","Y","N","Y","Y","Y","Y","N","N","N","N","P","NN",3,null,"Low",null,null,null,null,null,"Mesic to dry prairies mostly in the western half."]
["western ironweed ","Vernonia baldwinii","Asteraceae","N","Y","Y","N","Y","N","N","Y","Y",null,null,"N","N","N","Y","Y","N","Y","Y","Y","Y","Y","Y","Y","P","NN",2,null,null,null,null,"Y","High",null,"Dry to damp prairies in the E 2/3 of the state often abundant in overgrazed pastures."]
["western ragweed","Ambrosia psilostachya","Asteraceae","Y","Y","Y","Y","Y",null,"Y","Y","N","N","N","Y","Y","Y","Y","Y","Y","Y","Y","Y","Y","Y","Y","Y","P","NN",null,"Occasionally Toxic","Low",null,null,null,null,"important food souce, can provide cover and shade"]
["western spiderwort","Tradescantia occidentalis","Commelinaceae","Y","Y","Y","Y","Y","N","N","Y",null,null,null,"Y","Y","Y","Y","Y","Y","Y","Y","Y","Y","Y","N","N","P","NN",1,"None","Medium",null,null,"Y",null,null,"Common state-wide except not in the SE 1/6 part of the state.  "]
["western wallflower ","Erysimum asperum","Brassicaceae","N","Y","Y","Y","Y","Y",null,"Y","N","N","N","Y","Y","Y","Y","Y","Y","Y","Y","Y","N","N","N","N","B  ","NN",1,null,null,null,null,null,null,null,"Found in western 3/4 of state."]
["white beardtongue","Penstemon albidus","Scrophulariaceae","Y","Y","Y","Y","Y","Y","N","N","N","N","N","Y","Y","Y","Y","Y","Y","Y","Y","Y","Y","Y","N","N","P","NN",1,"Potentially Toxic","Medium",null,null,null,null,null,"All Penstemons are selenium accumulators."]
["white clover","Trifolium repens","Fabaceae","N",null,null,null,null,"N",null,null,null,null,null,"Y","Y","Y","Y","Y","Y","Y","Y","Y","Y","Y","Y","Y","P","I",null,"Potentially Toxic","High",null,null,null,null,"creates  brood-rearing cover through structure","Locally common where seeded in hay meadows and tame pasture."]
["white false indigo ","Baptisia alba var. macrophylla","Fabaceae","N","N","Y","Y","Y","Y","N",null,"N","N","N","N","N","N","N","N","N","N","N","N","N","N","Y","Y","P","NN",1]
["white prairie aster","Symphyotrichum falcatum ssp. falcatum ","Asteraceae","Y","Y","Y","Y",null,"Y","Y",null,null,null,null,"Y","N","Y","N","N","Y","N","N","N","N","N","N","N","P","NN",3,null,"Low",null,null,null,null,null,"Found in Western Panhandle."]
["white prairie clover","Dalea candida","Fabaceae","Y","Y","Y","Y","Y","Y",null,"Y",null,null,null,"Y","Y","Y","Y","Y","Y","Y","Y","Y","Y","Y","Y","Y","P","NN",2,null,"High",null,null,"Y","High"]
["white sage ","Artemisia ludoviciana","Asteraceae","Y","Y","Y","Y","Y","Y","Y","Y","N","N","N","Y","Y","Y","Y","Y","Y","Y","Y","Y","Y","Y","Y","Y","P","NN",null,"None","Medium",null,null,null,null,null,"Usually found on lowland prairies, sometimes on sandy soils of E 1/3 of state."]
["white snakeroot","Ageratina altissima","Asteraceae","Y","Y","Y","Y","Y","N","N","Y","Y","N",null,"N","N","N","Y","Y","N","Y","N","N","Y","Y","Y","Y","P","NN",3,"Potentially Toxic",null,null,null,"Y","High",null,"Common cause of hayfever"]
["white vervain","Verbena urticifolia","Verbenaceae","N","N","N","N","N","N","N","Y","Y","Y","N","Y","Y","Y","Y","Y","N","Y","N","Y","Y","Y","Y","Y","P","NN",2,null,null,null,null,null,null,"seeds eaten by song birds","Found on upland and riparian woodlands, woodland edges creek basins and low prairies.  E 2/3 and Northern parts of Nebraska."]
["whorled milkweed ","Asclepias verticillata","Apocynaceae","N","Y","Y","Y",null,"N","N",null,null,null,null,"N","Y","N","Y","Y","Y","Y","N","Y","Y","Y","Y","Y","P","NN",2,"Primary Toxic","Low",null,null,"Y","Very High"]
["wild bergamot","Monarda fistulosa","Lamiaceae",null,"Y","Y","Y","Y",null,null,"Y",null,null,null,"Y","Y","Y","Y","Y","Y","Y","Y","Y","Y","Y","Y","Y","P","NN",2,"None","Medium",null,null,null,"High","provides structure and produces brood rearing habitat"]
["wild four-o'clock ","Mirabilis nyctaginea","Nyctaginaceae","N","Y","Y",null,null,null,null,"Y","Y","Y","Y","Y","Y","Y","Y","Y","Y","Y","N","Y","Y","Y","Y","Y","P","NN",1,"None","Low",null,null,null,null,null,"Found in prairies, open woodlands, creekbanks, floodplain meadows, edges of marshes and cultivated fields."]
["wild licorice","Glycyrrhiza lepidota","Fabaceae","N","Y","N","N","N","N","N","Y","Y",null,null,"Y","N","Y","Y","Y","Y","Y","Y","Y","Y","Y","Y","Y","P","NN",1,"None","Low",null,null,"Y",null,null,"Common on floodplain meadows, moist roadsides, canyons, prairie ravines and lakeshores."]
["wild onion ","Allium canadense","Liliaceae","Y","Y","Y",null,"Y",null,null,"Y","Y","N",null,"N","N","N","Y","N","N","Y","N","N","Y","Y","Y","Y","P","NN",1,"Potentially Toxic",null,null,null,"Y",null,"bulbs and leaves eaten by wild turkeys","Not found in west 1/2 of Panhandle"]
["willowleaf aster ","Symphyotrichum praealtum var. nebraskense","Asteraceae","N","N","N","N","N","N","N","Y","Y",null,null,"N","N","N","Y","Y","N","Y","N","Y","Y","Y","Y","Y","P","NN",3,null,null,null,null,"Y","High",null,"Sandy Lowland Prairies and meadows, fens, lakes and streams."]
["wingstem","Verbesina alternifolia","Asteraceae","N","N","N","N","N","N","N","Y","Y",null,null,"N","N","N","N","N","N","N","N","N","Y","N","Y","Y","P","NN",3,null,null,null,null,"Y","High",null,"Damp woods, shady bottomlands and streamsides in SE 1/6 part of the state."]
["woolly locoweed","Astragalus mollisimus","Fabaceae","Y","Y","Y","Y","Y","Y",null,null,null,null,null,"Y","N","Y","N","N","Y","N","Y","Y","N","N","N","N","P","NN",1,"Primary Toxic","Low",null,null,null,null,null,"Cattle generally do not consume this plant, but there have been instances of poisoning in the State."]
["woolly plantain ","Plantago patagonica","Plantaginaceae","Y","Y","Y",null,"N","Y","N","Y","N","N","N","Y","Y","Y","Y","Y","Y","Y","Y","Y","Y","Y","Y","Y","A","NN",1,"None","Medium",null,null,null,null,null,"Most common on dry, sandy or gravelly soils."]
["yarrow","Achillea millefolium","Asteraceae","Y","Y","Y","Y","Y","Y",null,"Y","N","N","N","Y","Y","Y","Y","Y","Y","Y","Y","Y","Y","Y","Y","Y","P","NN",2,"Potentially Toxic","Low",null,null,"Y",null,"may provide food source for grouse chicks"]

{"sheet":"Guide-Shrubs","index":8,"n_rows":13,"n_cols":37,"rows_kept":13,"cut":false,"hidden":false,"merged":[[0,0,0,2],[0,4,0,13],[0,14,0,26]]}
["SHRUBS",null,null,null,"SOIL TYPES",null,null,null,null,null,null,null,null,null,"MLRA ADAPTABILITY (MLRAS where plant has been found in native situations; adaptability may extend into adjacent MLRAs)",null,null,null,null,null,null,null,null,null,null,null,null,"ORIGIN"]
["Plant","Species - USDA PLANTS","Family","Sands","Sandy","Loams","Calcareous","Clays","Shallow / Gravelly","Alkaline / Saline","Lowland","Subirrigated","Wet Land"," Saline Subirrigated","60A","63B","64","65","66","67A","71","72","73","75","102C","106","107B","N= Native US, NN= Native Nebraska, I=Introduced","Bloom Period","TOXICITY","Livestock Forage Value","Pollinator Value","Monarch Value","Appropriate for Beneficial Insect Plantings","Monarch Value2","Comments Regarding Wildlife ","General Comments"]
["Arkansas rose ","Rosa arkansana","Rosaceae","Y","Y","Y","Y","Y","Y",null,"Y",null,null,null,"Y","Y","Y","Y","Y","Y","Y","Y","Y","Y","Y","Y","Y","NN",1,"None","Low",null,null,"may create shrub-like strucuture important for wildlife cover",null,null,"Wide range of habitats including prairies and open woodlands. "]
["four-wing saltbush ","Atriplex canescens","Chenopodiaceae","N","N","N","Y","Y","N","N","N","N","N","N","Y","N","Y","N","N","Y","N","N","N","N","N","N","N","NN",null,"None","Medium",null,null,null,null,null,"Found in Ogallala National Grasslands, at Courthouse Rock and Scottsbluff National Monument."]
["fringed sage ","Artemisia frigida","Asteraceae","Y","Y","N","N","N","Y",null,"N","N","N","N","Y","Y","Y","Y","Y","Y","N","Y","N","N","Y","N","N","NN",null,"None","High",null,null,"provides nesting source and winter browse forage"]
["leadplant ","Amorpha canescens","Fabaceae","Y","Y","Y","Y","Y","Y",null,"Y","N","N","N",null,"Y","Y","Y","Y","Y","Y","Y","Y","Y","Y","Y","Y","NN",2,"None",null,null,null,"sought after by browse-eating species (large game)",null,null,"Found in woodlands in the East part of state and rarely in Pine Ridge"]
["New Jersey tea ","Ceanothus americanus","Rhamnaceae","N","Y","Y","Y","Y",null,null,null,"N","N","N","N","N","N","N","N","N","N","N","N","N","N","Y","Y","NN",1,"None","Low",null,null,"provides wildlife food sources",null,null,"Uncommon in the Eastern most counties of the State on non-sandy soils."]
["prairie redroot (Jersey tea)","Ceanothus herbaceus","Rhamnaceae","Y","Y","Y","Y","N","N","N","N","N","N","N","N","N","N","Y","Y","N","Y","N","N","Y","Y","Y","Y","NN",1,"None","Low",null,null,null,null,null,"Locally common on sandy soils in the E 1/2 of the State and into western sandhills."]
["rubber rabbit-brush","Ericameria nauseosa","Asteraceae","Y","Y","Y","Y","Y","Y",null,null,"N","N","N","Y","N","Y","N","N","Y","N","N","N","N","N","N","N","NN",2,null,null,null,null,null,null,null,"Found in NW Kansas and could be adapted to MLRA 72."]
["small soapweed","Yucca glauca","Agavaceae","Y","Y","Y","Y","Y","Y","Y","Y","N","N","N","Y","Y","Y","Y","Y","Y","Y","Y","Y","N","N","N","N","NN",null,"None","Low",null,null,null,null,null,"Buds, Flowers and green pods are palatable to livestock."]
["western wild rose ","Rosa woodsii","Rosaceae","Y","Y","Y","Y","Y","Y",null,"Y",null,null,null,"Y","Y","Y","Y","Y","Y","Y","Y","Y","Y","N","N","N","NN",1,"None","Medium",null,null,"may create shrub-like strucuture important for wildlife cover",null,null,"Western 4/5 of the state. "]
["wild-indigo","Amorpha fruticosa","Fabaceae","N","N","N","N","N","N","N","Y","Y",null,null,"Y","Y","Y","Y","Y","N","Y","Y","Y","Y","Y","Y","Y","NN",1,"Slight","Low"]
["winterfat","Krascheninnikovia lanata","Chenopodiaceae","Y","Y","Y","Y",null,"Y","N",null,"N","N","N","Y","N","Y","N","N","Y","N","Y","N","N","N","N","N","NN",null,"None","High"]

{"sheet":"DATA_TABLE","index":9,"n_rows":331,"n_cols":9,"rows_kept":331,"cut":false,"hidden":false,"merged":[[0,1,0,8],[65,0,65,8],[322,0,322,2]]}
[null,"GRASSES"]
["Family","Species - USDA PLANTS","Common name  - Flora Of Nebraska","Seeds / ft2 @ 1 LB.","seeds/lb","Est. Cost per PLS pound","Bloom Period","COC","Species - USDA PLANTS2"]
["Poaceae","Sporobolus airoides","Alkali Sacaton ",{"$f":"E3/43560","v":40.174471992653814},1750000,null,null,5,"Sporobolus airoides"]
["Cyperaceae","Carex bicknellii","Bicknell's Sedge",{"$f":"E4/43560","v":6.2442607897153355},272000,null,null,6,"Carex bicknellii"]
["Poaceae","Andropogon gerardii","Big Bluestem ",{"$f":"E5/43560","v":3.3112947658402203},144240,null,null,5,"Andropogon gerardii"]
["Poaceae","Redfieldia flexuosa","Blowout Grass",null,null,null,null,6,"Redfieldia flexuosa"]
["Poaceae","Bouteloua gracilis","Blue Grama ",{"$f":"E7/43560","v":16.629935720844813},724400,null,null,4,"Bouteloua gracilis"]
["Poaceae","Pseudoroegneria spicata","bluebunch Wheatgrass ",2.8852157943067036,125680,null,null,7,"Pseudoroegneria spicata"]
["Poaceae","Calamagrostis canadensis","Bluejoint Reedgrass ",88.096235078053255,3837472,null,null,6,"Calamagrostis canadensis"]
["Cyperaceae","Carex hystericina","Bottle-brush Sedge",11.019283746556473,480000,null,null,5,"Carex hystericina"]
["Poaceae","Buchloë dactyloides / Bouteloua dactyloides","Buffalograss",1.1478420569329659,50000,null,null,2,"Buchloë dactyloides / Bouteloua dactyloides"]
["Poaceae","Elymus canadensis","Canada Wildrye",2.6170798898071626,114000,null,null,5,"Elymus canadensis"]
["Poaceae","Alopecurus arundinaceus","Creeping Foxtail ",17.99963269054178,784064,null,null,null,"Alopecurus arundinaceus"]
["Poaceae","Agropyron cristatum","Crested Wheatgrass ",7.1441689623507809,311200,null,null,null,"Agropyron cristatum"]
["Poaceae","Tripsacum dactyloides","Eastern Gamagrass ",0.16528925619834711,7200,null,null,7,"Tripsacum dactyloides"]
["Cyperaceae","Carex vulpinoidea","Fox sedge",29.775022956841138,1297000,null,null,4,"Carex vulpinoidea"]
["Poaceae","Hordeum jubatum","Foxtail Barley",4.4077134986225897,192000,null,null,1,"Hordeum jubatum"]
["Poaceae","Nassella viridula","Green Needlegrass",3.8530762167125805,167840,null,null,4,"Nassella viridula"]
["Poaceae","Bouteloua hirsuta","Hairy Grama",18.365472910927455,800000,null,null,6,"Bouteloua hirsuta"]
["Cyperaceae","Carex gravida","Heavy Sedge",4.4077134986225897,192000,null,null,4,"Carex gravida"]
["Poaceae","Achnatherum hymenoides","Indian Ricegrass",3.7171717171717171,161920,null,null,4,"Achnatherum hymenoides"]
["Poaceae","Sorghastrum nutans","Indiangrass",4.0110192837465561,174720,null,null,5,"Sorghastrum nutans"]
["Juncaceae","Juncus interior","Inland Rush",1028.4664830119375,44800000,null,null,4,"Juncus interior"]
["Poaceae","Thinopyrum intermedium","Intermediate Wheatgrass",1.8383838383838385,80080,null,null,null,"Thinopyrum intermedium"]
["Poaceae","Schizachyrium scoparium","Little Bluestem",5.5250229568411386,240670,null,null,4,"Schizachyrium scoparium"]
["Poaceae","Bromus biebersteinii","Meadow Brome",1.9943755739210285,86875,null,null,null,"Bromus biebersteinii"]
["Poaceae","Hesperostipa comata","Needle and Thread",2.6400367309458219,115000,null,null,6,"Hesperostipa comata"]
["Poaceae","Elymus hoffmannii Newhy","Newhy Wheatgrass",3.076216712580349,134000,null,null,null,"Elymus hoffmannii Newhy"]
["Poaceae","Avena sativa","Oats",0.44536271808999084,19400,null,null,null,"Avena sativa"]
["Poaceae","Dactylis glomerata","Orchardgrass",9.8071625344352622,427200,null,null,null,"Dactylis glomerata"]
["Poaceae","Lolium perenne","Perennial Ryegrass",5.5188246097337004,240400,null,null,null,"Lolium perenne"]
["Poaceae","Hesperostipa spartea","Porcupine Grass",3.443526170798898,150000,null,null,6,"Hesperostipa spartea"]
["Poaceae","Spartina pectinata","Prairie Cordgrass",14.666276400367309,638863,null,null,5,"Spartina pectinata"]
["Poaceae","Sporobolus heterolepis","Prairie Dropseed",27.548209366391184,1200000,null,null,7,"Sporobolus heterolepis"]
["Poaceae","Koeleria macrantha","Prairie Junegrass",53.145087235996328,2315000,null,null,6,"Koeleria macrantha"]
["Poaceae","Calamovilfa longifolia","Prairie Sandreed",6.2901744719926542,274000,null,null,5,"Calamovilfa longifolia"]
["Poaceae","Thinopyrum ponticum var. barbulatum","Pubescent Wheatgrass",2.2956841138659319,100000,null,null,null,"Thinopyrum ponticum var. barbulatum"]
["Poaceae","Eragrostis spectabilis","Purple Lovegrass",24.313590449954088,1059100,null,null,3,"Eragrostis spectabilis"]
["Poaceae","Tridens flavus","Redtop (purple top)",{"$f":"E39/43560","v":10.674931129476583},465000,null,null,2,"Tridens flavus"]
["Poaceae","Agrostis gigantea","Redtop Bent",111.34067952249771,4850000,null,null,null,"Agrostis gigantea"]
["Poaceae","Sporobolus compositus","rough dropseed (tall dropseed)",17.432552800734619,759362,null,null,3,"Sporobolus compositus"]
["Poaceae","Psathyrostachys juncea","Russian Wildrye",3.7327823691460056,162600,null,null,null,"Psathyrostachys juncea"]
["Poaceae","Distichlis spicata","Saltgrass",11.914600550964188,519000,null,null,3,"Distichlis spicata"]
["Poaceae","Andropogon hallii","Sand Bluestem",2.2185491276400366,96640,null,null,5,"Andropogon hallii"]
["Poaceae","Andropogon hallii- Champ Variety","Sand Bluestem (Champ)",3.7878787878787881,165000,null,null,null,"Andropogon hallii- Champ Variety"]
["Poaceae","Sporobolus cryptandrus","Sand Dropseed",128.56014692378329,5600080,null,null,2,"Sporobolus cryptandrus"]
["Poaceae","Eragrostis trichodes","Sand Lovegrass",37.320477502295681,1625680,null,null,5,"Eragrostis trichodes"]
["Cyperaceae","Cyperus schweinitzii","Schweinitz's Flatsedge",8.4481175390266294,368000,null,null,4,"Cyperus schweinitzii"]
["Poaceae","Dichanthelium oligosanthes var. scribnerianum","Scribner Rosettegrass",3.3057851239669422,144000,null,null,4,"Dichanthelium oligosanthes var. scribnerianum"]
["Cyperaceae","Carex brevior","Shortbeak Sedge",10.651974288337925,464000,null,null,4,"Carex brevior"]
["Poaceae","Bouteloua curtipendula","Sideoats Grama",3.6547291092745637,159200,null,null,5,"Bouteloua curtipendula"]
["Poaceae","Vulpia octoflora","Sixweeks Fescue",22.153351698806244,965000,null,null,3,"Vulpia octoflora"]
["Poaceae","Elymus trachycaulus","Slender Wheatgrass",3.0991735537190084,135000,null,null,5,"Elymus trachycaulus"]
["Poaceae","Bromus inermis","Smooth Brome",3.2800734618916438,142880,null,null,null,"Bromus inermis"]
["Poaceae","Panicum virgatum","Switchgrass",5.9458218549127642,259000,null,null,4,"Panicum virgatum"]
["Poaceae","Schedonorus arundinaceus","Tall Fescue",5.2112029384756662,227000,null,null,null,"Schedonorus arundinaceus"]
["Poaceae","Thinopyrum ponticum","Tall Wheatgrass",1.7291092745638199,75320,null,null,null,"Thinopyrum ponticum"]
["Poaceae","Elymus lanceolatus","Thickspike Wheatgrass",3.5123966942148761,153000,null,null,5,"Elymus lanceolatus"]
["Poaceae","Phleum pratense","Timothy",26.703397612488523,1163200,null,null,null,"Phleum pratense"]
["Poaceae","Elymus virginicus","Virginia Wildrye",2.2956841138659319,100000,null,null,4,"Elymus virginicus"]
["Poaceae","Sphenopholis obtusata","Wedge Grass (prairie wedgescale)",4.5913682277318637,200000,null,null,5,"Sphenopholis obtusata"]
["Poaceae","Pascopyrum smithii","Western Wheatgrass ",2.6134067952249769,113840,null,null,3,"Pascopyrum smithii"]
["Poaceae","Paspalum setaceum","Yellow Sand Paspalum",16.191551882460974,705304,null,null,2,"Paspalum setaceum"]
["Cyperaceae","Carex annectens","Yellowfruit Sedge",33.057851239669418,1440000,null,null,7,"Carex annectens"]
[]
["FORBS and SHRUBS"]
["Family","Species - USDA PLANTS","Common name  - Flora Of Nebraska","Seeds / ft2 @ 1 LB.","seeds/lb","Est. Cost per PLS pound","Bloom Period","COC","Scientific Name"]
["Fabaceae","Medicago sativa","Alfalfa",{"$f":"E68/43560","v":5.2066115702479339},226800,null,1,0,"Medicago sativa"]
["Scrophulariaceae","Mimulus ringens","Allegheny Monkey Flower",844.81175390266299,36800000,null,2,6,"Mimulus ringens"]
["Fabaceae","Trifolium hybridum","Alsike Clover ",15.619834710743802,680400,null,2,0,"Trifolium hybridum"]
["Lamiaceae","Teucrium canadense","American Germander ",7.3461891643709825,320000,null,2,4,"Teucrium canadense"]
["Fabaceae","Senna hebecarpa","American Senna",0.52066115702479343,22680,null,2,null,"Senna hebecarpa"]
["Fabaceae","Vicia americana","American Vetch ",0.75374196510560143,32833,null,1,6,"Vicia americana"]
["Rosaceae","Rosa arkansana","Arkansas Rose ",0.91827364554637281,40000,null,1,4,"Rosa arkansana"]
["Asteraceae","Symphyotrichum oblongifolium ","Aromatic Aster",18.732782369146005,816000,null,3,5,"Symphyotrichum oblongifolium "]
["Asteraceae","Symphyotrichum cordifolium","Arrow-leaf Aster",45.913682277318642,2000000,null,3,5,"Symphyotrichum cordifolium"]
["Asteraceae","Symphyotrichum oolentangiense ","Azure Aster",29.38475665748393,1280000,null,3,7,"Symphyotrichum oolentangiense "]
["Fabaceae","Lotus corniculatus","Bird's-foot Trefoil",8.4903581267217625,369840,null,1,null,"Lotus corniculatus"]
["Asteraceae","Rudbeckia hirta","Black Eyed Susan ",36.174471992653814,1575760,null,2,4,"Rudbeckia hirta"]
["Asteraceae","Gaillardia aristata","Blanket Flower",4.2799816345270889,186436,null,1,null,"Gaillardia aristata"]
["Linaceae","Linum perenne","Blue Flax",6.7263544536271809,293000,null,1,null,"Linum perenne"]
["Campanulaceae","Lobelia siphilitica","Blue Lobelia ",183.65472910927457,8000000,null,3,6,"Lobelia siphilitica"]
["Lamiaceae","Salvia azurea var. grandiflora","Blue Sage",6.887052341597796,300000,null,2,6,"Salvia azurea var. grandiflora"]
["Verbenaceae","Verbena hastata","Blue Vervain",34.159779614325068,1488000,null,2,4,"Verbena hastata"]
["Asteraceae","Eupatorium perfoliatum","Boneset",58.76951331496786,2560000,null,3,5,"Eupatorium perfoliatum"]
["Commelinaceae","Tradescantia bracteata","Bracted Spiderwort",3.6730945821854912,160000,null,1,5,"Tradescantia bracteata"]
["Asteraceae","Rudbeckia triloba","Brown-eyed Susan ",12.488521579430671,544000,null,2,null,"Rudbeckia triloba"]
["Convulvulaceae","Ipomoea leptophylla","Bush Morning-glory",9.1827364554637275E-2,4000,null,2,5,"Ipomoea leptophylla"]
["Onagraceae","Ludwigia alternifolia","Bushy Seedbox",477.50229568411385,20800000,null,3,7,"Ludwigia alternifolia"]
["Apocynaceae","Asclepias tuberosa","Butterfly Milkweed",1.6069788797061524,70000,null,2,6,"Asclepias tuberosa"]
["Acoraceae","Acorus calamus","Calamus",11.442929292929293,498454,null,2,null,"Acorus calamus"]
["Asteraceae","Solidago canadensis","Canada Goldenrod ",105.60146923783287,4600000,null,3,2,"Solidago canadensis"]
["Fabaceae","Astragalus canadensis","Canada Milkvetch ",6.2098255280073458,270500,null,2,5,"Astragalus canadensis"]
["Fabaceae","Desmodium canadense","Canada Tick-clover",1.6643709825528008,72500,null,2,5,"Desmodium canadense"]
["Ranunculaceae","Anemone cylindrica","Candle Anemone ",9.5500459136822773,416000,null,2,4,"Anemone cylindrica"]
["Campanulaceae","Lobelia cardinalis","Cardinal Flower",259.24605142332416,11292758,null,3,6,"Lobelia cardinalis"]
["Ranunculaceae","Anemone caroliniana","Carolina Anemone",0,null,null,1,7,"Anemone caroliniana"]
["Lamiaceae","Agastache nepetoides","Catnip Giant-hyssop",33.976124885215796,1480000,null,2,5,"Agastache nepetoides"]
["Fabaceae","Astragalus cicer","Chickpea Milkvetch ",2.8135904499540865,122560,null,2,0,"Astragalus cicer"]
["Fabaceae",null,"Cicer Milkvetch",2.8135904499540865,122560,null,3,0,"Astragalus cicer"]
["Solanaceae","Physalis heterophylla","Clammy Ground Cherry",null,null,null,2,4,"Physalis heterophylla"]
["Asteraceae","Dracopis amplexicaulis","Clasping Coneflower",{"$f":"E102/43560","v":36.73094582185491},1600000,null,2,null,"Dracopis amplexicaulis"]
["Scrophulariaceae","Penstemon cobaea","Cobaea Penstemon",4.4077134986225897,192000,null,1,6,"Penstemon cobaea"]
["Scrophulariaceae","Agalinis tenuifolia","Common Agalinis",293.84756657483928,12800000,null,3,5,"Agalinis tenuifolia"]
["Onagraceae","Oenothera biennis","Common Evening Primrose",31.588613406795226,1376000,null,2,1,"Oenothera biennis"]
["Apiaceae","Zizia aurea","Common Golden Alexander",4.0404040404040407,176000,null,1,6,"Zizia aurea"]
["Apocynaceae","Asclepias syriaca","Common Milkweed ",1.4692378328741964,64000,null,2,1,"Asclepias syriaca"]
["Asteraceae","Ambrosia artemisiifolia","Common Ragweed",1.2626262626262625,55000,null,2,0,"Ambrosia artemisiifolia"]
["Asteraceae","Helianthus annuus","Common Sunflower",1.0771120293847567,46919,null,3,0,"Helianthus annuus"]
["Asteraceae","Silphium laciniatum","Compass Plant",0.42240587695133147,18400,null,2,5,"Silphium laciniatum"]
["Fabaceae","Trifolium incarnatum","Crimson Clover",17.814508723599634,776000,null,1,0,"Trifolium incarnatum"]
["Scrophulariaceae","Veronicastrum virginicum","Culver's Root",293.84756657483928,12800000,null,2,9,"Veronicastrum virginicum"]
["Asteraceae","Silphium perfoliatum","Cup-plant ",0.51423324150596883,22400,null,2,4,"Silphium perfoliatum"]
["Asteraceae","Grindelia squarrosa","Curlycup Gumweed",9.1827364554637274,400000,null,2,1,"Grindelia squarrosa"]
["Asteraceae","Rudbeckia laciniata","Cutleaf Coneflower",5.7902203856749308,252222,null,2,4,"Rudbeckia laciniata"]
["Asteraceae","Machaeranthera pinnatifida","Cutleaf Ironplant ",28.140495867768596,1225800,null,2,4,"Machaeranthera pinnatifida"]
["Asteraceae","Erigeron strigosus","Daisy Fleabane",5.7392102846648303,250000,null,1,2,"Erigeron strigosus"]
["Verbenaceae","Glandularia bipinnatifida","Dakota Mock Vervain",10.330578512396695,450000,null,1,4,"Glandularia bipinnatifida"]
["Asteraceae","Bidens frondosa","Devil's Beggar-ticks",4.4834710743801649,195300,null,3,1,"Bidens frondosa"]
["Asteraceae","Liatris punctata","Dotted Gayfeather",1.4462809917355373,63000,null,2,5,"Liatris punctata"]
["Violaceae","Viola sororia","Downy Blue Violet",8.4481175390266294,368000,null,1,3,"Viola sororia"]
["Gentianaceae","Gentiana puberulenta","Downy Gentian",159.77961432506888,6960000,null,3,7,"Gentiana puberulenta"]
["Asteraceae","Solidago petiolaris","Downy Goldenrod",0,null,null,3,6,"Solidago petiolaris"]
["Scrophulariaceae","Castilleja sessiliflora","Dwarf Indian Paintbrush",35.353535353535356,1540000,null,1,6,"Castilleja sessiliflora"]
["Asteraceae","Brickellia eupatorioides var. corymbulosa","False Boneset",11.753902662993571,512000,null,2,4,"Brickellia eupatorioides var. corymbulosa"]
["Asteraceae","Heliopsis helianthoides","False Sunflower",2.8864784205693295,125735,null,2,4,"Heliopsis helianthoides"]
["Lamiaceae","Mentha arvensis","Field Mint",110.19283746556474,4800000,null,2,4,"Mentha arvensis"]
["Asteraceae","Antennaria neglecta","Field Pussytoes",151.5151515151515,6600000,null,1,3,"Antennaria neglecta"]
["Amaranthaceae","Froelichia floridana","Field Snakecotton",2.6446280991735538,115200,null,2,4,"Froelichia floridana"]
["Asteraceae","Coreopsis palmata","Finger Coreopsis",3.6730945821854912,160000,null,2,8,"Coreopsis palmata"]
["Asteraceae","Euthamia graminifolia","Flat-top Goldentop",128.55831037649219,5600000,null,3,null,"Euthamia graminifolia"]
["Asteraceae","Cirsium flodmanii","Flodman's Thistle",null,null,null,2,4,"Cirsium flodmanii"]
["Euphorbiaceae","Euphorbia corollata","Flowering Spurge",{"$f":"E133/43560","v":2.9384756657483928},128000,null,2,3,"Euphorbia corollata"]
["Onagraceae","Oenothera rhombipetala","Fourpoint Evening Primrose ",36.73094582185491,1600000,null,2,2,"Oenothera rhombipetala"]
["Chenopodiaceae","Atriplex canescens","Fourwing Saltbush",1.014761248852158,44203,null,2,5,"Atriplex canescens"]
["Asteraceae","Pseudognaphalium obtusifolium","Fragrant Cudweed",183.65472910927457,8000000,null,3,3,"Pseudognaphalium obtusifolium"]
["Boraginaceae","Lithospermum incisum","Fringed Pucoon",0.55096418732782371,24000,null,1,5,"Lithospermum incisum"]
["Asteraceae","Artemisia frigida","Fringed Sage",104.13223140495867,4536000,null,3,6,"Artemisia frigida"]
["Acanthaceae","Ruellia humilis","Fringeleaf Wild Petunia",3.443526170798898,150000,null,2,4,"Ruellia humilis"]
["Asteraceae","Tragopogon dubius","Goat's-beard",0.64279155188246095,28000,null,1,null,"Tragopogon dubius"]
["Asteraceae","Heterotheca villosa","Goldenaster",7.7249770431588614,336500,null,2,4,"Heterotheca villosa"]
["Asteraceae","Euthamia gymnospermoides","Goldentop",139.57759412304867,6080000,null,3,4,"Euthamia gymnospermoides"]
["Asteraceae","Solidago nemoralis","Gray Goldenrod",23.140495867768596,1008000,null,3,4,"Solidago nemoralis"]
["Asteraceae","Ratibida pinnata","Grayhead Prairie Coneflower ",9.8140495867768589,427500,null,2,4,"Ratibida pinnata"]
["Apocynaceae","Asclepias viridiflora","Green Milkweed",1.3223140495867769,57600,null,1,6,"Asclepias viridiflora"]
["Linaceae","Linum sulcatum","Grooved Flax",15.426997245179063,672000,null,2,6,"Linum sulcatum"]
["Fabaceae","Astragalus crassicarpus","Groundplum",1.9100091827364554,83200,null,1,7,"Astragalus crassicarpus"]
["Asteraceae","Symphyotrichum pilosum","Hairy Aster",51.423324150596876,2240000,null,3,0,"Symphyotrichum pilosum"]
["Nyctaginaceae","Mirabilis hirsuta","Hairy Four-o'clock ",2.42653810835629,105700,null,2,5,"Mirabilis hirsuta"]
["Asteraceae","Hieracium longipilum","Hairy Hawkweed",25.711662075298438,1120000,null,2,6,"Hieracium longipilum"]
["Asteraceae","Helianthus mollis","Hairy Sunflower",2.5711662075298438,112000,null,3,null,"Helianthus mollis"]
["Fabaceae","Dalea leporina","Hare's-foot Dalea",3.443526170798898,150000,null,2,3,"Dalea leporina"]
["Asteraceae","Symphyotrichum ericoides ","Heath Aster",73.461891643709819,3200000,null,3,3,"Symphyotrichum ericoides "]
["Apocynaceae","Apocynum cannabinum","Hemp Dogbane",11.478420569329661,500000,null,2,2,"Apocynum cannabinum"]
["Boraginaceae","Lithospermum canescens","Hoary Pucoon",3.6966023875114784,161024,null,1,5,"Lithospermum canescens"]
["Fabaceae","Desmodium canescens","Hoary Tick-clover",null,null,null,2,5,"Desmodium canescens"]
["Verbenaceae","Verbena stricta","Hoary Vervain",{"$f":"E157/43560","v":10.284664830119375},448000,null,2,2,"Verbena stricta"]
["Lamiaceae","Monarda punctata","Horse Mint",33.057851239669418,1440000,null,2,null,"Monarda punctata"]
["Fabaceae","Desmanthus illinoensis","Illinois Bundleflower ",1.9513314967860422,85000,null,2,5,"Desmanthus illinoensis"]
["Fabaceae","Desmodium illinoense","Illinois Tick-clover",2.0202020202020203,88000,null,2,6,"Desmodium illinoense"]
["Asteraceae","Gaillardia pulchella","Indian Blanket Flower",5.4670339761248856,238144,null,2,5,"Gaillardia pulchella"]
["Fabaceae","Pediomelum esculentum","Indian Breadroot",0.40404040404040403,17600,null,1,7,"Pediomelum esculentum"]
["Asteraceae","Vernonia fasciculata","Ironweed",8.8154269972451793,384000,null,2,4,"Vernonia fasciculata"]
["Asteraceae","Helianthus tuberosus","Jerusalem Artichoke ",1.7370523415977961,75666,null,3,4,"Helianthus tuberosus"]
["Hydrophyllaceae","Phacelia tanacetifolia","Lacy Phacelia",5.6231404958677684,244944,null,1,null,"Phacelia tanacetifolia"]
["Asteraceae","Liatris lancifolia","Lanceleaf Gayfeather",6.7687786960514229,294848,null,3,8,"Liatris lancifolia"]
["Asteraceae","Coreopsis lanceolata","Lanceleaf Tickseed",5.07346189164371,221000,null,2,null,"Coreopsis lanceolata"]
["Scrophulariaceae","Penstemon grandiflorus","Large Beardtongue",5.1423324150596876,224000,null,1,5,"Penstemon grandiflorus"]
["Onagraceae","Oenothera filiformis","large-flowered gaura",0.7346189164370982,32000,null,3,3,"Oenothera filiformis"]
["Asteraceae","Solidago gigantea","Late Goldenrod",16.069788797061523,700000,null,3,3,"Solidago gigantea"]
["Lamiaceae","Agastache foeniculum","Lavender Giant-hyssop",33.057851239669418,1440000,null,3,9,"Agastache foeniculum"]
["Fabaceae","Amorpha canescens","Leadplant",4.4842286501377409,195333,null,2,6,"Amorpha canescens"]
["Lamiaceae","Monarda citriodora","Lemon Beebalm",18.824609733700644,820000,null,2,null,"Monarda citriodora"]
["Fabaceae","Baptisia bracteata var. leucophaea","Long Bract Wild Indigo ",0.51423324150596883,22400,null,1,5,"Baptisia bracteata var. leucophaea"]
["Boraginaceae","Onosmodium bejariense","Marbleseed",0.55096418732782371,24000,null,2,4,"Onosmodium bejariense"]
["Asteraceae","Helianthus maximiliani","Maximilian's Sunflower ",4.5078053259871442,196360,null,3,4,"Helianthus maximiliani"]
["Ranunculaceae","Anemone canadensis","Meadow Anemone",2.9384756657483928,128000,null,1,4,"Anemone canadensis"]
["Asteraceae","Ratibida columnifera","Mexican Hat (variety of Prairie Coneflower)",16.921579430670342,737104,null,2,4,"Ratibida columnifera"]
["Onagraceae","Oenothera macrocarpa ssp. macrocarpa","Missouri Evening Primrose ",1.7263544536271809,75200,null,1,7,"Oenothera macrocarpa ssp. macrocarpa"]
["Scrophulariaceae","Penstemon angustifolius","Narrowleaf Beardtongue",7.1854912764003673,313000,null,1,6,"Penstemon angustifolius"]
["Apocynaceae","Asclepias stenophylla","Narrowleaf Milkweed",1.8365472910927456,80000,null,2,6,"Asclepias stenophylla"]
["Asteraceae","Echinacea angustifolia","Narrowleaf Purple Coneflower",2.9384756657483928,128000,null,2,5,"Echinacea angustifolia"]
["Asteraceae","Symphyotrichum novae-angliae","New England Aster ",25.252525252525253,1100000,null,3,4,"Symphyotrichum novae-angliae"]
["Rhamnaceae","Ceanothus americanus","New Jersey Tea ",2.5711662075298438,112000,null,1,6,"Ceanothus americanus"]
["Fabaceae","Dalea enneandra","Nineanther Dalea",null,null,null,2,7,"Dalea enneandra"]
["Liliaceae","Allium cernuum","Nodding Onion",{"$f":"E186/43560","v":2.7915518824609733},121600,null,2,8,"Allium cernuum"]
["Lamiaceae","Physostegia virginiana ssp. virginiana","Obedience Plant ",{"$f":"E187/43560","v":4.0404040404040407},176000,null,2,7,"Physostegia virginiana ssp. virginiana"]
["Asteraceae","Arnoglossum atriplicifolium","Pale Indian-plantain",{"$f":"E188/43560","v":2.2038567493112948},96000,null,2,6,"Arnoglossum atriplicifolium"]
["Asteraceae","Echinacea pallida","Pale Purple Coneflower",{"$f":"E189/43560","v":2.4334251606978881},106000,null,2,7,"Echinacea pallida"]
["Asteraceae","Symphyotrichum lanceolatum","Panicled Aster",null,2496000,null,3,2,"Symphyotrichum lanceolatum"]
["Ranunculaceae","Pulsatilla patens ssp. multifida","Pasque Flower",{"$f":"E191/43560","v":6.6115702479338845},288000,null,1,6,"Pulsatilla patens ssp. multifida"]
["Malvaceae","Callirhoe alcaeoides","Pink Poppy Mallow",2.0540863177226814,89476,null,1,5,"Callirhoe alcaeoides"]
["Lamiaceae","Monarda pectinata","Plains Beebalm",29.843893480257115,1300000,null,2,4,"Monarda pectinata"]
["Asteraceae","Coreopsis tinctoria","Plains Coreopsis",73.972038567493115,3222222,null,2,1,"Coreopsis tinctoria"]
["Onagraceae","Calylophus serrulatus ","Plains Evening Primrose",9.1827364554637274,400000,null,1,5,"Calylophus serrulatus "]
["Fabaceae","Baptisia australis","Plains False Indigo",0.55096418732782371,24000,null,1,null,"Baptisia australis"]
["Asteraceae","Helianthus petiolaris","Plains Sunflower",2.7548209366391183,120000,null,2,1,"Helianthus petiolaris"]
["Fabaceae","Lupinus plattensis","Platte Lupine",0.50505050505050508,22000,null,1,4,"Lupinus plattensis"]
["Fabaceae","Astragalus plattensis","Platte River Milkvetch",0,null,null,1,7,"Astragalus plattensis"]
["Asteraceae","Cirsium canescens","Platte Thistle",null,null,null,1,4,"Cirsium canescens"]
["Saxifragaceae","Heuchera richardsonii","Prairie Alumroot",{"$f":"E201/43560","v":257.11662075298437},11200000,null,1,7,"Heuchera richardsonii"]
["Iridaceae","Sisyrinchium campestre","Prairie Blue-eyed Grass",16.528925619834709,720000,null,1,5,"Sisyrinchium campestre"]
["Asteraceae","Ratibida columnifera","Prairie Coneflower",16.921579430670342,737104,null,2,4,"Ratibida columnifera"]
["Asteraceae","Nothocalais cuspidata","Prairie Dandelion",2.9384756657483928,128000,null,1,6,"Nothocalais cuspidata"]
["Linaceae","Linum lewisii var. lewisii","Prairie Flax",6.7687786960514229,294848,null,1,7,"Linum lewisii var. lewisii"]
["Gentianaceae","Eustoma exaltatum ssp. russellianum","Prairie Gentian",51.423324150596876,2240000,null,2,4,"Eustoma exaltatum ssp. russellianum"]
["Asteraceae","Solidago missouriensis","Prairie Goldenrod",45.873232323232322,1998238,null,2,5,"Solidago missouriensis"]
["Asteraceae","Arnoglossum plantagineum","Prairie Indian-plantain",1.7263544536271809,75200,null,2,7,"Arnoglossum plantagineum"]
["Ranunculaceae","Delphinium carolinianum ssp. virescens ","Prairie Larkspur",22.038567493112946,960000,null,1,6,"Delphinium carolinianum ssp. virescens "]
["Liliaceae","Allium textile","Prairie Onion",4.4628099173553721,194400,null,1,6,"Allium textile"]
["Apiaceae","Polytaenia nuttallii","Prairie Parsley",null,null,null,1,8,"Polytaenia nuttallii"]
["Polemoniaceae","Phlox pilosa ssp. fulgida","Prairie Phlox ",{"$f":"E212/43560","v":6.9788797061524335},304000,null,1,8,"Phlox pilosa ssp. fulgida"]
["Asteraceae","Packera plattensis","Prairie Ragwort",36.73094582185491,1600000,null,1,5,"Packera plattensis"]
["Rhamnaceae","Ceanothus herbaceus","Prairie Redroot",3.6730945821854912,160000,null,1,6,"Ceanothus herbaceus"]
["Fabaceae","Lotus unifoliolatus","Prairie Trefoil",1.7389807162534436,75750,null,1,3,"Lotus unifoliolatus"]
["Violaceae","Viola pedatifida","Prairie Violet",10.284664830119375,448000,null,1,6,"Viola pedatifida"]
["Papavaraceae","Argemone polyanthemos*","Prickly Poppy",0.20661157024793389,9000,null,2,1,"Argemone polyanthemos*"]
["Asteraceae","Echinacea purpurea","Purple Coneflower",2.6552800734618915,115664,null,2,null,"Echinacea purpurea"]
["Fabaceae","Oxytropis lambertii","Purple Locoweed",4.4077134986225897,192000,null,1,6,"Oxytropis lambertii"]
["Malvaceae","Callirhoe involucrata","Purple Poppy Mallow",0.77134986225895319,33600,null,2,2,"Callirhoe involucrata"]
["Fabaceae","Dalea purpurea","Purple Prairie Clover",6.887052341597796,300000,null,2,6,"Dalea purpurea"]
["Asteraceae","Bidens connata","Purplestem Beggar-ticks",2.9843893480257115,130000,null,3,3,"Bidens connata"]
["Apiaceae","Eryngium yuccifolium","Rattlesnake Master",4.0794306703397609,177700,null,2,8,"Eryngium yuccifolium"]
["Asteraceae","Prenanthes aspera","Rattlesnake-root",5.1423324150596876,224000,null,3,7,"Prenanthes aspera"]
["Asteraceae","Thelesperma megapotamicum","Rayless Greenthread",0,null,null,2,4,"Thelesperma megapotamicum"]
["Fabaceae","Trifolium pratense","Red Clover",6.2479338842975203,272160,null,3,0,"Trifolium pratense"]
["Capparaceae","Cleome serrulata","Rocky Mountain Beeplant",1.4692378328741964,64000,null,2,0,"Cleome serrulata"]
["Asteraceae","Silphium integrifolium","Rosinweed",0.44077134986225897,19200,null,2,4,"Silphium integrifolium"]
["Scrophulariaceae","Agalinis aspera*","Rough Agalinis*",36.73094582185491,1600000,null,3,10,"Agalinis aspera*"]
["Asteraceae","Liatris aspera","Rough Gayfeather",3.0073461891643709,131000,null,3,6,"Liatris aspera"]
["Fabaceae","Lespedeza capitata","Round Head Bush-clover",3.9944903581267219,174000,null,2,5,"Lespedeza capitata"]
["Fabaceae","Dalea multiflora","Roundhead Prairie Clover",null,null,null,1,7,"Dalea multiflora"]
["Asteraceae","Ericameria nauseosa","Rubber Rabbitbrush",{"$f":"E233/43560","v":15.909090909090908},693000,null,2,3,"Ericameria nauseosa"]
["Fabaceae","Onobrychis viciifolia","Sainfoin ",{"$f":"E234/43560","v":0.69421487603305787},30240,null,1,0,"Onobrychis viciifolia"]
["Rosaceae","Sanguisorba minor","Salad Burnet",{"$f":"E235/43560","v":1.1190312213039486},48745,null,1,0,"Sanguisorba minor"]
["Loasaceae","Mentzelia nuda","Sand Lily",null,null,null,2,4,"Mentzelia nuda"]
["Apocynaceae","Asclepias arenaria","Sand Milkweed",{"$f":"E237/43560","v":0.7346189164370982},32000,null,2,5,"Asclepias arenaria"]
["Asteraceae","Helianthus grosseserratus","Sawtooth Sunflower",14.462809917355372,630000,null,3,4,"Helianthus grosseserratus"]
["Asteraceae","Liatris squarrosa","Scaly Blazing Star",2.5711662075298438,112000,null,2,5,"Liatris squarrosa"]
["Onagraceae","Oenothera suffrutescens","Scarlet Beeblossom",0.51423324150596883,22400,null,2,4,"Oenothera suffrutescens"]
["Malvaceae","Sphaeralcea coccinea","Scarlet Globemallow ",11.478420569329661,500000,null,1,4,"Sphaeralcea coccinea"]
["Hydrophyllaceae","Phacelia hastata","Scorpion-weed",3.5123966942148761,153000,null,1,7,"Phacelia hastata"]
["Fabaceae","Mimosa nuttallii","Sensitive Briar ",0.7346189164370982,32000,null,2,6,"Mimosa nuttallii"]
["Apocynaceae","Asclepias speciosa","Showy Milkweed",1.6528925619834711,72000,null,2,1,"Asclepias speciosa"]
["Fabaceae","Chamaecrista fasciculata","Showy Partridgepea",1.4921946740128558,65000,null,2,1,"Chamaecrista fasciculata"]
["Asteraceae","Solidago speciosa","Showy-wand Goldenrod ",34.894398530762167,1520000,null,3,7,"Solidago speciosa"]
["Asteraceae","Symphyotrichum sericeum ","Silky Aster",9.5500459136822773,416000,null,3,7,"Symphyotrichum sericeum "]
["Fabaceae","Dalea villosa","Silky Prairie Clover",5.8195592286501379,253500,null,2,5,"Dalea villosa"]
["Fabaceae","Lupinus argenteus","Silvery Lupine",2.8925619834710745,126000,null,2,5,"Lupinus argenteus"]
["Asteraceae","Lygodesmia juncea","Skeletonweed",null,null,null,2,4,"Lygodesmia juncea"]
["Caryophyllaceae","Silene antirrhina","Sleepy Catchfly ",{"$f":"E251/43560","v":3.6730945821854912},160000,null,1,2,"Silene antirrhina"]
["Scrophulariaceae","Penstemon gracilis","Slender Beardtongue",220.38567493112947,9600000,null,2,6,"Penstemon gracilis"]
["Fabaceae","Psoralidium tenuiflorum","Slender Flowered Scurfpea",0.3673094582185491,16000,null,1,5,"Psoralidium tenuiflorum"]
["Lamiaceae","Pycnanthemum tenuifolium","Slenderleaf Mountain Mint",137.74104683195591,6000000,null,2,7,"Pycnanthemum tenuifolium"]
["Fabaceae","Lupinus pusillus","Small Lupine",0.59687786960514233,26000,null,1,4,"Lupinus pusillus"]
["Asteraceae","Symphyotrichum laeve ","Smooth Blue Aster",23.278236914600551,1014000,null,3,5,"Symphyotrichum laeve "]
["Asteraceae","Helenium autumnale","Sneezeweed",47.750229568411385,2080000,null,3,6,"Helenium autumnale"]
["Euphorbiaceae","Euphorbia marginata","Snow-on-the-mountain",0.69788797061524332,30400,null,2,0,"Euphorbia marginata"]
["Asteraceae","Solidago mollis","Soft Goldenrod",212.70261707988982,9265326,null,3,4,"Solidago mollis"]
["Iridaceae","Iris virginica var. shrevei","Southern Blue Flag",0.3673094582185491,16000,null,2,8,"Iris virginica var. shrevei"]
["Fabaceae","Senna marilandica","Southern Wild Senna",0.47061524334251609,20500,null,2,5,"Senna marilandica"]
["Apocynaceae","Asclepias viridis","Spider Milkweed",1.5794306703397611,68800,null,1,4,"Asclepias viridis"]
["Asteraceae","Eutrochium maculatum","Spotted Joe-Pye Weed ",34.894398530762167,1520000,null,3,6,"Eutrochium maculatum"]
["Apocynaceae","Apocynum androsaemifolium","Spreading Dogbane",7.670270890725436,334117,null,2,6,"Apocynum androsaemifolium"]
["Linaceae","Linum rigidum","Stiff Flax",12.20156106519743,531500,null,1,5,"Linum rigidum"]
["Asteraceae","Oligoneuron rigidum","Stiff Goldenrod",15.463521579430671,673591,null,3,3,"Oligoneuron rigidum"]
["Asteraceae","Thelesperma filifolium","Stiff Greenthread",4.5454545454545459,198000,null,1,3,"Thelesperma filifolium"]
["Asteraceae","Helianthus pauciflorus","Stiff Sunflower",1.9513314967860422,85000,null,3,5,"Helianthus pauciflorus"]
["Fabaceae","Trifolium fragiferum","Strawberry Clover",6.8726124885215798,299371,null,1,0,"Trifolium fragiferum"]
["Iridaceae","Sisyrinchium montanum","Strict Blue-eyed Grass",0,null,null,1,5,"Sisyrinchium montanum"]
["Apocynaceae","Asclepias sullivantii","Sullivant's Milkweed",1.6528925619834711,72000,null,2,7,"Asclepias sullivantii"]
["Apocynaceae","Asclepias incarnata","Swamp Milkweed",3.5298668503213957,153761,null,2,4,"Asclepias incarnata"]
["Asteraceae","Rudbeckia subtomentosa","Sweet Black-eyed Susan ",15.794306703397613,688000,null,2,null,"Rudbeckia subtomentosa"]
["Nyctaginaceae","Abronia fragrans","Sweet Sand Verbena",1.6528925619834711,72000,null,2,3,"Abronia fragrans"]
["Acoraceae","Acorus americanus","Sweetflag",2.4242424242424243,105600,null,2,8,"Acorus americanus"]
["Asteraceae","Eupatorium altissimum","Tall Boneset",58.76951331496786,2560000,null,3,3,"Eupatorium altissimum"]
["Rosaceae","Potentilla arguta","Tall Cinquefoil",84.481175390266301,3680000,null,2,6,"Potentilla arguta"]
["Commelinaceae","Tradescantia ohiensis","Tall Spiderwort",2.9384756657483928,128000,null,1,4,"Tradescantia ohiensis"]
["Asteraceae","Cirsium altissimum","Tall Thistle",1.7630853994490359,76800,null,3,1,"Cirsium altissimum"]
["Asteraceae","Coreopsis tripteris","Tall Tickseed",5.1423324150596876,224000,null,2,null,"Coreopsis tripteris"]
["Scrophulariaceae","Penstemon digitalis","Tall White Penstemon",9.1827364554637274,400000,null,1,null,"Penstemon digitalis"]
["Asteraceae","Machaeranthera tanacetifolia","Tansy-aster",9.3719008264462804,408240,null,2,1,"Machaeranthera tanacetifolia"]
["Loasaceae","Mentzelia decapetala","Tenpetal Stickleaf",7.5413223140495864,328500,null,2,5,"Mentzelia decapetala"]
["Asteraceae","Liatris pycnostachya","Thickspike Gayfeather",2.7548209366391183,120000,null,2,7,"Liatris pycnostachya"]
["Ranunculaceae","Anemone virginiana","Thimbleweed",10.284664830119375,448000,null,2,6,"Anemone virginiana"]
["Scrophulariaceae","Penstemon tubaeflorus","Tube Penstemon",29.38475665748393,1280000,null,2,6,"Penstemon tubaeflorus"]
["Onagraceae","Oenothera curtiflora","Velvetweed",1.4878787878787878,64812,null,2,1,"Oenothera curtiflora"]
["Solanaceae","Physalis virginiana","Virginia Ground Cherry",null,null,null,2,6,"Physalis virginiana"]
["Lamiaceae","Pycnanthemum virginianum","Virginia Mountain Mint",{"$f":"E289/43560","v":80.808080808080803},3520000,null,2,6,"Pycnanthemum virginianum"]
["Polygonaceae","Polygonum punctatum","Water Smartweed",2.8696051423324151,125000,null,2,4,"Polygonum punctatum"]
["Asteraceae","Cirsium undulatum","Wavyleaf Thistle",0,null,null,2,4,"Cirsium undulatum"]
["Asteraceae","Symphyotrichum falcatum ssp. commutatum","Western Heath Aster",115.80449954086318,5044444,null,3,4,"Symphyotrichum falcatum ssp. commutatum"]
["Asteraceae","Vernonia baldwinii","Western Ironweed",8.8154269972451793,384000,null,2,3,"Vernonia baldwinii"]
["Asteraceae","Ambrosia psilostachya","Western Ragweed",4.4628099173553721,194400,null,2,1,"Ambrosia psilostachya"]
["Commelinaceae","Tradescantia occidentalis","Western Spiderwort",3.3057851239669422,144000,null,1,5,"Tradescantia occidentalis"]
["Brassicaceae","Erysimum asperum","Western Wallflower",8.5629017447199267,373000,null,1,4,"Erysimum asperum"]
["Rosaceae","Rosa woodsii","Western Wild Rose ",1.1700413223140496,50967,null,1,4,"Rosa woodsii"]
["Scrophulariaceae","Penstemon albidus","White Beardtongue",4.4077134986225897,192000,null,1,6,"Penstemon albidus"]
["Fabaceae","Trifolium repens","White Clover",16.342217630853995,711867,null,2,0,"Trifolium repens"]
["Fabaceae","Baptisia alba var. macrophylla","White False Indigo",0.62442607897153357,27200,null,1,6,"Baptisia alba var. macrophylla"]
["Asteraceae","Symphyotrichum falcatum ssp. falcatum ","White Prairie Aster",11.386593204775023,496000,null,3,4,"Symphyotrichum falcatum ssp. falcatum "]
["Fabaceae","Dalea candida","White Prairie Clover",6.3820018365472908,278000,null,2,6,"Dalea candida"]
["Asteraceae","Artemisia ludoviciana","White Sage",92.929292929292927,4048000,null,3,4,"Artemisia ludoviciana"]
["Asteraceae","Ageratina altissima","White Snakeroot",55.096418732782368,2400000,null,3,4,"Ageratina altissima"]
["Fabaceae","Melilotus alba","White Sweet Clover",5.9687786960514231,260000,null,2,0,"Melilotus alba"]
["Verbenaceae","Verbena urticifolia","White Vervain ",17.263544536271809,752000,null,2,3,"Verbena urticifolia"]
["Apocynaceae","Asclepias verticillata","Whorled Milkweed",4.0404040404040407,176000,null,2,3,"Asclepias verticillata"]
["Lamiaceae","Monarda fistulosa","Wild Bergamot",29.212580348943984,1272500,null,2,4,"Monarda fistulosa"]
["Nyctaginaceae","Mirabilis nyctaginea","Wild Four-o'clock ",1.2855831037649219,56000,null,1,1,"Mirabillis nyctaginea"]
["Fabaceae","Amorpha fruticosa","Wild Indigo",1.7676767676767677,77000,null,1,5,"Amorpha fruticosa"]
["Fabaceae","Glycyrrhiza lepidota","Wild Licorice",1.2095500459136823,52688,null,1,4,"Glycyrrhiza lepidota"]
["Liliaceae","Allium canadense","Wild Onion",3.1588613406795223,137600,null,1,5,"Allium canadense"]
["Asteraceae","Symphyotrichum praealtum var. nebraskense","Willowleaf Aster",47.750229568411385,2080000,null,3,5,"Symphyotrichum praealtum var. nebraskense"]
["Asteraceae","Verbesina alternifolia","Wingstem",3.3057851239669422,144000,null,3,4,"Verbesina alternifolia"]
["Chenopodiaceae","Krascheninnikovia lanata","Winterfat",2.5419880624426079,110729,null,2,5,"Krascheninnikovia lanata"]
["Fabaceae","Astragalus mollisimus","Woolly Locoweed",3.2139577594123048,140000,null,1,3,"Astragalus mollisimus"]
["Plantaginaceae","Plantago patagonica","Woolly Plantain ",13.774104683195592,600000,null,1,1,"Plantago patagonica"]
["Asteraceae","Achillea millefolium","Yarrow",65.473186409550053,2852012,null,2,2,"Achillea millefolium"]
["Fabaceae","Melilotus officinalis","Yellow Sweet Clover",5.9687786960514231,260000,null,2,0,"Melilotus officinalis"]
["Agavaceae","Yucca glauca","Yucca",0.57047750229568417,24850,null,1,4,"Yucca glauca"]
[null,null,null,0]
[]
["COMPANION CROP and SEEDING RATES"]
[]
["PLANT NAME","RECOMMENDED LBS/AC"]
["Oats - Drill",20]
["Oats - Broadcast",40]
["Linn Perennial Ryegrass - Drill - 60 PLS Seeding",2]
["Linn Perennial Ryegrass - Drill - 120 PLS Seeding",4]
["Linn Perennial Ryegrass - Broadcast - 60 PLS Seeding",4]
["Linn Perennial Ryegrass - Broadcast - 120 PLS Seeding",8]